Workbook

Sheet Base
A1: Ins, Nr | B1: Naam & Voor naam | C1: Klant Bij | D1: Datum ins, | L1: Café
A2: 1 | B2: Marie-Paul | C2: Marie-Paule | D2: 2015-09-05 | E2: 2 | F2: 1 | K2: 1 | L2: Erna
A3: 2 | B3: Sarah Baert | C3: Marie-Paule | D3: 2015-09-24 | K3: 2 | L3: Marie-Paule
A4: 3 | B4: Marie-Claire | C4: Marie-Paule | D4: 2018-02-17 | K4: 3 | L4: Voglkske
A5: 4 | B5: Roger Lataer | C5: Marie-Paule | D5: 2018-02-17 | K5: 4 | L5: Voglkske
A6: 5 | B6: Joane | C6: Marie-Paule | D6: 2018-02-17
A7: 6 | B7: Nathalie | C7: Marie-Paule | D7: 2015-09-05 | E7: 5 | F7: 1
A8: 7 | B8: Dany | C8: Marie-Paule | D8: 2015-09-05
A9: 8 | B9: Thibo | C9: Marie-Paule | D9: 2015-09-05
A10: 9 | B10: Kevin | C10: Marie-Paule | D10: 2016-01-30
A11: 10 | B11: Bernadette | C11: Marie-Paule | D11: 2016-04-02
A12: 11 | B12: Paul | C12: Marie-Paule | D12: 2016-03-26 | F12: 1
A13: 12 | B13: Kristof De Groote | C13: Erna | D13: 2015-09-05 | F13: 1
A14: 13 | B14: Gilbert Devos | C14: De valk | D14: 2017-12-30 | F14: 0
A15: 14 | B15: Werner Brulez | C15: Marie-Paule | D15: 2015-09-05 | E15: 2 | F15: 1
A16: 15 | B16: Werner Brulez | C16: Marie-Paule | D16: 2015-09-05
A17: 16 | B17: Tierlynck Vio | C17: Marie-Paule | D17: 2018-02-17 | F17: 1
A18: 17 | B18: Minnaert Fabienne | C18: Marie-Paule | D18: 2015-09-24 | F18: 1
A19: 18 | B19: Marc Coorvits | C19: Marie-Paule | D19: 2015-09-24 | F19: 1
A20: 19 | B20: Maheur Adelin | C20: Marie-Paule | D20: 2015-09-24 | F20: 1
A21: 20 | B21: Rudy V | C21: Marie-Paule | D21: 2015-09-24 | F21: 1
A22: 21 | B22: D,B,A, | C22: Marie-Paule | D22: 2015-09-24 | E22: 4 | F22: 1
A23: 22 | B23: Diego | C23: Marie-Paule | D23: 2015-09-24
A24: 23 | B24: Kimberly | C24: Marie-Paule | D24: 2015-09-24
A25: 24 | B25: Baele Marleen | C25: Marie-Paule | D25: 2015-09-04
A26: 25 | B26: Franske | C26: Marie-Paule | D26: 2016-01-23 | F26: 1
A27: 26 | B27: Albert Vanderbrugge | C27: Marie-Paule | D27: 2015-09-24 | F27: 1
A28: 27 | B28: Kleinkinderen erna | C28: Erna | D28: 2017-10-21 | E28: 2 | F28: 1
A29: 28 | B29: Erna t'Genieterke | C29: Erna | D29: 2015-09-24 | E29: 6 | F29: 1
A30: 29 | B30: Robin Verstraeten | C30: Erna | D30: 2016-01-23
A31: 30 | B31: Loic Verstraeten | C31: Erna | D31: 2016-01-23
A32: 31 | B32: Quint Verstraeten | C32: Erna | D32: 2016-01-23
A33: 32 | B33: Olivia Verstraeten | C33: Erna | D33: 2016-01-23
A34: 33 | B34: Jonas Verstraeten | C34: Erna | D34: 2015-09-05
A35: 34 | B35: Frank t'Genieterke | C35: Erna | D35: 2016-01-23 | E35: 1
A36: 35 | B36: Schoondochters erna | C36: Erna | D36: 2017-10-21
A37: 36 | B37: Nico Judo | C37: Erna | D37: 2018-02-24 | E37: 2 | F37: 1
A38: 37 | B38: Decroecke Erna | D38: 2018-03-17
A39: 38 | B39: Vandenabeele Luc | C39: Erna | D39: 2016-04-02 | F39: 1
A40: 39 | B40: Lieca | C40: Erna | D40: 2016-04-02 | F40: 1
A41: 40 | B41: Charlotje | C41: erna | D41: 2016-04-09 | E41: 3 | F41: 1
A42: 41 | B42: Johan | C42: Erna | D42: 2016-04-30
A43: 42 | B43: Jozef Matton | C43: Erna | D43: 2016-01-30 | F43: 1
A44: 43 | B44: Annelies vermeulen | C44: Kerhoek | D44: 2018-02-24 | F44: 1
A45: 44 | B45: Dirk depaepe | C45: Erna | D45: 2017-07-07 | F45: 1
A46: 45 | B46: Dolfke | C46: Erna | D46: 2016-01-30 | F46: 1
A47: 46 | B47: Dirk Christ | C47: Erna | D47: 2016-01-30 | F47: 1
A48: 47 | B48: Margueriete 2 | C48: Erna | D48: 2018-03-17 | F48: 1
A49: 48 | B49: Margueriete Lalojaux | C49: Erna | D49: 2015-09-04
A50: 49 | B50: Michel Notre-Dame | C50: Erna | D50: 2015-10-03 | F50: 1
A51: 50 | B51: Triene | C51: Erna | D51: 2015-09-04 | F51: 1
A52: 51 | B52: Joke | C52: Kerhoek | D52: 2017-09-30 | E52: 3 | F52: 1
A53: 52 | B53: Laurenzo | C53: Kerhoek | D53: 2017-09-30
A54: 53 | B54: Matteo | C54: Kerhoek | D54: 2017-09-30
A55: 54 | B55: Onzen Jhonny | C55: Erna | D55: 2017-11-25 | F55: 1
F56: 1
F57: 0
F61: =SUM(F2:F60) -> 30

Sheet Inschrijving
A1: inschrijving | B1: 1 | D1: Inschrijving Nr | E1: Naam & Voor naam | F1: Klant Bij | G1: Datum ins,
D2: =MAX(Base!A:A)+1 -> 55 | E2: =E5&"" ->  | F2: =E6&"" -> Erna | G2: =E7 -> 2018-06-18
D4: Inschrijving Nr | E4: =D2 -> 55
D5: Naam & Voor naam
D6: Klant Bij | E6: =INDEX(Café,B1) -> Erna
D7: Datum ins, | E7: =TODAY() -> 2018-06-18

Sheet Betaalt
A1: Betaalt Naam & Voormaan | B1: Ins. Nr | C1: 2016-05-21 | D1: =C1+7 -> 2016-05-28 | E1: =D1+7 -> 2016-06-04 | F1: 2016-06-11 | G1: 2016-06-18 | H1: 2016-06-25 | I1: 2016-07-02 | J1: 2016-07-09 | K1: 2016-07-16 | L1: 2016-07-23 | M1: 2016-07-30 | N1: 2016-08-06 | O1: 2016-08-13 | P1: =O1+7 -> 2016-08-20 | Q1: =P1+7 -> 2016-08-27 | R1: 2016-09-03 | S1: 2016-09-10 | T1: 2016-09-17 | U1: 2016-09-24 | V1: 2016-10-01 | W1: 2016-10-08 | X1: 2016-10-15 | Y1: 2016-10-22 | Z1: 2016-10-29 | AA1: 2016-11-05 | AB1: 2016-11-12 | AC1: 2016-11-19 | AD1: 2016-11-26 | AE1: 2016-12-03 | AF1: 2016-12-10 | AG1: 2016-12-17 | AH1: 2016-12-24 | AI1: 2016-12-31 | AJ1: 2017-01-07 | AK1: 2017-01-14 | AL1: 2017-01-21 | AM1: 2017-01-28 | AN1: 2017-02-04 | AO1: 2017-02-11 | AP1: 2017-02-18 | AQ1: 2017-02-25 | AR1: 2017-03-04 | AS1: 2017-03-11 | AT1: 2017-03-18 | AU1: 2017-03-25 | AV1: 2017-04-01 | AW1: 2017-04-08 | AX1: 2017-04-15 | AY1: 2017-04-22 | AZ1: 2017-04-29 | BA1: 2017-05-06 | BB1: 2017-05-13 | BC1: 2017-05-20 | BD1: 2017-05-27 | BE1: =BD1+7 -> 2017-06-03 | BF1: 2017-06-10 | BG1: 2017-06-17 | BH1: 2017-06-24 | BI1: 2017-07-01 | BJ1: 2017-07-08 | BK1: 2017-07-15 | BL1: 2017-07-22 | BM1: 2017-07-29 | BN1: 2017-08-05 | BO1: 2017-08-12 | BP1: 2017-08-19 | BQ1: 2017-08-26 | BR1: 2017-09-02 | BS1: 2017-09-09 | BT1: 2017-09-16 | BU1: 2017-09-23 | BV1: 2017-09-30 | BW1: 2017-10-07 | BX1: 2017-10-14 | BY1: 2017-10-21 | BZ1: 2017-10-28 | CA1: 2017-11-04 | CB1: 2017-11-11 | CC1: =CB1+7 -> 2017-11-18 | CD1: 2017-11-25 | CE1: 2017-12-02 | CF1: 2017-12-09 | CG1: 2017-12-16 | CH1: 2017-12-23 | CI1: 2017-12-30 | CJ1: 2018-01-06 | CK1: 2018-01-13 | CL1: 2018-01-20 | CM1: 2018-01-27 | CN1: 2018-02-03 | CO1: 2018-02-10 | CP1: 2018-02-17 | CQ1: 2018-02-24 | CR1: 2018-03-03 | CS1: 2018-03-10 | CT1: =CS1+7 -> 2018-03-17 | CU1: 2018-03-24 | CV1: 2018-03-31 | CW1: 2018-04-07 | CX1: 2018-04-14 | CY1: 2018-04-21 | CZ1: 2018-04-28 | DA1: 2018-05-05 | DB1: 2018-05-12 | DC1: 2018-05-19 | DD1: 2018-05-26 | DE1: 2018-06-02 | DF1: 2018-06-09 | DG1: 2018-06-16 | DH1: 2018-06-23 | DI1: 2018-06-30 | DJ1: 2018-07-07 | DK1: 2018-07-14 | DL1: 2018-07-21 | DM1: 2018-07-28 | DN1: 2018-08-04 | DO1: 2018-08-11 | DP1: =DO1+7 -> 2018-08-18 | DQ1: 2018-08-25 | DR1: 2018-09-01 | DS1: 2018-09-08 | DT1: 2018-09-15 | DU1: 2018-09-22 | DV1: 2018-09-29 | DX1: =TODAY() -> 2018-06-18
A2: =Base!$B$2 -> Marie-Paul | B2: =Base!A2 -> 1 | C2: B | D2: B | E2: B | F2: B | G2: B | H2: B | I2: B | J2: B | K2: B | L2: B | M2: B | N2: B | O2: B | P2: B | Q2: B | R2: B | S2: B | T2: B | U2: B | V2: B | W2: B | X2: B | Y2: B | Z2: B | AA2: B | AB2: B | AC2: B | AD2: B | AE2: B | AF2: B | AG2: B | AH2: B | AI2: B | AJ2: B | AK2: B | AL2: B | AM2: B | AN2: B | AO2: B | AP2: B | AQ2: B | AR2: B | AS2: B | AT2: B | AU2: B | AV2: B | AW2: B | AX2: B | AY2: B | AZ2: B | BA2: B | BB2: B | BC2: B | BD2: B | BE2: B | BF2: B | BG2: B | BH2: B | BI2: B | BJ2: B | BK2: B | BL2: B | BM2: B | BN2: B | BO2: B | BP2: B | BQ2: B | BR2: B | BS2: B | BT2: B | BU2: B | BV2: B | BW2: B | BX2: B | BY2: B | BZ2: B | CA2: B | CB2: B | CC2: B | CD2: B | CE2: B | CF2: B | CG2: B | CH2: B | CI2: B | CJ2: B | CK2: B | CL2: B | CM2: B | CN2: B | CO2: B | CP2: B | CQ2: B | CR2: B | CS2: B | CT2: B | CU2: B | CV2: B | CW2: B | CX2: B | CY2: B | CZ2: B | DA2: B | DB2: B | DC2: B | DD2: B | DE2: B | DF2: B
A3: =Base!$B$3 -> Sarah Baert | B3: =Base!A3 -> 2 | C3: B | D3: B | E3: B | F3: B | G3: B | H3: B | I3: B | J3: B | K3: B | L3: B | M3: B | N3: B | O3: B | P3: B | Q3: B | R3: B | S3: B | T3: B | U3: B | V3: B | W3: B | X3: B | Y3: B | Z3: B | AA3: B | AB3: B | AC3: B | AD3: B | AE3: B | AF3: B | AG3: B | AH3: B | AI3: B | AJ3: B | AK3: B | AL3: B | AM3: B | AN3: B | AO3: B | AP3: B | AQ3: B | AR3: B | AS3: B | AT3: B | AU3: B | AV3: B | AW3: B | AX3: B | AY3: B | AZ3: B | BA3: B | BB3: B | BC3: B | BD3: B | BE3: B | BF3: B | BG3: B | BH3: B | BI3: B | BJ3: B | BK3: B | BL3: B | BM3: B | BN3: B | BO3: B | BP3: B | BQ3: B | BR3: B | BS3: B | BT3: B | BU3: B | BV3: B | BW3: B | BX3: B | BY3: B | BZ3: B | CA3: B | CB3: B | CC3: B | CD3: B | CE3: B | CF3: B | CG3: B | CH3: B | CI3: B | CJ3: B | CK3: B | CL3: B | CM3: B | CN3: B | CO3: B | CP3: B | CQ3: B | CR3: B | CS3: B | CT3: B | CU3: B | CV3: B | CW3: B | CX3: B | CY3: B | CZ3: B | DA3: B | DB3: B | DC3: B | DD3: B | DE3: B | DF3: B | DX3: =SUMPRODUCT(($CO$1:$DV$1>=INDEX($CO$1:$DV$1,MATCH(TODAY(),$CO$1:$DV$1)+1))*($CO$2:$DV$70="B")) -> 120
A4: =Base!$B$4 -> Marie-Claire | B4: =Base!A4 -> 3 | CP4: B | CQ4: B | CR4: B | CS4: B | CT4: B | CU4: B | CV4: B | CW4: B | CX4: B | CY4: B | CZ4: B | DA4: B | DB4: B | DC4: B | DD4: B | DE4: B | DF4: B
A5: =Base!$B$5 -> Roger Lataer | B5: =Base!A5 -> 4 | CP5: B | CQ5: B | CR5: B | CS5: B | CT5: B | CU5: B | CV5: B | CW5: B | CX5: B | CY5: B | CZ5: B | DA5: B | DB5: B | DC5: B | DD5: B | DE5: B | DF5: B
A6: =Base!$B$6 -> Joane | B6: =Base!A6 -> 5 | CP6: B | CQ6: B | CR6: B | CS6: B | CT6: B | CU6: B | CV6: B | CW6: B | CX6: B | CY6: B | CZ6: B | DA6: B | DB6: B | DC6: B | DD6: B | DE6: B | DF6: B | DG6: B | DH6: B | DI6: B
A7: =Base!$B$7 -> Nathalie | B7: =Base!A7 -> 6 | C7: B | D7: B | E7: B | F7: B | G7: B | H7: B | I7: B | J7: B | K7: B | L7: B | M7: B | N7: B | O7: B | P7: B | Q7: B | R7: B | S7: B | T7: B | U7: B | V7: B | W7: B | X7: B | Y7: B | Z7: B | AA7: B | AB7: B | AC7: B | AD7: B | AE7: B | AF7: B | AG7: B | AH7: B | AI7: B | AJ7: B | AK7: B | AL7: B | AM7: B | AN7: B | AO7: B | AP7: B | AQ7: B | AR7: B | AS7: B | AT7: B | AU7: B | AV7: B | AW7: B | AX7: B | AY7: B | AZ7: B | BA7: B | BB7: B | BC7: B | BD7: B | BE7: B | BF7: B | BG7: B | BH7: B | BI7: B | BJ7: B | BK7: B | BL7: B | BM7: B | BN7: B | BO7: B | BP7: B | BQ7: B | BR7: B | BS7: B | BT7: B | BU7: B | BV7: B | BW7: B | BX7: B | BY7: B | BZ7: B | CA7: B | CB7: B | CC7: B | CD7: B | CE7: B | CF7: B | CG7: B | CH7: B | CI7: B | CJ7: B | CK7: B | CL7: B | CM7: B | CN7: B | CO7: B | CP7: B | CQ7: B | CR7: B | CS7: B | CT7: B | CU7: B | CV7: B | CW7: B | CX7: B | CY7: B | CZ7: B | DA7: B | DB7: B | DC7: B | DD7: B | DE7: B | DF7: B | DG7: B | DH7: B | DI7: B | DJ7: B | DK7: B | DL7: B | DM7: B | DN7: B | DO7: B
A8: =Base!$B$8 -> Dany | B8: =Base!A8 -> 7 | C8: B | D8: B | E8: B | F8: B | G8: B | H8: B | I8: B | J8: B | K8: B | L8: B | M8: B | N8: B | O8: B | P8: B | Q8: B | R8: B | S8: B | T8: B | U8: B | V8: B | W8: B | X8: B | Y8: B | Z8: B | AA8: B | AB8: B | AC8: B | AD8: B | AE8: B | AF8: B | AG8: B | AH8: B | AI8: B | AJ8: B | AK8: B | AL8: B | AM8: B | AN8: B | AO8: B | AP8: B | AQ8: B | AR8: B | AS8: B | AT8: B | AU8: B | AV8: B | AW8: B | AX8: B | AY8: B | AZ8: B | BA8: B | BB8: B | BC8: B | BD8: B | BE8: B | BF8: B | BG8: B | BH8: B | BI8: B | BJ8: B | BK8: B | BL8: B | BM8: B | BN8: B | BO8: B | BP8: B | BQ8: B | BR8: B | BS8: B | BT8: B | BU8: B | BV8: B | BW8: B | BX8: B | BY8: B | BZ8: B | CA8: B | CB8: B | CC8: B | CD8: B | CE8: B | CF8: B | CG8: B | CH8: B | CI8: B | CJ8: B | CK8: B | CL8: B | CM8: B | CN8: B | CO8: B | CP8: B | CQ8: B | CR8: B | CS8: B | CT8: B | CU8: B | CV8: B | CW8: B | CX8: B | CY8: B | CZ8: B | DA8: B | DB8: B | DC8: B | DD8: B | DE8: B | DF8: B | DG8: B | DH8: B | DI8: B | DJ8: B | DK8: B | DL8: B | DM8: B | DN8: B | DO8: B
A9: =Base!$B$9 -> Thibo | B9: =Base!A9 -> 8 | C9: B | D9: B | E9: B | F9: B | G9: B | H9: B | I9: B | J9: B | K9: B | L9: B | M9: B | N9: B | O9: B | P9: B | Q9: B | R9: B | S9: B | T9: B | U9: B | V9: B | W9: B | X9: B | Y9: B | Z9: B | AA9: B | AB9: B | AC9: B | AD9: B | AE9: B | AF9: B | AG9: B | AH9: B | AI9: B | AJ9: B | AK9: B | AL9: B | AM9: B | AN9: B | AO9: B | AP9: B | AQ9: B | AR9: B | AS9: B | AT9: B | AU9: B | AV9: B | AW9: B | AX9: B | AY9: B | AZ9: B | BA9: B | BB9: B | BC9: B | BD9: B | BE9: B | BF9: B | BG9: B | BH9: B | BI9: B | BJ9: B | BK9: B | BL9: B | BM9: B | BN9: B | BO9: B | BP9: B | BQ9: B | BR9: B | BS9: B | BT9: B | BU9: B | BV9: B | BW9: B | BX9: B | BY9: B | BZ9: B | CA9: B | CB9: B | CC9: B | CD9: B | CE9: B | CF9: B | CG9: B | CH9: B | CI9: B | CJ9: B | CK9: B | CL9: B | CM9: B | CN9: B | CO9: B | CP9: B | CQ9: B | CR9: B | CS9: B | CT9: B | CU9: B | CV9: B | CW9: B | CX9: B | CY9: B | CZ9: B | DA9: B | DB9: B | DC9: B | DD9: B | DE9: B | DF9: B | DG9: B | DH9: B | DI9: B | DJ9: B | DK9: B | DL9: B | DM9: B | DN9: B | DO9: B
A10: =Base!$B$10 -> Kevin | B10: =Base!A10 -> 9 | C10: B | D10: B | E10: B | F10: B | G10: B | H10: B | I10: B | J10: B | K10: B | L10: B | M10: B | N10: B | O10: B | P10: B | Q10: B | R10: B | S10: B | T10: B | U10: B | V10: B | W10: B | X10: B | Y10: B | Z10: B | AA10: B | AB10: B | AC10: B | AD10: B | AE10: B | AF10: B | AG10: B | AH10: B | AI10: B | AJ10: B | AK10: B | AL10: B | AM10: B | AN10: B | AO10: B | AP10: B | AQ10: B | AR10: B | AS10: B | AT10: B | AU10: B | AV10: B | AW10: B | AX10: B | AY10: B | AZ10: B | BA10: B | BB10: B | BC10: B | BD10: B | BE10: B | BF10: B | BG10: B | BH10: B | BI10: B | BJ10: B | BK10: B | BL10: B | BM10: B | BN10: B | BO10: B | BP10: B | BQ10: B | BR10: B | BS10: B | BT10: B | BU10: B | BV10: B | BW10: B | BX10: B | BY10: B | BZ10: B | CA10: B | CB10: B | CC10: B | CD10: B | CE10: B | CF10: B | CG10: B | CH10: B | CI10: B | CJ10: B | CK10: B | CL10: B | CM10: B | CN10: B | CO10: B | CP10: B | CQ10: B | CR10: B | CS10: B | CT10: B | CU10: B | CV10: B | CW10: B | CX10: B | CY10: B | CZ10: B | DA10: B | DB10: B | DC10: B | DD10: B | DE10: B | DF10: B | DG10: B | DH10: B | DI10: B | DJ10: B | DK10: B | DL10: B | DM10: B | DN10: B | DO10: B
A11: =Base!$B$11 -> Bernadette | B11: =Base!A11 -> 10 | C11: B | D11: B | E11: B | F11: B | G11: B | H11: B | I11: B | J11: B | K11: B | L11: B | M11: B | N11: B | O11: B | P11: B | Q11: B | R11: B | S11: B | T11: B | U11: B | V11: B | W11: B | X11: B | Y11: B | Z11: B | AA11: B | AB11: B | AC11: B | AD11: B | AE11: B | AF11: B | AG11: B | AH11: B | AI11: B | AJ11: B | AK11: B | AL11: B | AM11: B | AN11: B | AO11: B | AP11: B | AQ11: B | AR11: B | AS11: B | AT11: B | AU11: B | AV11: B | AW11: B | AX11: B | AY11: B | AZ11: B | BA11: B | BB11: B | BC11: B | BD11: B | BE11: B | BF11: B | BG11: B | BH11: B | BI11: B | BJ11: B | BK11: B | BL11: B | BM11: B | BN11: B | BO11: B | BP11: B | BQ11: B | BR11: B | BS11: B | BT11: B | BU11: B | BV11: B | BW11: B | BX11: B | BY11: B | BZ11: B | CA11: B | CB11: B | CC11: B | CD11: B | CE11: B | CF11: B | CG11: B | CH11: B | CI11: B | CJ11: B | CK11: B | CL11: B | CM11: B | CN11: B | CO11: B | CP11: B | CQ11: B | CR11: B | CS11: B | CT11: B | CU11: B | CV11: B | CW11: B | CX11: B | CY11: B | CZ11: B | DA11: B | DB11: B | DC11: B | DD11: B | DE11: B | DF11: B | DG11: B | DH11: B | DI11: B | DJ11: B | DK11: B | DL11: B | DM11: B | DN11: B | DO11: B
A12: =Base!$B$12 -> Paul | B12: =Base!A12 -> 11 | C12: B | D12: B | E12: B | F12: B | G12: B | H12: B | I12: B | J12: B | K12: B | L12: B | M12: B | N12: B | O12: B | P12: B | Q12: B | R12: B | S12: B | T12: B | U12: B | V12: B | W12: B | X12: B | Y12: B | Z12: B | AA12: B | AB12: B | AC12: B | AD12: B | AE12: B | AF12: B | AG12: B | AH12: B | AI12: B | AJ12: B | AK12: B | AL12: B | AM12: B | AN12: B | AO12: B | AP12: B | AQ12: B | AR12: B | AS12: B | AT12: B | AU12: B | AV12: B | AW12: B | AX12: B | AY12: B | AZ12: B | BA12: B | BB12: B | BC12: B | BD12: B | BE12: B | BF12: B | BG12: B | BH12: B | BI12: B | BJ12: B | BK12: B | BL12: B | BM12: B | BN12: B | BO12: B | BP12: B | BQ12: B | BR12: B | BS12: B | BT12: B | BU12: B | BV12: B | BW12: B | BX12: B | BY12: B | BZ12: B | CA12: B | CB12: B | CC12: B | CD12: B | CE12: B | CF12: B | CG12: B | CH12: B | CI12: B | CJ12: B | CK12: B | CL12: B | CM12: B | CN12: B | CO12: B | CP12: B | CQ12: B | CR12: B | CS12: B | CT12: B | CU12: B | CV12: B | CW12: B | CX12: B | CY12: B | CZ12: B | DA12: B | DB12: B | DC12: B | DD12: B | DE12: B | DF12: B | DG12: B | DH12: B | DI12: B
A13: =Base!$B$13 -> Kristof De Groote | B13: =Base!A13 -> 12 | C13: B | D13: B | E13: B | F13: B | G13: B | H13: B | I13: B | J13: B | K13: B | L13: B | M13: B | N13: B | O13: B | P13: B | Q13: B | R13: B | S13: B | T13: B | U13: B | V13: B | W13: B | X13: B | Y13: B | Z13: B | AA13: B | AB13: B | AC13: B | AD13: B | AE13: B | AF13: B | AK13: B | AL13: B | AM13: B | AN13: B | AO13: B | AP13: B | AQ13: B | AR13: B | AS13: B | AT13: B | AU13: B | AV13: B | AW13: B | AX13: B | AY13: B | AZ13: B | BA13: B | BB13: B | BC13: B | BD13: B | BE13: B | BF13: B | BG13: B | BH13: B | BI13: B | BJ13: B | BK13: B | BL13: B | BM13: B | BN13: B | BO13: B | BP13: B | BQ13: B | BR13: B | BS13: B | BT13: B | BU13: B | BV13: B | BW13: B | BX13: B | BY13: B | BZ13: B | CA13: B | CB13: B | CC13: B | CD13: B | CE13: B | CF13: B | CG13: B | CH13: B | CI13: B | CJ13: B | CK13: B | CL13: B | CM13: B | CN13: B | CO13: B | CP13: B | CQ13: B | CR13: B | CS13: B | CT13: B | CU13: B | CV13: B | CW13: B | CX13: B | CY13: B | CZ13: B | DA13: B | DB13: B | DC13: B | DD13: B | DE13: B | DF13: B
A14: =Base!$B$14 -> Gilbert Devos | B14: =Base!A14 -> 13 | C14: B | D14: B | E14: B | F14: B | G14: B | H14: B | I14: B | J14: B | K14: B | L14: B | M14: B | N14: B | O14: B | P14: B | Q14: B | R14: B | S14: B | T14: B | U14: B | V14: B | W14: B | X14: B | Y14: B | Z14: B | AA14: B | AB14: B | AC14: B | AD14: B | AE14: B | AF14: B | AG14: B | AH14: B | AI14: B | AJ14: B | AK14: B | AL14: B | AM14: B | AN14: B | AO14: B | AP14: B | AQ14: B | AR14: B | AS14: B | AT14: B | AU14: B | AV14: B | AW14: B | AX14: B | AY14: B | AZ14: B | BA14: B | BB14: B | BC14: B | BD14: B | BE14: B | BF14: B | BG14: B | BH14: B | BI14: B | BJ14: B | BK14: B | BL14: B | BM14: B | BN14: B | BO14: B | BP14: B | BQ14: B | BR14: B | BS14: B | BT14: B | BU14: B | BV14: B | BW14: B | BX14: B | BY14: B | BZ14: B | CA14: B | CB14: B | CC14: B | CD14: B | CE14: B | CF14: B | CG14: B | CH14: B | CI14: B | CJ14: B | CK14: B | CL14: B | CM14: B | CN14: B | CO14: B | CP14: B | CQ14: B | CR14: B | CS14: B | CT14: B | CU14: B | CV14: B | CW14: B | CX14: B | CY14: B | CZ14: B | DA14: B | DB14: B | DC14: B | DD14: B | DE14: B | DF14: B | DG14: B | DH14: B | DI14: B | DJ14: B | DK14: B | DL14: B
A15: =Base!$B$15 -> Werner Brulez | B15: =Base!A15 -> 14 | C15: B | D15: B | E15: B | F15: B | G15: B | H15: B | I15: B | J15: B | K15: B | L15: B | M15: B | N15: B | O15: B | P15: B | Q15: B | R15: B | S15: B | T15: B | U15: B | V15: B | W15: B | X15: B | Y15: B | Z15: B | AA15: B | AB15: B | AC15: B | AD15: B | AE15: B | AF15: B | AG15: B | AH15: B | AI15: B | AJ15: B | AK15: B | AL15: B | AM15: B | AN15: B | AO15: B | AP15: B | AQ15: B | AR15: B | AS15: B | AT15: B | AU15: B | AV15: B | AW15: B | AX15: B | AY15: B | AZ15: B | BA15: B | BB15: B | BC15: B | BD15: B | BE15: B | BF15: B | BG15: B | BH15: B | BI15: B | BJ15: B | BK15: B | BL15: B | BM15: B | BN15: B | BO15: B | BP15: B | BQ15: B | BR15: B | BS15: B | BT15: B | BU15: B | BV15: B | BW15: B | BX15: B | BY15: B | BZ15: B | CA15: B | CB15: B | CC15: B | CD15: B | CE15: B | CF15: B | CG15: B | CH15: B | CI15: B | CJ15: B | CK15: B | CL15: B | CM15: B | CN15: B | CO15: B | CP15: B | CQ15: B | CR15: B | CS15: B | CT15: B | CU15: B | CV15: B | CW15: B | CX15: B | CY15: B | CZ15: B | DA15: B | DB15: B | DC15: B | DD15: B | DE15: B | DF15: B | DG15: B | DH15: B | DI15: B | DJ15: B | DK15: B | DL15: B
A16: =Base!$B$16 -> Werner Brulez | B16: =Base!A16 -> 15 | C16: B | D16: B | E16: B | F16: B | G16: B | H16: B | I16: B | J16: B | K16: B | L16: B | M16: B | N16: B | O16: B | P16: B | Q16: B | R16: B | S16: B | T16: B | U16: B | V16: B | W16: B | X16: B | Y16: B | Z16: B | AA16: B | AB16: B | AC16: B | AD16: B | AE16: B | AF16: B | AG16: B | AH16: B | AI16: B | AJ16: B | AK16: B | AL16: B | AM16: B | AN16: B | AO16: B | AP16: B | AQ16: B | AR16: B | AS16: B | AT16: B | AU16: B | AV16: B | AW16: B | AX16: B | AY16: B | AZ16: B | BA16: B | BB16: B | BC16: B | BD16: B | BE16: B | BF16: B | BG16: B | BH16: B | BI16: B | BJ16: B | BK16: B | BL16: B | BM16: B | BN16: B | BO16: B | BP16: B | BQ16: B | BR16: B | BS16: B | BT16: B | BU16: B | BV16: B | BW16: B | BX16: B | BY16: B | BZ16: B | CA16: B | CB16: B | CC16: B | CD16: B | CE16: B | CF16: B | CG16: B | CH16: B | CI16: B | CJ16: B | CK16: B | CL16: B | CM16: B | CN16: B | CO16: B | CP16: B | CQ16: B | CR16: B | CS16: B | CT16: B | CU16: B | CV16: B | CW16: B | CX16: B | CY16: B | CZ16: B | DA16: B | DB16: B | DC16: B | DD16: B | DE16: B | DF16: B | DG16: B | DH16: B | DI16: B | DJ16: B | DK16: B | DL16: B
A17: =Base!$B$17 -> Tierlynck Vio | B17: =Base!A17 -> 16 | C17: B | D17: B | E17: B | F17: B | G17: B | H17: B | I17: B | J17: B | K17: B | L17: B | M17: B | N17: B | O17: B | P17: B | Q17: B | R17: B | S17: B | T17: B | U17: B | V17: B | W17: B | X17: B | Y17: B | Z17: B | AA17: B | AB17: B | AC17: B | AD17: B | AE17: B | AF17: B | AG17: B | AH17: B | AI17: B | AJ17: B | AK17: B | AL17: B | AM17: B | AN17: B | AO17: B | AP17: B | AQ17: B | AR17: B | AS17: B | AT17: B | AU17: B | AV17: B | AW17: B | AX17: B | AY17: B | AZ17: B | BA17: B | BB17: B | BC17: B | BD17: B | BE17: B | BF17: B | BG17: B | BH17: B | BI17: B | BJ17: B | BK17: B | BL17: B | BM17: B | BN17: B | BO17: B | BP17: B | BQ17: B | BR17: B | BS17: B | BT17: B | BU17: B | BV17: B | BW17: B | BX17: B | BY17: B | BZ17: B | CA17: B | CB17: B | CC17: B | CD17: B | CE17: B | CF17: B | CG17: B | CH17: B | CI17: B | CJ17: B | CK17: B | CL17: B | CM17: B | CN17: B | CO17: B | CP17: B | CQ17: B | CR17: B | CS17: B | CT17: B | CU17: B | CV17: B | CW17: B | CX17: B | CY17: B | CZ17: B | DA17: B | DB17: B | DC17: B | DD17: B | DE17: B | DF17: B
A18: =Base!B$18 -> Minnaert Fabienne | B18: =Base!A18 -> 17 | C18: B | D18: B | E18: B | F18: B | G18: B | H18: B | I18: B | J18: B | K18: B | L18: B | M18: B | N18: B | O18: B | P18: B | Q18: B | R18: B | S18: B | T18: B | U18: B | V18: B | W18: B | X18: B | Y18: B | Z18: B | AA18: B | AB18: B | AC18: B | AD18: B | AE18: B | AF18: B | AG18: B | AH18: B | AI18: B | AJ18: B | AK18: B | AL18: B | AM18: B | AN18: B | AO18: B | AP18: B | AQ18: B | AR18: B | AS18: B | AT18: B | AU18: B | AV18: B | AW18: B | AX18: B | AY18: B | AZ18: B | BA18: B | BB18: B | BC18: B | BD18: B | BE18: B | BF18: B | BG18: B | BH18: B | BI18: B | BJ18: B | BK18: B | BL18: B | BM18: B | BN18: B | BO18: B | BP18: B | BQ18: B | BR18: B | BS18: B | BT18: B | BU18: B | BV18: B | BW18: B | BX18: B | BY18: B | BZ18: B | CA18: B | CB18: B | CC18: B | CD18: B | CE18: B | CF18: B | CG18: B | CH18: B | CI18: B | CJ18: B | CK18: B | CL18: B | CM18: B | CN18: B | CO18: B | CP18: B | CQ18: B | CR18: B | CS18: B | CT18: B | CU18: B | CV18: B | CW18: B | CX18: B | CY18: B | CZ18: B | DA18: B | DB18: B | DC18: B | DD18: B | DE18: B | DF18: B | DG18: B | DH18: B | DI18: B | DJ18: B | DK18: B
A19: =Base!B$19 -> Marc Coorvits | B19: =Base!A19 -> 18 | C19: B | D19: B | E19: B | F19: B | G19: B | H19: B | I19: B | J19: B | K19: B | L19: B | M19: B | N19: B | O19: B | P19: B | Q19: B | R19: B | S19: B | T19: B | U19: B | V19: B | W19: B | X19: B | Y19: B | Z19: B | AA19: B | AB19: B | AC19: B | AD19: B | AE19: B | AF19: B | AG19: B | AH19: B | AI19: B | AJ19: B | AK19: B | AL19: B | AM19: B | AN19: B | AO19: B | AP19: B | AQ19: B | AR19: B | AS19: B | AT19: B | AU19: B | AV19: B | AW19: B | AX19: B | AY19: B | AZ19: B | BA19: B | BB19: B | BC19: B | BD19: B | BE19: B | BF19: B | BG19: B | BH19: B | BI19: B | BJ19: B | BK19: B | BL19: B | BM19: B | BN19: B | BO19: B | BP19: B | BQ19: B | BR19: B | BS19: B | BT19: B | BU19: B | BV19: B | BW19: B | BX19: B | BY19: B | BZ19: B | CA19: B | CB19: B | CC19: B | CD19: B | CE19: B | CF19: B | CG19: B | CH19: B | CI19: B | CJ19: B | CK19: B | CL19: B | CM19: B | CN19: B | CO19: B | CP19: B | CQ19: B | CR19: B | CS19: B | CT19: B | CU19: B | CV19: B | CW19: B | CX19: B | CY19: B | CZ19: B | DA19: B | DB19: B | DC19: B | DD19: B | DE19: B | DF19: B | DG19: B | DH19: B | DI19: B | DJ19: B | DK19: B | DL19: B | DM19: B | DN19: B | DO19: B
A20: =Base!B$20 -> Maheur Adelin | B20: =Base!A20 -> 19 | C20: B | D20: B | E20: B | F20: B | G20: B | H20: B | I20: B | J20: B | K20: B | L20: B | M20: B | N20: B | O20: B | P20: B | Q20: B | R20: B | S20: B | T20: B | U20: B | V20: B | W20: B | X20: B | Y20: B | Z20: B | AA20: B | AB20: B | AC20: B | AD20: B | AE20: B | AF20: B | AG20: B | AH20: B | AI20: B | AJ20: B | AK20: B | AL20: B | AM20: B | AN20: B | AO20: B | AP20: B | AQ20: B | AR20: B | AS20: B | AT20: B | AU20: B | AV20: B | AW20: B | AX20: B | AY20: B | AZ20: B | BA20: B | BB20: B | BC20: B | BD20: B | BE20: B | BF20: B | BG20: B | BH20: B | BI20: B | BJ20: B | BK20: B | BL20: B | BM20: B | BN20: B | BO20: B | BP20: B | BQ20: B | BR20: B | BS20: B | BT20: B | BU20: B | BV20: B | BW20: B | BX20: B | BY20: B | BZ20: B | CA20: B | CB20: B | CC20: B | CD20: B | CE20: B | CF20: B | CG20: B | CH20: B | CI20: B | CJ20: B | CK20: B | CL20: B | CM20: B | CN20: B | CO20: B | CP20: B | CQ20: B | CR20: B | CS20: B | CT20: B | CU20: B | CV20: B | CW20: B | CX20: B | CY20: B | CZ20: B | DA20: B | DB20: B | DC20: B | DD20: B | DE20: B | DF20: B | DG20: B | DH20: B | DI20: B | DJ20: B | DK20: B | DL20: B | DM20: B | DN20: B | DO20: B | DP20: B | DQ20: B
A21: =Base!B$21 -> Rudy V | B21: =Base!A21 -> 20 | C21: B | D21: B | E21: B | F21: B | G21: B | H21: B | I21: B | J21: B | K21: B | L21: B | M21: B | N21: B | O21: B | P21: B | Q21: B | R21: B | S21: B | T21: B | U21: B | V21: B | W21: B | X21: B | Y21: B | Z21: B | AA21: B | AB21: B | AC21: B | AD21: B | AE21: B | AF21: B | AG21: B | AH21: B | AI21: B | AJ21: B | AK21: B | AL21: B | AM21: B | AN21: B | AO21: B | AP21: B | AQ21: B | AR21: B | AS21: B | AT21: B | AU21: B | AV21: B | AW21: B | AX21: B | AY21: B | AZ21: B | BA21: B | BB21: B | BC21: B | BD21: B | BE21: B | BF21: B | BG21: B | BH21: B | BI21: B | BJ21: B | BK21: B | BL21: B | BM21: B | BN21: B | BO21: B | BP21: B | BQ21: B | BR21: B | BS21: B | BT21: B | BU21: B | BV21: B | BW21: B | BX21: B | BY21: B | BZ21: B | CA21: B | CB21: B | CC21: B | CD21: B | CE21: B | CF21: B | CG21: B | CH21: B | CI21: B | CJ21: B | CK21: B | CL21: B | CM21: B | CN21: B | CO21: B | CP21: B | CQ21: B | CR21: B | CS21: B | CT21: B | CU21: B | CV21: B | CW21: B | CX21: B | CY21: B | CZ21: B | DA21: B | DB21: B | DC21: B | DD21: B | DE21: B | DF21: B
A22: =Base!B$22 -> D,B,A, | B22: =Base!A22 -> 21 | C22: B | D22: B | E22: B | F22: B | G22: B | H22: B | I22: B | J22: B | K22: B | L22: B | M22: B | N22: B | O22: B | P22: B | Q22: B | R22: B | S22: B | T22: B | U22: B | V22: B | W22: B | X22: B | Y22: B | Z22: B | AA22: B | AB22: B | AC22: B | AD22: B | AE22: B | AF22: B | AG22: B | AH22: B | AI22: B | AJ22: B | AK22: B | AL22: B | AM22: B | AN22: B | AO22: B | AP22: B | AQ22: B | AR22: B | AS22: B | AT22: B | AU22: B | AV22: B | AW22: B | AX22: B | AY22: B | AZ22: B | BA22: B | BB22: B | BC22: B | BD22: B | BE22: B | BF22: B | BG22: B | BH22: B | BI22: B | BJ22: B | BK22: B | BL22: B | BM22: B | BN22: B | BO22: B | BP22: B | BQ22: B | BR22: B | BS22: B | BT22: B | BU22: B | BV22: B | BW22: B | BX22: B | BY22: B | BZ22: B | CA22: B | CB22: B | CC22: B | CD22: B | CE22: B | CF22: B | CG22: B | CH22: B | CI22: B | CJ22: B | CK22: B | CL22: B | CM22: B | CN22: B | CO22: B | CP22: B | CQ22: B | CR22: B | CS22: B | CT22: B | CU22: B | CV22: B | CW22: B | CX22: B | CY22: B | CZ22: B | DA22: B | DB22: B | DC22: B | DD22: B | DE22: B | DF22: B | DG22: B | DH22: B
A23: =Base!B$23 -> Diego | B23: =Base!A23 -> 22 | C23: B | D23: B | E23: B | F23: B | G23: B | H23: B | I23: B | J23: B | K23: B | L23: B | M23: B | N23: B | O23: B | P23: B | Q23: B | R23: B | S23: B | T23: B | U23: B | V23: B | W23: B | X23: B | Y23: B | Z23: B | AA23: B | AB23: B | AC23: B | AD23: B | AE23: B | AF23: B | AG23: B | AH23: B | AI23: B | AJ23: B | AK23: B | AL23: B | AM23: B | AN23: B | AO23: B | AP23: B | AQ23: B | AR23: B | AS23: B | AT23: B | AU23: B | AV23: B | AW23: B | AX23: B | AY23: B | AZ23: B | BA23: B | BB23: B | BC23: B | BD23: B | BE23: B | BF23: B | BG23: B | BH23: B | BI23: B | BJ23: B | BK23: B | BL23: B | BM23: B | BN23: B | BO23: B | BP23: B | BQ23: B | BR23: B | BS23: B | BT23: B | BU23: B | BV23: B | BW23: B | BX23: B | BY23: B | BZ23: B | CA23: B | CB23: B | CC23: B | CD23: B | CE23: B | CF23: B | CG23: B | CH23: B | CI23: B | CJ23: B | CK23: B | CL23: B | CM23: B | CN23: B | CO23: B | CP23: B | CQ23: B | CR23: B | CS23: B | CT23: B | CU23: B | CV23: B | CW23: B | CX23: B | CY23: B | CZ23: B | DA23: B | DB23: B | DC23: B | DD23: B | DE23: B | DF23: B
A24: =Base!B$24 -> Kimberly | B24: =Base!A24 -> 23 | C24: B | D24: B | E24: B | F24: B | G24: B | H24: B | I24: B | J24: B | K24: B | L24: B | M24: B | N24: B | O24: B | P24: B | Q24: B | R24: B | S24: B | T24: B | U24: B | V24: B | W24: B | X24: B | Y24: B | Z24: B | AA24: B | AB24: B | AC24: B | AD24: B | AE24: B | AF24: B | AG24: B | AH24: B | AI24: B | AJ24: B | AK24: B | AL24: B | AM24: B | AN24: B | AO24: B | AP24: B | AQ24: B | AR24: B | AS24: B | AT24: B | AU24: B | AV24: B | AW24: B | AX24: B | AY24: B | AZ24: B | BA24: B | BB24: B | BC24: B | BD24: B | BE24: B | BF24: B | BG24: B | BH24: B | BI24: B | BJ24: B | BK24: B | BL24: B | BM24: B | BN24: B | BO24: B | BP24: B | BQ24: B | BR24: B | BS24: B | BT24: B | BU24: B | BV24: B | BW24: B | BX24: B | BY24: B | BZ24: B | CA24: B | CB24: B | CC24: B | CD24: B | CE24: B | CF24: B | CG24: B | CH24: B | CI24: B | CJ24: B | CK24: B | CL24: B | CM24: B | CN24: B | CO24: B | CP24: B | CQ24: B | CR24: B | CS24: B | CT24: B | CU24: B | CV24: B | CW24: B | CX24: B | CY24: B | CZ24: B | DA24: B | DB24: B | DC24: B | DD24: B | DE24: B | DF24: B
A25: =Base!B$25 -> Baele Marleen | B25: =Base!A25 -> 24 | C25: B | D25: B | E25: B | F25: B | G25: B | H25: B | I25: B | J25: B | K25: B | L25: B | M25: B | N25: B | O25: B | P25: B | Q25: B | R25: B | S25: B | T25: B | U25: B | V25: B | W25: B | X25: B | Y25: B | Z25: B | AA25: B | AB25: B | AC25: B | AD25: B | AE25: B | AF25: B | AG25: B | AH25: B | AI25: B | AJ25: B | AK25: B | AL25: B | AM25: B | AN25: B | AO25: B | AP25: B | AQ25: B | AR25: B | AS25: B | AT25: B | AU25: B | AV25: B | AW25: B | AX25: B | AY25: B | AZ25: B | BA25: B | BB25: B | BC25: B | BD25: B | BE25: B | BF25: B | BG25: B | BH25: B | BI25: B | BJ25: B | BK25: B | BL25: B | BM25: B | BN25: B | BO25: B | BP25: B | BQ25: B | BR25: B | BS25: B | BT25: B | BU25: B | BV25: B | BW25: B | BX25: B | BY25: B | BZ25: B | CA25: B | CB25: B | CC25: B | CD25: B | CE25: B | CF25: B | CG25: B | CH25: B | CI25: B | CJ25: B | CK25: B | CL25: B | CM25: B | CN25: B | CO25: B | CP25: B | CQ25: B | CR25: B | CS25: B | CT25: B | CU25: B | CV25: B | CW25: B | CX25: B | CY25: B | CZ25: B | DA25: B | DB25: B | DC25: B | DD25: B | DE25: B | DF25: B | DG25: B | DH25: B
A26: =Base!B$26 -> Franske | B26: =Base!A26 -> 25 | C26: B | D26: B | E26: B | F26: B | G26: B | H26: B | I26: B | J26: B | K26: B | L26: B | M26: B | N26: B | O26: B | P26: B | Q26: B | R26: B | S26: B | T26: B | U26: B | V26: B | W26: B | X26: B | Y26: B | Z26: B | AA26: B | AB26: B | AC26: B | AD26: B | AE26: B | AF26: B | AG26: B | AH26: B | AI26: B | AJ26: B | AK26: B | AL26: B | AM26: B | AN26: B | AO26: B | AP26: B | AQ26: B | AR26: B | AS26: B | AT26: B | AU26: B | AV26: B | AW26: B | AX26: B | AY26: B | AZ26: B | BA26: B | BB26: B | BC26: B | BD26: B | BE26: B | BF26: B | BG26: B | BH26: B | BI26: B | BJ26: B | BK26: B | BL26: B | BM26: B | BN26: B | BO26: B | BP26: B | BQ26: B | BR26: B | BS26: B | BT26: B | BU26: B | BV26: B | BW26: B | BX26: B | BY26: B | BZ26: B | CA26: B | CB26: B | CC26: B | CD26: B | CE26: B | CF26: B | CG26: B | CH26: B | CI26: B | CJ26: B | CK26: B | CL26: B | CM26: B | CN26: B | CO26: B | CP26: B | CQ26: B | CR26: B | CS26: B | CT26: B | CU26: B | CV26: B | CW26: B | CX26: B | CY26: B | CZ26: B | DA26: B | DB26: B | DC26: B | DD26: B | DE26: B | DF26: B | DG26: B
A27: =Base!B$27 -> Albert Vanderbrugge | B27: =Base!A27 -> 26 | C27: B | D27: B | E27: B | F27: B | G27: B | H27: B | I27: B | J27: B | K27: B | L27: B | M27: B | N27: B | O27: B | P27: B | Q27: B | R27: B | S27: B | T27: B | U27: B | V27: B | W27: B | X27: B | Y27: B | Z27: B | AA27: B | AB27: B | AC27: B | AD27: B | AE27: B | AF27: B | AG27: B | AH27: B | AI27: B | AJ27: B | AK27: B | AL27: B | AM27: B | AN27: B | AO27: B | AP27: B | AQ27: B | AR27: B | AS27: B | AT27: B | AU27: B | AV27: B | AW27: B | AX27: B | AY27: B | AZ27: B | BA27: B | BB27: B | BC27: B | BD27: B | BE27: B | BF27: B | BG27: B | BH27: B | BI27: B | BJ27: B | BK27: B | BL27: B | BM27: B | BN27: B | BO27: B | BP27: B | BQ27: B | BR27: B | BS27: B | BT27: B | BU27: B | BV27: B | BW27: B | BX27: B | BY27: B | BZ27: B | CA27: B | CB27: B | CC27: B | CD27: B | CE27: B | CF27: B | CG27: B | CH27: B | CI27: B | CJ27: B | CK27: B | CL27: B | CM27: B | CN27: B | CO27: B | CP27: B | CQ27: B | CR27: B | CS27: B | CT27: B | CU27: B | CV27: B | CW27: B | CX27: B | CY27: B | CZ27: B | DA27: B | DB27: B | DC27: B
A28: =Base!B$28 -> Kleinkinderen erna | B28: =Base!A28 -> 27 | AE28: B | AF28: B | AG28: B | AH28: B | AI28: B | AJ28: B | AK28: B | AL28: B | AM28: B | AN28: B | AO28: B | AP28: B | AQ28: B | AR28: B | AS28: B | AT28: B | AU28: B | AV28: B | AW28: B | AX28: B | AY28: B | AZ28: B | BA28: B | BB28: B | BC28: B | BD28: B | BE28: B | BF28: B | BG28: B | BH28: B | BI28: B | BJ28: B | BK28: B | BL28: B | BY28: B | BZ28: B | CA28: B | CB28: B | CC28: B | CD28: B | CE28: B | CF28: B | CG28: B | CH28: B | CI28: B | CJ28: B | CK28: B | CL28: B | CM28: B | CN28: B | CO28: B | CP28: B | CQ28: B | CR28: B | CS28: B | CT28: B | CU28: B | CV28: B | CW28: B | CX28: B | CY28: B | CZ28: B | DA28: B | DB28: B | DC28: B | DD28: B | DE28: B | DF28: B | DG28: B
A29: =Base!B$29 -> Erna t'Genieterke | B29: =Base!A29 -> 28 | C29: B | D29: B | E29: B | F29: B | G29: B | H29: B | I29: B | J29: B | K29: B | L29: B | M29: B | N29: B | O29: B | P29: B | Q29: B | R29: B | S29: B | T29: B | U29: B | V29: B | W29: B | X29: B | Y29: B | Z29: B | AA29: B | AB29: B | AC29: B | AD29: B | AE29: B | AF29: B | AG29: B | AH29: B | AI29: B | AJ29: B | AK29: B | AL29: B | AM29: B | AN29: B | AO29: B | AP29: B | AQ29: B | AR29: B | AS29: B | AT29: B | AU29: B | AV29: B | AW29: B | AX29: B | AY29: B | AZ29: B | BA29: B | BB29: B | BC29: B | BD29: B | BE29: B | BF29: B | BG29: B | BH29: B | BI29: B | BJ29: B | BK29: B | BL29: B | BM29: B | BN29: B | BO29: B | BP29: B | BQ29: B | BR29: B | BS29: B | BT29: B | BU29: B | BV29: B | BW29: B | BX29: B | BY29: B | BZ29: B | CA29: B | CB29: B | CC29: B | CD29: B | CE29: B | CF29: B | CG29: B | CH29: B | CI29: B | CJ29: B | CK29: B | CL29: B | CM29: B | CN29: B | CO29: B | CP29: B | CQ29: B | CR29: B | CS29: B | CT29: B | CU29: B | CV29: B | CW29: B | CX29: B | CY29: B | CZ29: B | DA29: B | DB29: B | DC29: B | DD29: B | DE29: B | DF29: B | DG29: B
A30: =Base!B$30 -> Robin Verstraeten | B30: =Base!A30 -> 29 | C30: B | D30: B | E30: B | F30: B | G30: B | H30: B | I30: B | J30: B | K30: B | L30: B | M30: B | N30: B | O30: B | P30: B | Q30: B | R30: B | S30: B | T30: B | U30: B | V30: B | W30: B | X30: B | Y30: B | Z30: B | AA30: B | AB30: B | AC30: B | AD30: B | AE30: B | AF30: B | AG30: B | AH30: B | AI30: B | AJ30: B | AK30: B | AL30: B | AM30: B | AN30: B | AO30: B | AP30: B | AQ30: B | AR30: B | AS30: B | AT30: B | AU30: B | AV30: B | AW30: B | AX30: B | AY30: B | AZ30: B | BA30: B | BB30: B | BC30: B | BD30: B | BE30: B | BF30: B | BG30: B | BH30: B | BI30: B | BJ30: B | BK30: B | BL30: B | BM30: B | BN30: B | BO30: B | BP30: B | BQ30: B | BR30: B | BS30: B | BT30: B | BU30: B | BV30: B | BW30: B | BX30: B | BY30: B | BZ30: B | CA30: B | CB30: B | CC30: B | CD30: B | CE30: B | CF30: B | CG30: B | CH30: B | CI30: B | CJ30: B | CK30: B | CL30: B | CM30: B | CN30: B | CO30: B | CP30: B | CQ30: B | CR30: B | CS30: B | CT30: B | CU30: B | CV30: B | CW30: B | CX30: B | CY30: B | CZ30: B | DA30: B | DB30: B | DC30: B | DD30: B | DE30: B | DF30: B | DG30: B
A31: =Base!B$31 -> Loic Verstraeten | B31: =Base!A31 -> 30 | C31: B | D31: B | E31: B | F31: B | G31: B | H31: B | I31: B | J31: B | K31: B | L31: B | M31: B | N31: B | O31: B | P31: B | Q31: B | R31: B | S31: B | T31: B | U31: B | V31: B | W31: B | X31: B | Y31: B | Z31: B | AA31: B | AB31: B | AC31: B | AD31: B | AE31: B | AF31: B | AG31: B | AH31: B | AI31: B | AJ31: B | AK31: B | AL31: B | AM31: B | AN31: B | AO31: B | AP31: B | AQ31: B | AR31: B | AS31: B | AT31: B | AU31: B | AV31: B | AW31: B | AX31: B | AY31: B | AZ31: B | BA31: B | BB31: B | BC31: B | BD31: B | BE31: B | BF31: B | BG31: B | BH31: B | BI31: B | BJ31: B | BK31: B | BL31: B | BM31: B | BN31: B | BO31: B | BP31: B | BQ31: B | BR31: B | BS31: B | BT31: B | BU31: B | BV31: B | BW31: B | BX31: B | BY31: B | BZ31: B | CA31: B | CB31: B | CC31: B | CD31: B | CE31: B | CF31: B | CG31: B | CH31: B | CI31: B | CJ31: B | CK31: B | CL31: B | CM31: B | CN31: B | CO31: B | CP31: B | CQ31: B | CR31: B | CS31: B | CT31: B | CU31: B | CV31: B | CW31: B | CX31: B | CY31: B | CZ31: B | DA31: B | DB31: B | DC31: B | DD31: B | DE31: B | DF31: B | DG31: B
A32: =Base!B$32 -> Quint Verstraeten | B32: =Base!A32 -> 31 | C32: B | D32: B | E32: B | F32: B | G32: B | H32: B | I32: B | J32: B | K32: B | L32: B | M32: B | N32: B | O32: B | P32: B | Q32: B | R32: B | S32: B | T32: B | U32: B | V32: B | W32: B | X32: B | Y32: B | Z32: B | AA32: B | AB32: B | AC32: B | AD32: B | AE32: B | AF32: B | AG32: B | AH32: B | AI32: B | AJ32: B | AK32: B | AL32: B | AM32: B | AN32: B | AO32: B | AP32: B | AQ32: B | AR32: B | AS32: B | AT32: B | AU32: B | AV32: B | AW32: B | AX32: B | AY32: B | AZ32: B | BA32: B | BB32: B | BC32: B | BD32: B | BE32: B | BF32: B | BG32: B | BH32: B | BI32: B | BJ32: B | BK32: B | BL32: B | BM32: B | BN32: B | BO32: B | BP32: B | BQ32: B | BR32: B | BS32: B | BT32: B | BU32: B | BV32: B | BW32: B | BX32: B | BY32: B | BZ32: B | CA32: B | CB32: B | CC32: B | CD32: B | CE32: B | CF32: B | CG32: B | CH32: B | CI32: B | CJ32: B | CK32: B | CL32: B | CM32: B | CN32: B | CO32: B | CP32: B | CQ32: B | CR32: B | CS32: B | CT32: B | CU32: B | CV32: B | CW32: B | CX32: B | CY32: B | CZ32: B | DA32: B | DB32: B | DC32: B | DD32: B | DE32: B | DF32: B | DG32: B
A33: =Base!B$33 -> Olivia Verstraeten | B33: =Base!A33 -> 32 | C33: B | D33: B | E33: B | F33: B | G33: B | H33: B | I33: B | J33: B | K33: B | L33: B | M33: B | N33: B | O33: B | P33: B | Q33: B | R33: B | S33: B | T33: B | U33: B | V33: B | W33: B | X33: B | Y33: B | Z33: B | AA33: B | AB33: B | AC33: B | AD33: B | AE33: B | AF33: B | AG33: B | AH33: B | AI33: B | AJ33: B | AK33: B | AL33: B | AM33: B | AN33: B | AO33: B | AP33: B | AQ33: B | AR33: B | AS33: B | AT33: B | AU33: B | AV33: B | AW33: B | AX33: B | AY33: B | AZ33: B | BA33: B | BB33: B | BC33: B | BD33: B | BE33: B | BF33: B | BG33: B | BH33: B | BI33: B | BJ33: B | BK33: B | BL33: B | BM33: B | BN33: B | BO33: B | BP33: B | BQ33: B | BR33: B | BS33: B | BT33: B | BU33: B | BV33: B | BW33: B | BX33: B | BY33: B | BZ33: B | CA33: B | CB33: B | CC33: B | CD33: B | CE33: B | CF33: B | CG33: B | CH33: B | CI33: B | CJ33: B | CK33: B | CL33: B | CM33: B | CN33: B | CO33: B | CP33: B | CQ33: B | CR33: B | CS33: B | CT33: B | CU33: B | CV33: B | CW33: B | CX33: B | CY33: B | CZ33: B | DA33: B | DB33: B | DC33: B | DD33: B | DE33: B | DF33: B | DG33: B
A34: =Base!B$34 -> Jonas Verstraeten | B34: =Base!A34 -> 33 | C34: B | D34: B | E34: B | F34: B | G34: B | H34: B | I34: B | J34: B | K34: B | L34: B | M34: B | N34: B | O34: B | P34: B | Q34: B | R34: B | S34: B | T34: B | U34: B | V34: B | W34: B | X34: B | Y34: B | Z34: B | AA34: B | AB34: B | AC34: B | AD34: B | AE34: B | AF34: B | AG34: B | AH34: B | AI34: B | AJ34: B | AK34: B | AL34: B | AM34: B | AN34: B | AO34: B | AP34: B | AQ34: B | AR34: B | AS34: B | AT34: B | AU34: B | AV34: B | AW34: B | AX34: B | AY34: B | AZ34: B | BA34: B | BB34: B | BC34: B | BD34: B | BE34: B | BF34: B | BG34: B | BH34: B | BI34: B | BJ34: B | BK34: B | BL34: B | BM34: B | BN34: B | BO34: B | BP34: B | BQ34: B | BR34: B | BS34: B | BT34: B | BU34: B | BV34: B | BW34: B | BX34: B | BY34: B | BZ34: B | CA34: B | CB34: B | CC34: B | CD34: B | CE34: B | CF34: B | CG34: B | CH34: B | CI34: B | CJ34: B | CK34: B | CL34: B | CM34: B | CN34: B | CO34: B | CP34: B | CQ34: B | CR34: B | CS34: B | CT34: B | CU34: B | CV34: B | CW34: B | CX34: B | CY34: B | CZ34: B | DA34: B | DB34: B | DC34: B | DD34: B | DE34: B | DF34: B | DG34: B
A35: =Base!B$35 -> Frank t'Genieterke | B35: =Base!A35 -> 34 | C35: B | D35: B | E35: B | F35: B | G35: B | H35: B | I35: B | J35: B | K35: B | L35: B | M35: B | N35: B | O35: B | P35: B | Q35: B | R35: B | S35: B | T35: B | U35: B | V35: B | W35: B | X35: B | Y35: B | Z35: B | AA35: B | AB35: B | AC35: B | AD35: B | AE35: B | AF35: B | AG35: B | AH35: B | AI35: B | AJ35: B | AK35: B | AL35: B | AM35: B | AN35: B | AO35: B | AP35: B | AQ35: B | AR35: B | AS35: B | AT35: B | AU35: B | AV35: B | AW35: B | AX35: B | AY35: B | AZ35: B | BA35: B | BB35: B | BC35: B | BD35: B | BE35: B | BF35: B | BG35: B | BH35: B | BI35: B | BJ35: B | BK35: B | BL35: B | BM35: B | BN35: B | BO35: B | BP35: B | BQ35: B | BR35: B | BS35: B | BT35: B | BU35: B | BV35: B | BW35: B | BX35: B | BY35: B | BZ35: B | CA35: B | CB35: B | CC35: B | CD35: B | CE35: B | CF35: B | CG35: B | CH35: B | CI35: B | CJ35: B | CK35: B | CL35: B | CM35: B | CN35: B | CO35: B | CP35: B | CQ35: B | CR35: B | CS35: B | CT35: B | CU35: B | CV35: B | CW35: B | CX35: B | CY35: B | CZ35: B | DA35: B | DB35: B | DC35: B | DD35: B | DE35: B | DF35: B | DG35: B | DH35: B | DI35: B
A36: Betaalt Naam & Voormaan | B36: Ins. Nr | C36: =C1 -> 2016-05-21 | D36: 2016-05-28 | E36: 2016-06-04 | F36: 2016-06-11 | G36: 2016-06-18 | H36: 2016-06-25 | I36: 2016-07-02 | J36: 2016-07-09 | K36: 2016-07-16 | L36: 2016-07-23 | M36: 2016-07-30 | N36: 2016-08-06 | O36: 2016-08-13 | P36: 2016-08-20 | Q36: 2016-08-27 | R36: 2016-09-03 | S36: 2016-09-10 | T36: 2016-09-17 | U36: 2016-09-24 | V36: 2016-10-01 | W36: 2016-10-08 | X36: 2016-10-15 | Y36: 2016-10-22 | Z36: 2016-10-29 | AA36: 2016-11-05 | AB36: 2016-11-12 | AC36: 2016-11-19 | AD36: 2016-11-26 | AE36: 2016-12-03 | AF36: 2016-12-10 | AG36: 2016-12-17 | AH36: 2016-12-24 | AI36: =AI1 -> 2016-12-31 | AJ36: 2017-01-07 | AK36: 2017-01-14 | AL36: 2017-01-21 | AM36: 2017-01-28 | AN36: 2017-02-04 | AO36: 2017-02-11 | AP36: 2017-02-18 | AQ36: 2017-02-25 | AR36: 2017-03-04 | AS36: 2017-03-11 | AT36: 2017-03-18 | AU36: 2017-03-25 | AV36: 2017-04-01 | AW36: 2017-04-08 | AX36: 2017-04-15 | AY36: 2017-04-22 | AZ36: 2017-04-29 | BA36: 2017-05-06 | BB36: 2017-05-13 | BC36: 2017-05-20 | BD36: 2017-05-27 | BE36: 2017-06-03 | BF36: 2017-06-10 | BG36: 2017-06-17 | BH36: 2017-06-24 | BI36: 2017-07-01 | BJ36: 2017-07-08 | BK36: 2017-07-15 | BL36: 2017-07-22 | BM36: 2017-07-29 | BN36: 2017-08-05 | BO36: =BO1 -> 2017-08-12 | BP36: 2017-08-19 | BQ36: 2017-08-26 | BR36: 2017-09-02 | BS36: 2017-09-09 | BT36: 2017-09-16 | BU36: 2017-09-23 | BV36: 2017-09-30 | BW36: 2017-10-07 | BX36: 2017-10-14 | BY36: 2017-10-21 | BZ36: 2017-10-28 | CA36: 2017-11-04 | CB36: 2017-11-11 | CC36: 2017-11-18 | CD36: 2017-11-25 | CE36: 2017-12-02 | CF36: 2017-12-09 | CG36: 2017-12-16 | CH36: B | CI36: =CI1 -> 2017-12-30 | CJ36: 2018-01-06 | CK36: 2018-01-13 | CL36: 2018-01-20 | CM36: 2018-01-27 | CN36: 2018-02-03 | CO36: 2018-02-10 | CP36: 2018-02-17 | CQ36: 2018-02-24 | CR36: 2018-03-03 | CS36: 2018-03-10 | CT36: 2018-03-17 | CU36: 2018-03-24 | CV36: 2018-03-31 | CW36: 2018-04-07 | CX36: 2018-04-14 | CY36: 2018-04-21 | CZ36: 2018-04-28 | DA36: 2018-05-05 | DB36: 2018-05-12 | DC36: 2018-05-19 | DD36: 2018-05-26 | DE36: 2018-06-02 | DF36: 2018-06-09 | DG36: 2018-06-16 | DH36: 2018-06-23 | DI36: 2018-06-30 | DJ36: 2018-07-07 | DK36: 2018-07-14 | DL36: 2018-07-21 | DM36: 2018-07-28 | DN36: 2018-08-04 | DO36: 2018-08-11 | DP36: 2018-08-18 | DQ36: 2018-08-25 | DR36: 2018-09-01 | DS36: 2018-09-08 | DT36: 2018-09-15 | DU36: 2018-09-22 | DV36: 2018-09-29
A37: =Base!B$36 -> Schoondochters erna | B37: =Base!A36 -> 35 | C37: B | D37: B | E37: B | F37: B | G37: B | H37: B | I37: B | J37: B | K37: B | L37: B | M37: B | N37: B | O37: B | P37: B | Q37: B | R37: B | S37: B | T37: B | U37: B | V37: B | W37: B | X37: B | Y37: B | Z37: B | AA37: B | AB37: B | AC37: B | AD37: B | AE37: B | AF37: B | AG37: B | AH37: B | AI37: B | AJ37: B | AK37: B | AL37: B | AM37: B | AN37: B | AO37: B | AP37: B | AQ37: B | AR37: B | AS37: B | AT37: B | AU37: B | AV37: B | AW37: B | AX37: B | AY37: B | AZ37: B | BA37: B | BB37: B | BC37: B | BD37: B | BE37: B | BF37: B | BG37: B | BH37: B | BI37: B | BJ37: B | BK37: B | BL37: B | BM37: B | BN37: B | BO37: B | BP37: B | BQ37: B | BR37: B | BS37: B | BT37: B | BU37: B | BV37: B | BY37: B | BZ37: B | CA37: B | CB37: B | CC37: B | CD37: B | CE37: B | CF37: B | CG37: B | CH37: B | CI37: B | CJ37: B | CK37: B | CL37: B | CM37: B | CN37: B | CO37: B | CP37: B | CQ37: B | CR37: B | CS37: B | CT37: B | CU37: B | CV37: B | CW37: B | CX37: B | CY37: B | CZ37: B | DA37: B | DB37: B | DC37: B | DD37: B | DE37: B | DF37: B | DG37: B
A38: =Base!B$37 -> Nico Judo | B38: =Base!A37 -> 36 | C38: B | D38: B | E38: B | F38: B | G38: B | H38: B | I38: B | J38: B | K38: B | L38: B | M38: B | N38: B | O38: B | P38: B | Q38: B | R38: B | S38: B | T38: B | U38: B | V38: B | W38: B | X38: B | Y38: B | Z38: B | AA38: B | AB38: B | AC38: B | AD38: B | AE38: B | AF38: B | AG38: B | AH38: B | AI38: B | AJ38: B | AK38: B | AL38: B | AM38: B | AN38: B | AO38: B | AP38: B | AQ38: B | AR38: B | AS38: B | AT38: B | AU38: B | AV38: B | AW38: B | AX38: B | AY38: B | AZ38: B | BA38: B | BB38: B | BC38: B | BD38: B | BE38: B | BF38: B | BG38: B | BH38: B | BI38: B | BJ38: B | BK38: B | BL38: B | BM38: B | BN38: B | BO38: B | BP38: B | BQ38: B | BR38: B | BS38: B | BT38: B | BU38: B | BV38: B | BW38: B | BX38: B | BY38: B | BZ38: B | CA38: B | CB38: B | CC38: B | CD38: B | CE38: B | CF38: B | CG38: B | CH38: B | CI38: B | CJ38: B | CK38: B | CL38: B | CM38: B | CN38: B | CO38: B | CP38: B | CQ38: B | CR38: B | CS38: B | CT38: B | CU38: B | CV38: B | CW38: B | CX38: B | CY38: B | CZ38: B | DA38: B | DB38: B | DC38: B | DD38: B | DE38: B
A39: =Base!B$38 -> Decroecke Erna | B39: =Base!A38 -> 37 | C39: B | D39: B | E39: B | F39: B | G39: B | H39: B | I39: B | J39: B | K39: B | L39: B | M39: B | N39: B | O39: B | P39: B | Q39: B | R39: B | S39: B | T39: B | U39: B | V39: B | W39: B | X39: B | Y39: B | Z39: B | AA39: B | AB39: B | AC39: B | AD39: B | AE39: B | AF39: B | AG39: B | AH39: B | AI39: B | AJ39: B | AK39: B | AL39: B | AM39: B | AN39: B | AO39: B | AP39: B | AQ39: B | AR39: B | AS39: B | AT39: B | AU39: B | AV39: B | AW39: B | AX39: B | AY39: B | AZ39: B | BA39: B | BB39: B | BC39: B | BD39: B | BE39: B | BF39: B | BG39: B | BH39: B | BI39: B | BJ39: B | BK39: B | BL39: B | BM39: B | BN39: B | BO39: B | BP39: B | BQ39: B | BR39: B | BS39: B | BT39: B | BU39: B | BV39: B | BW39: B | BX39: B | BY39: B | BZ39: B | CA39: B | CB39: B | CC39: B | CD39: B | CE39: B | CF39: B | CG39: B | CH39: B | CI39: B | CJ39: B | CK39: B | CL39: B | CM39: B | CN39: B | CO39: B | CP39: B | CQ39: B | CR39: B | CS39: B | CT39: B | CU39: B | CV39: B | CW39: B | CX39: B | CY39: B | CZ39: B | DA39: B | DB39: B | DC39: B | DD39: B | DE39: B | DF39: B | DG39: B | DH39: B | DI39: B | DJ39: B | DK39: B | DL39: B | DM39: B
A40: =Base!B$39 -> Vandenabeele Luc | B40: =Base!A39 -> 38 | C40: B | D40: B | E40: B | F40: B | G40: B | H40: B | I40: B | J40: B | K40: B | L40: B | M40: B | N40: B | O40: B | P40: B | Q40: B | R40: B | S40: B | T40: B | U40: B | V40: B | W40: B | X40: B | Y40: B | Z40: B | AA40: B | AB40: B | AC40: B | AD40: B | AE40: B | AF40: B | AG40: B | AH40: B | AI40: B | AJ40: B | AM40: B | AN40: B | AO40: B | AP40: B | AQ40: B | AR40: B | AS40: B | AT40: B | AU40: B | AV40: B | AW40: B | AX40: B | AY40: B | AZ40: B | BA40: B | BB40: B | BC40: B | BD40: B | BE40: B | BF40: B | BG40: B | BH40: B | BI40: B | BJ40: B | BK40: B | BL40: B | BM40: B | BN40: B | BO40: B | BP40: B | BQ40: B | BR40: B | BS40: B | BT40: B | BU40: B | BV40: B | BW40: B | BX40: B | BY40: B | BZ40: B | CA40: B | CB40: B | CC40: B | CD40: B | CE40: B | CF40: B | CG40: B | CH40: B | CI40: B | CJ40: B | CK40: B | CL40: B | CM40: B | CN40: B | CO40: B | CP40: B | CQ40: B | CR40: B | CS40: B | CT40: B | CU40: B | CV40: B | CW40: B | CX40: B | CY40: B | CZ40: B | DA40: B | DB40: B | DC40: B | DD40: B | DE40: B | DF40: B | DG40: B | DH40: B | DI40: B | DJ40: B | DK40: B | DL40: B | DM40: B | DN40: B | DO40: B | DP40: B | DQ40: B | DR40: B | DS40: B | DT40: B | DU40: B
A41: =Base!B$40 -> Lieca | B41: =Base!A40 -> 39 | C41: B | D41: B | E41: B | F41: B | G41: B | H41: B | I41: B | J41: B | K41: B | L41: B | M41: B | N41: B | O41: B | P41: B | Q41: B | R41: B | S41: B | T41: B | U41: B | V41: B | W41: B | X41: B | Y41: B | Z41: B | AA41: B | AB41: B | AC41: B | AD41: B | AE41: B | AF41: B | AG41: B | AH41: B | AI41: B | AJ41: B | AK41: B | AL41: B | AM41: B | AN41: B | AO41: B | AP41: B | AQ41: B | AR41: B | AS41: B | AT41: B | AU41: B | AV41: B | AW41: B | AX41: B | AY41: B | AZ41: B | BA41: B | BB41: B | BC41: B | BD41: B | BE41: B | BF41: B | BG41: B | BH41: B | BI41: B | BJ41: B | BK41: B | BL41: B | BM41: B | BN41: B | BO41: B | BP41: B | BQ41: B | BR41: B | BS41: B | BT41: B | BU41: B | BV41: B | BW41: B | BX41: B | BY41: B | BZ41: B | CA41: B | CB41: B | CC41: B | CD41: B | CE41: B | CF41: B | CG41: B | CH41: B | CI41: B | CJ41: B | CK41: B | CL41: B | CM41: B | CN41: B | CO41: B | CP41: B | CQ41: B | CR41: B | CS41: B | CT41: B | CU41: B | CV41: B | CW41: B | CX41: B | CY41: B | CZ41: B | DA41: B | DB41: B | DC41: B | DD41: B | DE41: B | DF41: B | DG41: B | DH41: B | DI41: B | DJ41: B
A42: =Base!B$41 -> Charlotje | B42: =Base!A41 -> 40 | C42: B | D42: B | E42: B | F42: B | G42: B | H42: B | I42: B | J42: B | K42: B | L42: B | M42: B | N42: B | O42: B | P42: B | Q42: B | R42: B | S42: B | T42: B | U42: B | V42: B | W42: B | X42: B | Y42: B | Z42: B | AA42: B | AB42: B | AC42: B | AD42: B | AE42: B | AF42: B | AG42: B | AH42: B | AI42: B | AJ42: B | AK42: B | AL42: B | AM42: B | AN42: B | AO42: B | AP42: B | AQ42: B | AR42: B | AS42: B | AT42: B | AU42: B | AV42: B | AW42: B | AX42: B | AY42: B | AZ42: B | BA42: B | BB42: B | BC42: B | BD42: B | BE42: B | BF42: B | BG42: B | BH42: B | BI42: B | BJ42: B | BK42: B | BL42: B | BM42: B | BN42: B | BO42: B | BP42: B | BQ42: B | BR42: B | BS42: B | BT42: B | BU42: B | BV42: B | BW42: B | BX42: B | BY42: B | BZ42: B | CA42: B | CB42: B | CC42: B | CD42: B | CE42: B | CF42: B | CG42: B | CH42: B | CI42: B | CJ42: B | CK42: B | CL42: B | CM42: B | CN42: B | CO42: B | CP42: B | CQ42: B | CR42: B | CS42: B | CT42: B | CU42: B | CV42: B | CW42: B | CX42: B | CY42: B | CZ42: B | DA42: B | DB42: B | DC42: B | DD42: B | DE42: B
A43: =Base!B$42 -> Johan | B43: =Base!A42 -> 41 | C43: B | D43: B | E43: B | F43: B | G43: B | H43: B | I43: B | J43: B | K43: B | L43: B | M43: B | N43: B | O43: B | P43: B | Q43: B | R43: B | S43: B | T43: B | U43: B | V43: B | W43: B | X43: B | Y43: B | Z43: B | AA43: B | AB43: B | AC43: B | AD43: B | AE43: B | AF43: B | AG43: B | AH43: B | AI43: B | AJ43: B | AK43: B | AL43: B | AM43: B | AN43: B | AO43: B | AP43: B | AQ43: B | AR43: B | AS43: B | AT43: B | AU43: B | AV43: B | AW43: B | AX43: B | AY43: B | AZ43: B | BA43: B | BB43: B | BC43: B | BD43: B | BE43: B | BF43: B | BG43: B | BH43: B | BI43: B | BJ43: B | BL43: B | BM43: B | BN43: B | BO43: B | BP43: B | BQ43: B | BR43: B | BS43: B | BT43: B | BU43: B | BV43: B | BW43: B | BX43: B | BY43: B | BZ43: B | CA43: B | CB43: B | CC43: B | CD43: B | CE43: B | CF43: B | CG43: B | CH43: B | CI43: B | CJ43: B | CK43: B | CL43: B | CM43: B | CN43: B | CO43: B | CP43: B | CQ43: B | CR43: B | CS43: B | CT43: B | CU43: B | CV43: B | CW43: B | CX43: B | CY43: B | CZ43: B | DA43: B | DB43: B | DC43: B | DD43: B | DE43: B
A44: =Base!$B$43 -> Jozef Matton | B44: =Base!A43 -> 42 | C44: B | D44: B | E44: B | F44: B | G44: B | H44: B | I44: B | J44: B | K44: B | L44: B | M44: B | N44: B | O44: B | P44: B | Q44: B | R44: B | S44: B | T44: B | U44: B | V44: B | W44: B | X44: B | Y44: B | Z44: B | AA44: B | AB44: B | AC44: B | AD44: B | AE44: B | AF44: B | AG44: B | AH44: B | AI44: B | AJ44: B | AK44: B | AL44: B | AM44: B | AN44: B | AO44: B | AP44: B | AQ44: B | AR44: B | AS44: B | AT44: B | AU44: B | AV44: B | AW44: B | AX44: B | AY44: B | AZ44: B | BA44: B | BB44: B | BC44: B | BD44: B | BE44: B | BF44: B | BG44: B | BH44: B | BI44: B | BJ44: B | BK44: B | BL44: B | BM44: B | BN44: B | BO44: B | BP44: B | BQ44: B | BR44: B | BS44: B | BT44: B | BU44: B | BV44: B | BW44: B | BX44: B | BY44: B | BZ44: B | CA44: B | CB44: B | CC44: B | CD44: B | CE44: B | CF44: B | CG44: B | CH44: B | CI44: B | CJ44: B | CK44: B | CL44: B | CM44: B | CN44: B | CO44: B | CP44: B | CQ44: B | CR44: B | CS44: B | CT44: B | CU44: B | CV44: B | CW44: B | CX44: B | CY44: B | CZ44: B | DA44: B | DB44: B | DC44: B | DD44: B | DE44: B
A45: =Base!$B$44 -> Annelies vermeulen | B45: =Base!A44 -> 43 | C45: B | D45: B | E45: B | F45: B | G45: B | H45: B | I45: B | J45: B | K45: B | L45: B | M45: B | N45: B | O45: B | P45: B | Q45: B | R45: B | S45: B | T45: B | U45: B | V45: B | W45: B | X45: B | Y45: B | Z45: B | AA45: B | AB45: B | AC45: B | AD45: B | AE45: B | AF45: B | AG45: B | AH45: B | AI45: B | AJ45: B | AK45: B | AL45: B | AM45: B | AN45: B | AO45: B | AP45: B | AQ45: B | AR45: B | AS45: B | AT45: B | AU45: B | AV45: B | AW45: B | AX45: B | AY45: B | AZ45: B | BA45: B | BB45: B | BC45: B | BD45: B | BE45: B | BF45: B | BG45: B | BH45: B | BI45: B | BJ45: B | BK45: B | BL45: B | BM45: B | BN45: B | BO45: B | BP45: B | BQ45: B | BR45: B | BS45: B | BT45: B | BU45: B | BV45: B | BW45: B | BX45: B | BY45: B | BZ45: B | CA45: B | CB45: B | CC45: B | CD45: B | CE45: B | CF45: B | CG45: B | CH45: B | CI45: B | CJ45: B | CK45: B | CL45: B | CM45: B | CN45: B | CO45: B | CP45: B | CQ45: B | CR45: B | CS45: B | CT45: B | CU45: B | CV45: B | CW45: B | CX45: B | CY45: B | CZ45: B | DA45: B | DB45: B | DC45: B | DD45: B | DE45: B | DF45: B | DG45: B | DH45: B | DI45: B | DJ45: B
A46: =Base!$B$45 -> Dirk depaepe | B46: =Base!A45 -> 44 | C46: B | D46: B | E46: B | F46: B | G46: B | H46: B | I46: B | J46: B | K46: B | L46: B | M46: B | N46: B | O46: B | P46: B | Q46: B | R46: B | S46: B | T46: B | U46: B | V46: B | W46: B | X46: B | Y46: B | Z46: B | AA46: B | AB46: B | AC46: B | AD46: B | AE46: B | AF46: B | AG46: B | AH46: B | AI46: B | AJ46: B | AK46: B | AL46: B | AM46: B | AN46: B | AO46: B | AP46: B | AQ46: B | AR46: B | AS46: B | AT46: B | AU46: B | AV46: B | AW46: B | AX46: B | AY46: B | AZ46: B | BA46: B | BB46: B | BC46: B | BD46: B | BE46: B | BF46: B | BG46: B | BH46: B | BJ46: B | BK46: B | BL46: B | BM46: B | BN46: B | BO46: B | BP46: B | BQ46: B | BR46: B | BS46: B | BT46: B | BU46: B | BV46: B | BW46: B | BX46: B | BY46: B | BZ46: B | CA46: B | CB46: B | CC46: B | CD46: B | CE46: B | CF46: B | CG46: B | CH46: B | CI46: B | CJ46: B | CK46: B | CL46: B | CM46: B | CN46: B | CO46: B | CP46: B | CQ46: B | CR46: B | CS46: B | CT46: B | CU46: B | CV46: B | CW46: B | CX46: B | CY46: B | CZ46: B | DA46: B | DB46: B | DC46: B | DD46: B | DE46: B | DF46: B | DG46: B
A47: =Base!$B$46 -> Dolfke | B47: =Base!A46 -> 45 | C47: B | D47: B | E47: B | F47: B | G47: B | H47: B | I47: B | J47: B | K47: B | L47: B | M47: B | N47: B | O47: B | P47: B | Q47: B | R47: B | S47: B | T47: B | U47: B | V47: B | W47: B | X47: B | Y47: B | Z47: B | AA47: B | AB47: B | AC47: B | AD47: B | AE47: B | AF47: B | AG47: B | AH47: B | AI47: B | AJ47: B | AK47: B | AL47: B | AM47: B | AN47: B | AO47: B | AP47: B | AQ47: B | AR47: B | AS47: B | AT47: B | AU47: B | AV47: B | AW47: B | AX47: B | AY47: B | AZ47: B | BA47: B | BB47: B | BC47: B | BD47: B | BE47: B | BF47: B | BG47: B | BH47: B | BI47: B | BJ47: B | BK47: B | BL47: B | BM47: B | BN47: B | BO47: B | BP47: B | BQ47: B | BR47: B | BS47: B | BT47: B | BU47: B | BV47: B | BW47: B | BX47: B | BY47: B | BZ47: B | CA47: B | CB47: B | CC47: B | CD47: B | CE47: B | CF47: B | CG47: B | CH47: B | CI47: B | CJ47: B | CK47: B | CL47: B | CM47: B | CN47: B | CO47: B | CP47: B | CQ47: B | CR47: B | CS47: B | CT47: B | CU47: B | CV47: B | CW47: B | CX47: B | CY47: B | CZ47: B | DA47: B | DB47: B | DC47: B | DD47: B | DE47: B | DF47: B | DG47: B
A48: =Base!$B$47 -> Dirk Christ | B48: =Base!A47 -> 46 | C48: B | D48: B | E48: B | F48: B | G48: B | H48: B | I48: B | J48: B | K48: B | L48: B | M48: B | N48: B | O48: B | P48: B | Q48: B | R48: B | S48: B | T48: B | U48: B | V48: B | W48: B | X48: B | Y48: B | Z48: B | AA48: B | AB48: B | AC48: B | AD48: B | AE48: B | AN48: B | AO48: B | AP48: B | AQ48: B | AR48: B | AS48: B | AT48: B | AU48: B | AV48: B | AW48: B | AX48: B | AY48: B | AZ48: B | BA48: B | BB48: B | BC48: B | BD48: B | BE48: B | BF48: B | BG48: B | BH48: B | BI48: B | BJ48: B | BK48: B | BL48: B | BM48: B | BN48: B | BO48: B | BP48: B | BQ48: B | BR48: B | BS48: B | BT48: B | BU48: B | BV48: B | BW48: B | BX48: B | BY48: B | BZ48: B | CA48: B | CB48: B | CC48: B | CD48: B | CE48: B | CF48: B | CG48: B | CH48: B | CI48: B | CJ48: B | CK48: B | CL48: B | CM48: B | CN48: B | CO48: B | CP48: B | CQ48: B | CR48: B | CS48: B | CT48: B | CU48: B | CV48: B | CW48: B | CX48: B | CY48: B | CZ48: B
A49: =Base!$B$48 -> Margueriete 2 | B49: =Base!A48 -> 47 | C49: B | D49: B | E49: B | F49: B | G49: B | H49: B | I49: B | J49: B | K49: B | L49: B | M49: B | N49: B | O49: B | P49: B | Q49: B | R49: B | S49: B | T49: B | U49: B | V49: B | W49: B | X49: B | Y49: B | Z49: B | AA49: B | AB49: B | AC49: B | AD49: B | AE49: B | AF49: B | AG49: B | AH49: B | AI49: B | AJ49: B | AK49: B | AL49: B | AM49: B | AN49: B | AO49: B | AP49: B | AQ49: B | AR49: B | AS49: B | AT49: B | AU49: B | AV49: B | AW49: B | AX49: B | AY49: B | AZ49: B | BA49: B | BB49: B | BC49: B | BD49: B | BE49: B | BF49: B | BG49: B | BH49: B | BI49: B | BJ49: B | BK49: B | BL49: B | BM49: B | BN49: B | BO49: B | BP49: B | BQ49: B | BR49: B | BS49: B | BT49: B | BU49: B | BV49: B | BW49: B | BX49: B | BY49: B | BZ49: B | CA49: B | CB49: B | CC49: B | CD49: B | CE49: B | CF49: B | CG49: B | CH49: B | CI49: B | CJ49: B | CK49: B | CL49: B | CM49: B | CN49: B | CO49: B | CP49: B | CQ49: B | CR49: B | CS49: B | CT49: B | CU49: B | CV49: B | CW49: B | CX49: B | CY49: B | CZ49: B | DA49: B | DB49: B | DC49: B | DD49: B | DE49: B
A50: =Base!$B$49 -> Margueriete Lalojaux | B50: =Base!A49 -> 48 | C50: B | D50: B | E50: B | F50: B | G50: B | H50: B | I50: B | J50: B | K50: B | L50: B | M50: B | N50: B | O50: B | P50: B | Q50: B | R50: B | S50: B | T50: B | U50: B | V50: B | W50: B | X50: B | Y50: B | Z50: B | AA50: B | AB50: B | AC50: B | AD50: B | AE50: B | AF50: B | AG50: B | AH50: B | AI50: B | AJ50: B | AK50: B | AL50: B | AM50: B | AN50: B | AO50: B | AP50: B | AQ50: B | AR50: B | AS50: B | AT50: B | AU50: B | AV50: B | AW50: B | AX50: B | AY50: B | AZ50: B | BA50: B | BB50: B | BC50: B | BD50: B | BE50: B | BF50: B | BG50: B | BH50: B | BI50: B | BJ50: B | BK50: B | BL50: B | BM50: B | BN50: B | BO50: B | BP50: B | BQ50: B | BR50: B | BS50: B | BT50: B | BU50: B | BV50: B | BW50: B | BX50: B | BY50: B | BZ50: B | CA50: B | CB50: B | CC50: B | CD50: B | CE50: B | CF50: B | CG50: B | CH50: B | CI50: B | CJ50: B | CK50: B | CL50: B | CM50: B | CN50: B | CO50: B | CP50: B | CQ50: B | CR50: B | CS50: B | CT50: B | CU50: B | CV50: B | CW50: B | CX50: B | CY50: B | CZ50: B | DA50: B | DB50: B | DC50: B | DD50: B | DE50: B
A51: =Base!$B$50 -> Michel Notre-Dame | B51: =Base!A50 -> 49 | C51: B | D51: B | E51: B | F51: B | G51: B | H51: B | I51: B | J51: B | K51: B | L51: B | M51: B | N51: B | O51: B | P51: B | Q51: B | R51: B | S51: B | T51: B | U51: B | V51: B | W51: B | X51: B | Y51: B | Z51: B | AA51: B | AB51: B | AC51: B | AD51: B | AE51: B | AF51: B | AG51: B | AH51: B | AI51: B | AJ51: B | AK51: B | AL51: B | AM51: B | AN51: B | AO51: B | AP51: B | AQ51: B | AR51: B | AS51: B | AT51: B | AU51: B | AV51: B | AW51: B | AX51: B | AY51: B | AZ51: B | BA51: B | BB51: B | BC51: B | BD51: B | BE51: B | BF51: B | BG51: B | BH51: B | BI51: B | BJ51: B | BK51: B | BL51: B | BM51: B | BN51: B | BO51: B | BP51: B | BQ51: B | BR51: B | BS51: B | BT51: B | BU51: B | BV51: B | BW51: B | BX51: B | BY51: B | BZ51: B | CA51: B | CB51: B | CC51: B | CD51: B | CE51: B | CF51: B | CG51: B | CH51: B | CI51: B | CJ51: B | CK51: B | CL51: B | CM51: B | CN51: B | CO51: B | CP51: B | CQ51: B | CR51: B | CS51: B | CT51: B | CU51: B | CV51: B | CW51: B | CX51: B | CY51: B | CZ51: B | DA51: B | DB51: B | DC51: B | DD51: B | DE51: B | DF51: B | DG51: B
A52: =Base!$B$51 -> Triene | B52: =Base!A51 -> 50 | C52: B | D52: B | E52: B | F52: B | G52: B | H52: B | I52: B | J52: B | K52: B | L52: B | M52: B | N52: B | O52: B | P52: B | Q52: B | R52: B | S52: B | T52: B | U52: B | V52: B | W52: B | X52: B | Y52: B | Z52: B | AA52: B | AB52: B | AC52: B | AD52: B | AE52: B | AF52: B | AG52: B | AH52: B | AI52: B | AJ52: B | AK52: B | AL52: B | AM52: B | AN52: B | AO52: B | AP52: B | AQ52: B | AR52: B | AS52: B | AT52: B | AU52: B | AV52: B | AW52: B | AX52: B | AY52: B | AZ52: B | BA52: B | BB52: B | BC52: B | BD52: B | BE52: B | BF52: B | BG52: B | BH52: B | BI52: B | BJ52: B | BK52: B | BL52: B | BM52: B | BN52: B | BO52: B | BP52: B | BQ52: B | BR52: B | BS52: B | BT52: B | BU52: B | BV52: B | BW52: B | BX52: B | BY52: B | BZ52: B | CA52: B | CB52: B | CC52: B | CD52: B | CE52: B | CF52: B | CG52: B | CH52: B | CI52: B | CJ52: B | CK52: B | CL52: B | CM52: B | CN52: B | CO52: B | CP52: B | CQ52: B | CR52: B | CS52: B | CT52: B | CU52: B | CV52: B | CW52: B | CX52: B | CY52: B | CZ52: B | DA52: B | DB52: B | DC52: B | DD52: B | DE52: B | DF52: B | DG52: B | DH52: B | DI52: B | DJ52: B
A53: =Base!$B52 -> Joke | B53: =Base!A52 -> 51 | C53: B | D53: B | E53: B | F53: B | G53: B | H53: B | I53: B | J53: B | K53: B | L53: B | M53: B | N53: B | O53: B | P53: B | Q53: B | R53: B | S53: B | T53: B | U53: B | V53: B | W53: B | X53: B | Y53: B | Z53: B | AA53: B | AB53: B | AC53: B | AD53: B | AE53: B | AF53: B | AG53: B | AH53: B | AI53: B | AJ53: B | AK53: B | AL53: B | AM53: B | AN53: B | AO53: B | AP53: B | AQ53: B | AR53: B | AS53: B | AT53: B | AU53: B | AV53: B | AW53: B | AX53: B | AY53: B | AZ53: B | BA53: B | BB53: B | BC53: B | BD53: B | BE53: B | BF53: B | BG53: B | BH53: B | BI53: B | BJ53: B | BK53: B | BV53: B | BW53: B | BX53: B | BY53: B | BZ53: B | CA53: B | CB53: B | CC53: B | CD53: B | CE53: B | CF53: B | CG53: B | CH53: B | CI53: B | CJ53: B | CK53: B | CL53: B | CM53: B | CN53: B | CO53: B | CP53: B | CQ53: B | CR53: B | CS53: B | CT53: B | CU53: B | CV53: B | CW53: B | CX53: B | CY53: B | CZ53: B | DA53: B | DB53: B | DC53: B | DD53: B | DE53: B | DF53: B | DG53: B | DH53: B | DI53: B
A54: =Base!$B53 -> Laurenzo | B54: =Base!A53 -> 52 | C54: B | D54: B | E54: B | F54: B | G54: B | H54: B | I54: B | J54: B | K54: B | L54: B | M54: B | N54: B | O54: B | P54: B | Q54: B | R54: B | S54: B | T54: B | U54: B | V54: B | W54: B | X54: B | Y54: B | Z54: B | AA54: B | AB54: B | AC54: B | AD54: B | AE54: B | AF54: B | AG54: B | AH54: B | AI54: B | AJ54: B | AK54: B | AL54: B | AM54: B | AN54: B | AO54: B | AP54: B | AQ54: B | AR54: B | AS54: B | AT54: B | AU54: B | AV54: B | AW54: B | AX54: B | AY54: B | AZ54: B | BA54: B | BB54: B | BC54: B | BV54: B | BW54: B | BX54: B | BY54: B | BZ54: B | CA54: B | CB54: B | CC54: B | CD54: B | CE54: B | CF54: B | CG54: B | CH54: B | CI54: B | CJ54: B | CK54: B | CL54: B | CM54: B | CN54: B | CO54: B | CP54: B | CQ54: B | CR54: B | CS54: B | CT54: B | CU54: B | CV54: B | CW54: B | CX54: B | CY54: B | CZ54: B | DA54: B | DB54: B | DC54: B | DD54: B | DE54: B | DF54: B | DG54: B | DH54: B | DI54: B
A55: =Base!$B54 -> Matteo | B55: =Base!A54 -> 53 | C55: B | D55: B | E55: B | F55: B | G55: B | H55: B | I55: B | J55: B | K55: B | L55: B | M55: B | N55: B | O55: B | P55: B | Q55: B | R55: B | S55: B | T55: B | U55: B | V55: B | W55: B | X55: B | Y55: B | Z55: B | AA55: B | AB55: B | AC55: B | AD55: B | AE55: B | AF55: B | AG55: B | AH55: B | AI55: B | AJ55: B | AK55: B | AL55: B | AM55: B | AN55: B | AO55: B | AP55: B | AQ55: B | AR55: B | AS55: B | AT55: B | AU55: B | AV55: B | AW55: B | AX55: B | AY55: B | AZ55: B | BA55: B | BB55: B | BV55: B | BW55: B | BX55: B | BY55: B | BZ55: B | CA55: B | CB55: B | CC55: B | CD55: B | CE55: B | CF55: B | CG55: B | CH55: B | CI55: B | CJ55: B | CK55: B | CL55: B | CM55: B | CN55: B | CO55: B | CP55: B | CQ55: B | CR55: B | CS55: B | CT55: B | CU55: B | CV55: B | CW55: B | CX55: B | CY55: B | CZ55: B | DA55: B | DB55: B | DC55: B | DD55: B | DE55: B | DF55: B | DG55: B | DH55: B | DI55: B
A56: =Base!$B55 -> Onzen Jhonny | B56: =Base!A55 -> 54 | C56: B | D56: B | E56: B | F56: B | G56: B | H56: B | I56: B | J56: B | K56: B | L56: B | M56: B | N56: B | O56: B | P56: B | Q56: B | R56: B | S56: B | T56: B | U56: B | V56: B | W56: B | X56: B | Y56: B | Z56: B | AA56: B | AB56: B | AC56: B | AD56: B | AE56: B | AF56: B | AG56: B | AH56: B | AI56: B | AJ56: B | AK56: B | AL56: B | AM56: B | AN56: B | AO56: B | AP56: B | AQ56: B | AR56: B | AS56: B | AT56: B | AU56: B | AV56: B | AW56: B | AX56: B | AY56: B | AZ56: B | BW56: B | CD56: B | CE56: B | CF56: B | CG56: B | CH56: B | CI56: B | CJ56: B | CK56: B | CL56: B | CM56: B | CN56: B | CO56: B | CP56: B | CQ56: B | CR56: B | CS56: B | CT56: B | CU56: B | CV56: B | CW56: B | CX56: B | CY56: B | CZ56: B
A57: =Base!$B$56 -> 0 | B57: =Base!A56 -> 0 | C57: B | D57: B | E57: B | F57: B | G57: B | H57: B | I57: B | J57: B | K57: B | L57: B | M57: B | N57: B | O57: B | P57: B | Q57: B | R57: B | S57: B | T57: B | U57: B | V57: B | W57: B | X57: B | Y57: B | Z57: B | AA57: B | AB57: B | AC57: B | AD57: B | AE57: B | AF57: B | AG57: B | AH57: B | AI57: B | AJ57: B | AK57: B | AL57: B | AM57: B | AN57: B | AO57: B | AP57: B | AQ57: B | AR57: B | AS57: B | AT57: B | AU57: B | AV57: B | BL57: B | BM57: B | BN57: B | BO57: B | BP57: B | BQ57: B | BR57: B | BS57: B | BT57: B | BU57: B | BV57: B | BW57: B | BX57: B | BY57: B | BZ57: B | CA57: B | CB57: B | CI57: B | CP57: B | CQ57: B | CR57: B | CS57: B | CT57: B
A58: =Base!$B$57 -> 0 | B58: =Base!A57 -> 0 | C58: B | D58: B | E58: B | F58: B | G58: B | H58: B | I58: B | J58: B | K58: B | L58: B | M58: B | N58: B | O58: B | P58: B | Q58: B | R58: B | S58: B | T58: B | U58: B | V58: B | W58: B | X58: B | Y58: B | Z58: B | AA58: B | AB58: B | AC58: B | AD58: B | AE58: B | AF58: B | AG58: B | AH58: B | AI58: B | AJ58: B | AK58: B | AL58: B | AM58: B | AN58: B | AO58: B | AP58: B | AQ58: B | AR58: B | AS58: B | AT58: B | AU58: B | CQ58: B | CR58: B | CS58: B | CT58: B | CU58: B
A59: =Base!$B$58 -> 0 | B59: =Base!A58 -> 0 | C59: B | D59: B | E59: B | F59: B | G59: B | H59: B | I59: B | J59: B | K59: B | L59: B | M59: B | N59: B | O59: B | P59: B | Q59: B | R59: B | S59: B | T59: B | U59: B | V59: B | W59: B | X59: B | Y59: B | Z59: B | AA59: B | AB59: B | AC59: B | AD59: B | AE59: B | AF59: B | AG59: B | AH59: B | AI59: B | AJ59: B | AK59: B | AL59: B | AM59: B | AN59: B | AO59: B | AP59: B | AQ59: B | AR59: B | AS59: B | AT59: B | AU59: B
A60: =Base!$B$59 -> 0 | B60: =Base!A59 -> 0 | C60: B | D60: B | E60: B | F60: B | G60: B | H60: B | I60: B | J60: B | K60: B | L60: B | M60: B | N60: B | O60: B | P60: B | Q60: B | R60: B | S60: B | T60: B | U60: B | V60: B | W60: B | X60: B | Y60: B | Z60: B | AA60: B | AB60: B | AC60: B | AD60: B | AE60: B | AF60: B | AG60: B | AH60: B | AI60: B | AJ60: B | AK60: B | AL60: B | AM60: B | AN60: B | AO60: B | AP60: B | AQ60: B | AR60: B | AS60: B | AT60: B | AU60: B
A61: =Base!$B$60 -> 0 | B61: =Base!A60 -> 0 | C61: B | D61: B | E61: B | F61: B | G61: B | H61: B | I61: B | J61: B | K61: B | L61: B | M61: B | N61: B | O61: B | P61: B | Q61: B | R61: B | S61: B | T61: B | U61: B | V61: B | W61: B | X61: B | Y61: B | Z61: B | AA61: B | AB61: B | AC61: B | AD61: B | AE61: B | AF61: B | AG61: B | AH61: B | AI61: B | AJ61: B | AK61: B | AL61: B | AM61: B | AN61: B | AO61: B | AP61: B | AQ61: B | AR61: B | AS61: B | AT61: B | AU61: B
A62: =Base!$B$61 -> 0 | B62: =Base!A61 -> 0 | Z62: B | AA62: B | AB62: B | AC62: B | AD62: B | AE62: B | AF62: B | AG62: B | AH62: B | AI62: B | AJ62: B | AK62: B | AL62: B
B63: =Base!A62 -> 0 | C63: B | D63: B | E63: B | F63: B | G63: B | H63: B | I63: B | J63: B | K63: B | L63: B | M63: B | N63: B | O63: B | P63: B | Q63: B | R63: B | S63: B | T63: B | U63: B | V63: B | W63: B | X63: B | Y63: B | Z63: B | AA63: B | AB63: B | AC63: B | AD63: B | AE63: B | AF63: B | AG63: B | AH63: B | AI63: B | AJ63: B | AK63: B | AL63: B
B64: =Base!A63 -> 0 | C64: B | D64: B | E64: B | F64: B | G64: B | H64: B | I64: B | J64: B | K64: B | L64: B | M64: B | N64: B | O64: B | P64: B | Q64: B | R64: B | S64: B | T64: B | U64: B | V64: B | W64: B | X64: B | Y64: B | Z64: B | AA64: B | AB64: B | AC64: B | AD64: B | AE64: B | AF64: B | AG64: B | AH64: B | AI64: B | AJ64: B | AK64: B | AL64: B
B65: =Base!A64 -> 0 | C65: B | D65: B | E65: B | F65: B | G65: B | H65: B | I65: B | J65: B | K65: B | L65: B | M65: B | N65: B | O65: B | P65: B | Q65: B | R65: B | S65: B | T65: B | U65: B | V65: B | W65: B | X65: B | Y65: B | Z65: B | AA65: B | AB65: B | AC65: B | AD65: B | AE65: B | AF65: B | AG65: B | AH65: B | AI65: B | AJ65: B | AK65: B | AL65: B
B66: =Base!A65 -> 0 | C66: B | D66: B | E66: B | F66: B | G66: B | H66: B | I66: B | J66: B | K66: B | L66: B | M66: B | N66: B | O66: B | P66: B | Q66: B | R66: B | S66: B | T66: B | U66: B | V66: B | W66: B | X66: B | Y66: B | Z66: B | AA66: B | AB66: B | AC66: B | AD66: B | AE66: B | AF66: B | AG66: B | AH66: B | AI66: B | AJ66: B | AK66: B | AL66: B
B67: =Base!A66 -> 0 | C67: B | D67: B | E67: B | F67: B | G67: B | H67: B | I67: B | J67: B | K67: B | L67: B | M67: B | N67: B | O67: B | P67: B | Q67: B | R67: B | S67: B | T67: B | U67: B | V67: B | W67: B | X67: B | Y67: B | Z67: B | AA67: B | AB67: B | AC67: B | AD67: B | AE67: B
B68: =Base!A67 -> 0 | AA68: B | AB68: B | AC68: B | AD68: B | AE68: B
B69: =Base!A68 -> 0 | AA69: B | AB69: B | AC69: B | AD69: B | AE69: B
B70: =Base!A69 -> 0
C71: =COUNTIF(C2:C70,"B") -> 60 | D71: 60 | E71: 60 | F71: 60 | G71: 60 | H71: 60 | I71: 60 | J71: 60 | K71: 60 | L71: 60 | M71: 60 | N71: 60 | O71: 60 | P71: 60 | Q71: 60 | R71: 60 | S71: 60 | T71: 60 | U71: 60 | V71: 60 | W71: 60 | X71: 60 | Y71: 60 | Z71: 61 | AA71: 63 | AB71: 63 | AC71: 63 | AD71: 63 | AE71: 64 | AF71: 60 | AG71: 59 | AH71: 59 | AI71: =COUNTIF(AI2:AI70,"B") -> 59 | AJ71: 59 | AK71: 59 | AL71: 59 | AM71: 55 | AN71: 56 | AO71: 56 | AP71: 56 | AQ71: 56 | AR71: 56 | AS71: 56 | AT71: 56 | AU71: 56 | AV71: 52 | AW71: 51 | AX71: 51 | AY71: 51 | AZ71: 51 | BA71: 50 | BB71: 50 | BC71: 49 | BD71: 48 | BE71: 48 | BF71: 48 | BG71: 48 | BH71: 48 | BI71: 47 | BJ71: 48 | BK71: 47 | BL71: 48 | BM71: 47 | BN71: 47 | BO71: =COUNTIF(BO2:BO70,"B") -> 47 | BP71: 47 | BQ71: 47 | BR71: 47 | BS71: 47 | BT71: 47 | BU71: 47 | BV71: 50 | BW71: 50 | BX71: 49 | BY71: 51 | BZ71: 51 | CA71: 51 | CB71: 51 | CC71: 50 | CD71: 51 | CE71: 51 | CF71: 51 | CG71: 51 | CH71: 52 | CI71: 52 | CJ71: 51 | CK71: 51 | CL71: 51 | CM71: 51 | CN71: 51 | CO71: 51 | CP71: 55 | CQ71: 56 | CR71: 56 | CS71: 56 | CT71: 56 | CU71: =COUNTIF(CU2:CU70,"B") -> 55 | CV71: 54 | CW71: 54 | CX71: 54 | CY71: 54 | CZ71: 54 | DA71: 52 | DB71: 52 | DC71: 52 | DD71: 51 | DE71: 51 | DF71: 45 | DG71: 36 | DH71: 24 | DI71: 22 | DJ71: 16 | DK71: 13 | DL71: 12 | DM71: 9 | DN71: 8 | DO71: 8 | DP71: =COUNTIF(DP2:DP70,"B") -> 2 | DQ71: 2 | DR71: 1 | DS71: 1 | DT71: 1 | DU71: 1 | DV71: 0 | DW71: =COUNTIF(CS2:DK60,"B") -> 851 | DX71: =SUM(CS71:DV71) -> 896

Sheet Kasa
A1: Datum | C1: omschrijvin uitgaven | D1: Uitgaven | E1: Op Lotto Rekenink | F1: Over gedraagen bank | G1: Saldo Bank | J1: lotto rek, | L1: Inkomme | N1: Over
A2: 2016-01-13 | C2: Krans D'Hont | D2: 30 | E2: 381 | F2: =SUM(Brerekenig!10:10) -> 8880 | G2: =F2-SUM(Brerekenig!11:11) -> 520 | J2: =Brerekenig!BF15 -> 520 | L2: Ledden | M2: uitgaven Lotto | N2: Thuis
A3: 2016-01-14 | C3: Inkt + Papier | D3: 74 | E3: 2017-01-21 | F3: aankoop printer | G3: 150 | L3: =SUM(Brerekenig!$3:$3) -> 7759 | M3: =SUM(Brerekenig!$2:$2) -> 5838 | N3: =Betaalt!DX3 -> 120
A4: 2016-12-09 | C4: Inkt + Papier | D4: 74 | E4: 2017-06-18 | F4: Zaal souper | G4: 180 | L4: reserve Nr | M4: Uitgaven Reserve Nr
A5: 2017-01-21 | C5: aankoop printer | D5: 150 | E5: 2018-02-17 | F5: uitbetaling lotto winsten | G5: 7250 | L5: =SUM(Brerekenig!$7:$7) -> 8598 | M5: =SUM(Brerekenig!$8:$8) -> 4905 | N5: =L5-M5-Brerekenig!BC13-1100 -> 246
A6: 2016-09-24 | C6: Vergadering | D6: 22 | E6: 2018-03-17 | L6: Totaal Winst Lotto | M6: Winst Reserve Nrs
A7: 2017-01-01 | C7: Bank Kosten | D7: 10 | J7: Totaal Uitgaven Kosten | K7: =SUM(D2:D21) -> 1210 | L7: =SUM(Brerekenig!$4:$4) -> 7545.4 | M7: =SUM(Brerekenig!9:9) -> 3479
A8: 2017-04-20 | C8: vergadering souper | D8: 20 | J8: vershil lotto rekening en | L8: =E2 -> 381 | N8: =N3+N5 -> 366 | O8: Tot. Thuis
A9: 2017-05-10 | C9: bbq tombola | D9: 70 | J9: winst lotto naar Bank derekenig | L9: =L7-L8 -> 7164.4
A10: 2017-05-10 | C10: Dj +Maria accordéon | D10: 65
A11: 2017-11-25 | C11: prijs Bingo | D11: 42.42 | F11: Betaalt met bank | G11: =SUM(G3:G10) -> 7580
A12: 2017-12-30 | C12: krasloten voor winnaar res, | D12: 40
A13: 2018-01-02 | C13: Inkt + Papier xl | D13: 72
A14: 2018-01-05 | C14: prijzen bingo | D14: 24
A15: 2018-01-05 | C15: prijs Bingo | D15: 50
A16: 2018-01-25 | C16: prijzen bingo | D16: 34.58
A17: 2018-01-05 | C17: 50 E omloop Cadeau Bons | D17: 50
A18: 2018-03-17 | C18: eten soupe | D18: 382
A19: 2018-01-05
A20: 2018-01-05
C22: Totaal uitgaven | D22: =SUM(D2:D21) -> 1210

Sheet Brerekenig
A1: Datum+A:E | B1: 2016-05-21 | C1: =B1+7 -> 2016-05-28 | D1: =C1+7 -> 2016-06-04 | E1: =D1+7 -> 2016-06-11 | F1: 2016-06-18 | G1: 2016-06-25 | H1: 2016-07-02 | I1: 2016-07-09 | J1: 2016-07-16 | K1: 2016-07-23 | L1: 2016-07-30 | M1: 2016-08-06 | N1: 2016-08-13 | O1: 2016-08-20 | P1: 2016-08-27 | Q1: 2016-09-03 | R1: 2016-09-10 | S1: 2016-09-17 | T1: 2016-09-24 | U1: 2016-10-01 | V1: 2016-10-08 | W1: 2016-10-15 | X1: 2016-10-22 | Y1: 2016-10-29 | Z1: 2016-11-05 | AA1: 2016-11-12 | AB1: 2016-11-19 | AC1: 2016-11-26 | AD1: 2016-12-03 | AE1: =AD1+7 -> 2016-12-10 | AF1: 2016-12-17 | AG1: 2016-12-24 | AH1: 2016-12-31 | AI1: 2017-01-07 | AJ1: 2017-01-14 | AK1: 2017-01-21 | AL1: 2017-01-28 | AM1: 2017-02-04 | AN1: 2017-02-11 | AO1: 2017-02-18 | AP1: 2017-02-25 | AQ1: 2017-03-04 | AR1: 2017-03-11 | AS1: 2017-03-18 | AT1: 2017-03-25 | AU1: 2017-04-01 | AV1: 2017-04-08 | AW1: 2017-04-15 | AX1: 2017-04-22 | AY1: 2017-04-29 | AZ1: 2017-05-06 | BA1: =AZ1+7 -> 2017-05-13 | BB1: 2017-05-20 | BC1: 2017-05-27 | BD1: 2017-06-03 | BE1: 2017-06-10 | BF1: 2017-06-17 | BG1: 2017-06-24 | BH1: 2017-07-01 | BI1: 2017-07-08 | BJ1: 2017-07-15 | BK1: 2017-07-22 | BL1: 2017-07-29 | BM1: 2017-08-05 | BN1: 2017-08-12 | BO1: =BN1+7 -> 2017-08-19 | BP1: 2017-08-26 | BQ1: 2017-09-02 | BR1: 2017-09-09 | BS1: 2017-09-16 | BT1: 2017-09-23 | BU1: 2017-09-30 | BV1: 2017-10-07 | BW1: 2017-10-14 | BX1: 2017-10-21 | BY1: 2017-10-28 | BZ1: 2017-11-04 | CA1: 2017-11-11 | CB1: 2017-11-18 | CC1: 2017-11-25 | CD1: 2017-12-02 | CE1: 2017-12-09 | CF1: 2017-12-16 | CG1: 2017-12-23 | CH1: 2017-12-30 | CI1: 2018-01-06 | CJ1: 2018-01-13 | CK1: 2018-01-20 | CL1: 2018-01-27 | CM1: 2018-02-03 | CN1: 2018-02-10 | CO1: 2018-02-17 | CP1: 2018-02-24 | CQ1: 2018-03-03 | CR1: 2018-03-10 | CS1: 2018-03-17 | CT1: 2018-03-24 | CU1: 2018-03-31 | CV1: 2018-04-07 | CW1: 2018-04-14 | CX1: 2018-04-21 | CY1: 2018-04-28 | CZ1: 2018-05-05 | DA1: 2018-05-12 | DB1: 2018-05-19 | DC1: 2018-05-26 | DD1: 2018-06-02 | DE1: 2018-06-09 | DF1: 2018-06-16 | DG1: 2018-06-23 | DH1: 2018-06-30 | DI1: 2018-07-07 | DJ1: =DI1+7 -> 2018-07-14 | DK1: =DJ1+7 -> 2018-07-21 | DL1: =DK1+7 -> 2018-07-28 | DM1: =DL1+7 -> 2018-08-04 | DN1: =DM1+7 -> 2018-08-11 | DO1: =DN1+7 -> 2018-08-18 | DP1: =DO1+7 -> 2018-08-25 | DQ1: =DP1+7 -> 2018-09-01 | DR1: =DQ1+7 -> 2018-09-08 | DS1: =DR1+7 -> 2018-09-15 | DT1: =DS1+7 -> 2018-09-22 | DU1: =DT1+7 -> 2018-09-29 | DV1: =DU1+7 -> 2018-10-06 | DW1: =DV1+7 -> 2018-10-13 | DX1: =DW1+7 -> 2018-10-20 | DY1: =DX1+7 -> 2018-10-27 | DZ1: =DY1+7 -> 2018-11-03 | EA1: =DZ1+7 -> 2018-11-10 | EB1: =EA1+7 -> 2018-11-17 | EC1: =EB1+7 -> 2018-11-24 | ED1: =EC1+7 -> 2018-12-01 | EE1: =ED1+7 -> 2018-12-08 | EF1: =EE1+7 -> 2018-12-15 | EG1: =EF1+7 -> 2018-12-22 | EH1: =EG1+7 -> 2018-12-29 | EI1: =EH1+7 -> 2019-01-05 | EJ1: =EI1+7 -> 2019-01-12 | EK1: =EJ1+7 -> 2019-01-19 | EL1: =EK1+7 -> 2019-01-26 | EM1: =EL1+7 -> 2019-02-02 | EN1: =EM1+7 -> 2019-02-09 | EO1: =EN1+7 -> 2019-02-16 | EP1: =EO1+7 -> 2019-02-23 | EQ1: =EP1+7 -> 2019-03-02 | ER1: =EQ1+7 -> 2019-03-09 | ES1: =ER1+7 -> 2019-03-16 | ET1: =ES1+7 -> 2019-03-23 | EU1: =ET1+7 -> 2019-03-30 | EV1: =EU1+7 -> 2019-04-06 | EW1: =EV1+7 -> 2019-04-13 | EX1: =EW1+7 -> 2019-04-20 | EY1: =EX1+7 -> 2019-04-27 | EZ1: =EY1+7 -> 2019-05-04 | FA1: =EZ1+7 -> 2019-05-11 | FB1: =FA1+7 -> 2019-05-18 | FC1: =FB1+7 -> 2019-05-25 | FD1: =FC1+7 -> 2019-06-01 | FE1: =FD1+7 -> 2019-06-08 | FF1: =FE1+7 -> 2019-06-15 | FG1: =FF1+7 -> 2019-06-22 | FH1: =FG1+7 -> 2019-06-29 | FI1: =FH1+7 -> 2019-07-06 | FJ1: =FI1+7 -> 2019-07-13
A2: Betaling Lotto | B2: 56 | C2: 56 | D2: 56 | E2: 56 | F2: 56 | G2: 56 | H2: 56 | I2: 56 | J2: 56 | K2: 56 | L2: 56 | M2: 56 | N2: 56 | O2: 56 | P2: 56 | Q2: 56 | R2: 56 | S2: 56 | T2: 56 | U2: 56 | V2: 56 | W2: 56 | X2: 56 | Y2: 56 | Z2: 56 | AA2: 56 | AB2: 56 | AC2: 56 | AD2: 56 | AE2: 56 | AF2: 56 | AG2: 56 | AH2: 56 | AI2: 56 | AJ2: 56 | AK2: 56 | AL2: 56 | AM2: 56 | AN2: 56 | AO2: 56 | AP2: 56 | AQ2: 56 | AR2: 56 | AS2: 56 | AT2: 56 | AU2: 56 | AV2: 56 | AW2: 56 | AX2: 56 | AY2: 56 | AZ2: 56 | BA2: 56 | BB2: 56 | BC2: 56 | BD2: 56 | BE2: 56 | BF2: 56 | BG2: 56 | BH2: 56 | BI2: 56 | BJ2: 56 | BK2: 56 | BL2: 56 | BM2: 56 | BN2: 56 | BO2: 56 | BQ2: 56 | BR2: 56 | BS2: 56 | BT2: 56 | BU2: 56 | BV2: 56 | BW2: 56 | BX2: 56 | BY2: 56 | BZ2: 56 | CA2: 56 | CB2: 56 | CC2: 56 | CD2: 56 | CE2: 56 | CF2: 56 | CG2: 56 | CH2: 56 | CI2: 56 | CJ2: 56 | CK2: 56 | CL2: 56 | CN2: 56 | CP2: 56 | CQ2: 56 | CR2: 56 | CS2: 56 | CT2: 56 | CU2: 56 | CV2: 56 | CW2: 56 | CX2: 56 | CY2: 56 | CZ2: 56 | DA2: 56 | DB2: 56 | DC2: 56 | DD2: 70
A3: Inkommen Lotto | B3: =Betaalt!C71 -> 60 | C3: =Betaalt!D71 -> 60 | D3: =Betaalt!E71 -> 60 | E3: =Betaalt!F71 -> 60 | F3: =Betaalt!G71 -> 60 | G3: =Betaalt!H71 -> 60 | H3: =Betaalt!I71 -> 60 | I3: =Betaalt!J71 -> 60 | J3: =Betaalt!K71 -> 60 | K3: =Betaalt!L71 -> 60 | L3: =Betaalt!M71 -> 60 | M3: =Betaalt!N71 -> 60 | N3: =Betaalt!O71 -> 60 | O3: =Betaalt!P71 -> 60 | P3: =Betaalt!Q71 -> 60 | Q3: =Betaalt!R71 -> 60 | R3: =Betaalt!S71 -> 60 | S3: =Betaalt!T71 -> 60 | T3: =Betaalt!U71 -> 60 | U3: =Betaalt!V71 -> 60 | V3: =Betaalt!W71 -> 60 | W3: =Betaalt!X71 -> 60 | X3: =Betaalt!Y71 -> 60 | Y3: =Betaalt!Z71 -> 61 | Z3: =Betaalt!AA71 -> 63 | AA3: =Betaalt!AB71 -> 63 | AB3: =Betaalt!AC71 -> 63 | AC3: =Betaalt!AD71 -> 63 | AD3: =Betaalt!AE71 -> 64 | AE3: =Betaalt!AF71 -> 60 | AF3: =Betaalt!AG71 -> 59 | AG3: =Betaalt!AH71 -> 59 | AH3: =Betaalt!AI71 -> 59 | AI3: =Betaalt!AJ71 -> 59 | AJ3: =Betaalt!AK71 -> 59 | AK3: =Betaalt!AL71 -> 59 | AL3: =Betaalt!AM71 -> 55 | AM3: =Betaalt!AN71 -> 56 | AN3: =Betaalt!AO71 -> 56 | AO3: =Betaalt!AP71 -> 56 | AP3: =Betaalt!AQ71 -> 56 | AQ3: =Betaalt!AR71 -> 56 | AR3: =Betaalt!AS71 -> 56 | AS3: =Betaalt!AT71 -> 56 | AT3: =Betaalt!AU71 -> 56 | AU3: =Betaalt!AV71 -> 52 | AV3: =Betaalt!AW71 -> 51 | AW3: =Betaalt!AX71 -> 51 | AX3: =Betaalt!AY71 -> 51 | AY3: =Betaalt!AZ71 -> 51 | AZ3: =Betaalt!BA71 -> 50 | BA3: =Betaalt!BB71 -> 50 | BB3: =Betaalt!BC71 -> 49 | BC3: =Betaalt!BD71 -> 48 | BD3: =Betaalt!BE71 -> 48 | BE3: =Betaalt!BF71 -> 48 | BF3: =Betaalt!BG71 -> 48 | BG3: =Betaalt!BH71 -> 48 | BH3: =Betaalt!BI71 -> 47 | BI3: =Betaalt!BJ71 -> 48 | BJ3: =Betaalt!BK71 -> 47 | BK3: =Betaalt!BL71 -> 48 | BL3: =Betaalt!BM71 -> 47 | BM3: =Betaalt!BN71 -> 47 | BN3: =Betaalt!BO71 -> 47 | BO3: =Betaalt!BP71 -> 47 | BP3: =Betaalt!BQ71 -> 47 | BQ3: =Betaalt!BR71 -> 47 | BR3: =Betaalt!BS71 -> 47 | BS3: =Betaalt!BT71 -> 47 | BT3: =Betaalt!BU71 -> 47 | BU3: =Betaalt!BV71 -> 50 | BV3: =Betaalt!BW71 -> 50 | BW3: =Betaalt!BX71 -> 49 | BX3: =Betaalt!BY71 -> 51 | BY3: =Betaalt!BZ71 -> 51 | BZ3: =Betaalt!CA71 -> 51 | CA3: =Betaalt!CB71 -> 51 | CB3: =Betaalt!CC71 -> 50 | CC3: =Betaalt!CD71 -> 51 | CD3: =Betaalt!CE71 -> 51 | CE3: =Betaalt!CF71 -> 51 | CF3: =Betaalt!CG71 -> 51 | CG3: =Betaalt!CH71 -> 52 | CH3: =Betaalt!CI71 -> 52 | CI3: =Betaalt!CJ71 -> 51 | CJ3: =Betaalt!CK71 -> 51 | CK3: =Betaalt!CL71 -> 51 | CL3: =Betaalt!CM71 -> 51 | CM3: =Betaalt!CN71 -> 51 | CN3: =Betaalt!CO71 -> 51 | CO3: =Betaalt!CP71 -> 55 | CP3: =Betaalt!CQ71 -> 56 | CQ3: =Betaalt!CR71 -> 56 | CR3: =Betaalt!CS71 -> 56 | CS3: =Betaalt!CT71 -> 56 | CT3: =Betaalt!CU71 -> 55 | CU3: =Betaalt!CV71 -> 54 | CV3: =Betaalt!CW71 -> 54 | CW3: =Betaalt!CX71 -> 54 | CX3: =Betaalt!CY71 -> 54 | CY3: =Betaalt!CZ71 -> 54 | CZ3: =Betaalt!DA71 -> 52 | DA3: =Betaalt!DB71 -> 52 | DB3: =Betaalt!DC71 -> 52 | DC3: =Betaalt!DD71 -> 51 | DD3: =Betaalt!DE71 -> 51 | DE3: =Betaalt!DF71 -> 45 | DF3: =Betaalt!DG71 -> 36 | DG3: =Betaalt!DH71 -> 24 | DH3: =Betaalt!DI71 -> 22 | DI3: =Betaalt!DJ71 -> 16 | DJ3: =Betaalt!DK71 -> 13 | DK3: =Betaalt!DL71 -> 12 | DL3: =Betaalt!DM71 -> 9 | DM3: =Betaalt!DN71 -> 8 | DN3: =Betaalt!DO71 -> 8 | DO3: =Betaalt!DP71 -> 2 | DP3: =Betaalt!DQ71 -> 2 | DQ3: =Betaalt!DR71 -> 1 | DR3: =Betaalt!DS71 -> 1 | DS3: =Betaalt!DT71 -> 1 | DT3: =Betaalt!DU71 -> 1 | DU3: =Betaalt!DV71 -> 0 | DV3: =Betaalt!DW71 -> 851 | DW3: =Betaalt!DX71 -> 896 | DX3: =Betaalt!DY71 -> 0 | DY3: =Betaalt!DZ71 -> 0 | DZ3: =Betaalt!EA71 -> 0 | EA3: =Betaalt!EB71 -> 0 | EB3: =Betaalt!EC71 -> 0 | EC3: =Betaalt!ED71 -> 0 | ED3: =Betaalt!EE71 -> 0 | EE3: =Betaalt!EF71 -> 0 | EF3: =Betaalt!EG71 -> 0 | EG3: =Betaalt!EH71 -> 0 | EH3: =Betaalt!EI71 -> 0 | EI3: =Betaalt!EJ71 -> 0 | EJ3: =Betaalt!EK71 -> 0 | EK3: =Betaalt!EL71 -> 0 | EL3: =Betaalt!EM71 -> 0 | EM3: =Betaalt!EN71 -> 0 | EN3: =Betaalt!EO71 -> 0 | EO3: =Betaalt!EP71 -> 0 | EP3: =Betaalt!EQ71 -> 0 | EQ3: =Betaalt!ER71 -> 0 | ER3: =Betaalt!ES71 -> 0 | ES3: =Betaalt!ET71 -> 0 | ET3: =Betaalt!EU71 -> 0 | EU3: =Betaalt!EV71 -> 0 | EV3: =Betaalt!EW71 -> 0 | EW3: =Betaalt!EX71 -> 0 | EX3: =Betaalt!EY71 -> 0 | EY3: =Betaalt!EZ71 -> 0 | EZ3: =Betaalt!FA71 -> 0 | FA3: =Betaalt!FB71 -> 0 | FB3: =Betaalt!FC71 -> 0 | FC3: =Betaalt!FD71 -> 0 | FD3: =Betaalt!FE71 -> 0 | FE3: =Betaalt!FF71 -> 0 | FF3: =Betaalt!FG71 -> 0 | FG3: =Betaalt!FH71 -> 0 | FH3: =Betaalt!FI71 -> 0 | FI3: =Betaalt!FJ71 -> 0 | FJ3: =Betaalt!FK71 -> 0
A4: Winst Lotto | I4: 92 | N4: 5 | O4: 18 | P4: 30 | U4: 50 | AD4: 80 | AR4: 30 | AU4: 50 | AV4: 30 | AY4: 50 | AZ4: 30 | BI4: 109.4 | BJ4: 50 | BS4: 112 | BW4: 30 | CA4: 30 | CE4: 30 | CG4: 30 | CN4: 6383 | CS4: 237 | CX4: 50 | DC4: 19
A5: Inkommen Reserve Nr1 | B5: ='Reserve Nr1'!C47 -> 45 | C5: ='Reserve Nr1'!D47 -> 45 | D5: ='Reserve Nr1'!E47 -> 45 | E5: ='Reserve Nr1'!F47 -> 45 | F5: ='Reserve Nr1'!G47 -> 45 | G5: ='Reserve Nr1'!H47 -> 45 | H5: ='Reserve Nr1'!I47 -> 45 | I5: ='Reserve Nr1'!J47 -> 45 | J5: ='Reserve Nr1'!K47 -> 0 | K5: ='Reserve Nr1'!L47 -> 0 | L5: ='Reserve Nr1'!M47 -> 45 | M5: ='Reserve Nr1'!N47 -> 0 | N5: ='Reserve Nr1'!O47 -> 45 | O5: ='Reserve Nr1'!P47 -> 45 | P5: ='Reserve Nr1'!Q47 -> 45 | Q5: ='Reserve Nr1'!R47 -> 45 | R5: ='Reserve Nr1'!S47 -> 45 | S5: ='Reserve Nr1'!T47 -> 45 | T5: ='Reserve Nr1'!U47 -> 45 | U5: ='Reserve Nr1'!V47 -> 45 | V5: ='Reserve Nr1'!W47 -> 45 | W5: ='Reserve Nr1'!X47 -> 45 | X5: ='Reserve Nr1'!Y47 -> 45 | Y5: ='Reserve Nr1'!Z47 -> 45 | Z5: ='Reserve Nr1'!AA47 -> 45 | AA5: ='Reserve Nr1'!AB47 -> 45 | AB5: ='Reserve Nr1'!AC47 -> 45 | AC5: ='Reserve Nr1'!AD47 -> 45 | AD5: ='Reserve Nr1'!AE47 -> 45 | AE5: ='Reserve Nr1'!AF47 -> 45 | AF5: ='Reserve Nr1'!AG47 -> 45 | AG5: ='Reserve Nr1'!AH47 -> 45 | AH5: ='Reserve Nr1'!AI47 -> 45 | AI5: ='Reserve Nr1'!AJ47 -> 45 | AJ5: ='Reserve Nr1'!AK47 -> 45 | AK5: ='Reserve Nr1'!AL47 -> 45 | AL5: ='Reserve Nr1'!AM47 -> 45 | AM5: ='Reserve Nr1'!AN47 -> 45 | AN5: ='Reserve Nr1'!AO47 -> 45 | AO5: ='Reserve Nr1'!AP47 -> 45 | AP5: ='Reserve Nr1'!AQ47 -> 45 | AQ5: ='Reserve Nr1'!AR47 -> 45 | AR5: ='Reserve Nr1'!AS47 -> 45 | AS5: ='Reserve Nr1'!AT47 -> 45 | AT5: ='Reserve Nr1'!AU47 -> 45 | AU5: ='Reserve Nr1'!AV47 -> 45 | AV5: ='Reserve Nr1'!AW47 -> 45 | AW5: ='Reserve Nr1'!AX47 -> 45 | AX5: ='Reserve Nr1'!AY47 -> 45 | AY5: ='Reserve Nr1'!AZ47 -> 45 | AZ5: ='Reserve Nr1'!BA47 -> 45 | BA5: ='Reserve Nr1'!BB47 -> 45 | BB5: ='Reserve Nr1'!BC47 -> 45 | BC5: ='Reserve Nr1'!BD47 -> 45 | BD5: ='Reserve Nr1'!BE47 -> 45 | BE5: ='Reserve Nr1'!BF47 -> 45 | BF5: ='Reserve Nr1'!BG47 -> 45 | BG5: ='Reserve Nr1'!BH47 -> 45 | BH5: ='Reserve Nr1'!BI47 -> 45 | BI5: ='Reserve Nr1'!BJ47 -> 45 | BJ5: ='Reserve Nr1'!BK47 -> 45 | BK5: ='Reserve Nr1'!BL47 -> 45 | BL5: ='Reserve Nr1'!BM47 -> 45 | BM5: ='Reserve Nr1'!BN47 -> 0 | BN5: ='Reserve Nr1'!BO47 -> 45 | BO5: ='Reserve Nr1'!BP47 -> 45 | BP5: ='Reserve Nr1'!BQ47 -> 45 | BQ5: ='Reserve Nr1'!BR47 -> 45 | BR5: ='Reserve Nr1'!BS47 -> 45 | BS5: ='Reserve Nr1'!BT47 -> 45 | BT5: ='Reserve Nr1'!BU47 -> 45 | BU5: ='Reserve Nr1'!BV47 -> 45 | BV5: ='Reserve Nr1'!BW47 -> 45 | BW5: ='Reserve Nr1'!BX47 -> 45 | BX5: ='Reserve Nr1'!BY47 -> 45 | BY5: ='Reserve Nr1'!BZ47 -> 45 | BZ5: ='Reserve Nr1'!CA47 -> 45 | CA5: ='Reserve Nr1'!CB47 -> 45 | CB5: ='Reserve Nr1'!CC47 -> 45 | CC5: ='Reserve Nr1'!CD47 -> 45 | CD5: ='Reserve Nr1'!CE47 -> 45 | CE5: ='Reserve Nr1'!CF47 -> 45 | CF5: ='Reserve Nr1'!CG47 -> 45 | CG5: ='Reserve Nr1'!CH47 -> 45 | CH5: ='Reserve Nr1'!CI47 -> 45 | CI5: ='Reserve Nr1'!CJ47 -> 45 | CJ5: ='Reserve Nr1'!CK47 -> 45 | CK5: ='Reserve Nr1'!CL47 -> 45 | CL5: ='Reserve Nr1'!CM47 -> 45 | CM5: ='Reserve Nr1'!CN47 -> 45 | CN5: ='Reserve Nr1'!CO47 -> 45 | CO5: ='Reserve Nr1'!CP47 -> 45 | CP5: ='Reserve Nr1'!CQ47 -> 45 | CQ5: ='Reserve Nr1'!CR47 -> 45 | CR5: ='Reserve Nr1'!CS47 -> 45 | CS5: ='Reserve Nr1'!CT47 -> 45 | CT5: ='Reserve Nr1'!CU47 -> 45 | CU5: ='Reserve Nr1'!CV47 -> 45 | CV5: ='Reserve Nr1'!CW47 -> 45 | CW5: ='Reserve Nr1'!CX47 -> 45 | CX5: ='Reserve Nr1'!CY47 -> 45 | CY5: ='Reserve Nr1'!CZ47 -> 45 | CZ5: ='Reserve Nr1'!DA47 -> 45 | DA5: ='Reserve Nr1'!DB47 -> 45 | DB5: ='Reserve Nr1'!DC47 -> 45 | DC5: ='Reserve Nr1'!DD47 -> 45 | DD5: ='Reserve Nr1'!DE47 -> 45 | DE5: ='Reserve Nr1'!DF47 -> 45 | DF5: ='Reserve Nr1'!DG47 -> 8 | DG5: ='Reserve Nr1'!DH47 -> 8 | DH5: ='Reserve Nr1'!DI47 -> 8 | DI5: ='Reserve Nr1'!DJ47 -> 7 | DJ5: ='Reserve Nr1'!DK47 -> 1 | DK5: ='Reserve Nr1'!DL47 -> 0 | DL5: ='Reserve Nr1'!DM47 -> 0 | DM5: ='Reserve Nr1'!DN47 -> 0 | DN5: ='Reserve Nr1'!DO47 -> 0 | DO5: ='Reserve Nr1'!DP47 -> 0 | DP5: ='Reserve Nr1'!DQ47 -> 0 | DQ5: ='Reserve Nr1'!FH47 -> 0 | DR5: ='Reserve Nr1'!FI47 -> 0 | DS5: ='Reserve Nr1'!FJ47 -> 0 | DT5: ='Reserve Nr1'!FK47 -> 0 | DU5: ='Reserve Nr1'!FL47 -> 0 | DV5: ='Reserve Nr1'!FM47 -> 0 | DW5: ='Reserve Nr1'!FN47 -> 0 | DX5: ='Reserve Nr1'!FO47 -> 0 | DY5: ='Reserve Nr1'!FP47 -> 0 | DZ5: ='Reserve Nr1'!FQ47 -> 0 | EA5: ='Reserve Nr1'!FR47 -> 0 | EB5: ='Reserve Nr1'!FS47 -> 0 | EC5: ='Reserve Nr1'!FT47 -> 0 | ED5: ='Reserve Nr1'!FU47 -> 0 | EE5: ='Reserve Nr1'!FV47 -> 0 | EF5: ='Reserve Nr1'!FW47 -> 0 | EG5: ='Reserve Nr1'!FX47 -> 0 | EH5: ='Reserve Nr1'!FY47 -> 0 | EI5: ='Reserve Nr1'!FZ47 -> 0 | EJ5: ='Reserve Nr1'!GA47 -> 0 | EK5: ='Reserve Nr1'!GB47 -> 0 | EL5: ='Reserve Nr1'!GC47 -> 0 | EM5: ='Reserve Nr1'!GD47 -> 0 | EN5: ='Reserve Nr1'!GE47 -> 0 | EO5: ='Reserve Nr1'!GF47 -> 0 | EP5: ='Reserve Nr1'!GG47 -> 0 | EQ5: ='Reserve Nr1'!GH47 -> 0 | ER5: ='Reserve Nr1'!GI47 -> 0 | ES5: ='Reserve Nr1'!GJ47 -> 0 | ET5: ='Reserve Nr1'!GK47 -> 0 | EU5: ='Reserve Nr1'!GL47 -> 0 | EV5: ='Reserve Nr1'!GM47 -> 0 | EW5: ='Reserve Nr1'!GN47 -> 0 | EX5: ='Reserve Nr1'!GO47 -> 0 | EY5: ='Reserve Nr1'!GP47 -> 0 | EZ5: ='Reserve Nr1'!GQ47 -> 0 | FA5: ='Reserve Nr1'!GR47 -> 0 | FB5: ='Reserve Nr1'!GS47 -> 0 | FC5: ='Reserve Nr1'!GT47 -> 0 | FD5: ='Reserve Nr1'!GU47 -> 0 | FE5: ='Reserve Nr1'!GV47 -> 0 | FF5: ='Reserve Nr1'!GW47 -> 0 | FG5: ='Reserve Nr1'!GX47 -> 0 | FH5: ='Reserve Nr1'!GY47 -> 0 | FI5: ='Reserve Nr1'!GZ47 -> 0 | FJ5: ='Reserve Nr1'!HA47 -> 0
A6: Inkommen Reserve Nr2 | B6: ='Reserve Nr2'!C47 -> 0 | C6: ='Reserve Nr2'!D47 -> 0 | D6: ='Reserve Nr2'!E47 -> 0 | E6: ='Reserve Nr2'!F47 -> 45 | F6: ='Reserve Nr2'!G47 -> 45 | G6: ='Reserve Nr2'!H47 -> 45 | H6: ='Reserve Nr2'!I47 -> 45 | I6: ='Reserve Nr2'!J47 -> 45 | J6: ='Reserve Nr2'!K47 -> 0 | K6: ='Reserve Nr2'!L47 -> 0 | L6: ='Reserve Nr2'!M47 -> 0 | M6: ='Reserve Nr2'!N47 -> 0 | N6: ='Reserve Nr2'!O47 -> 45 | O6: ='Reserve Nr2'!P47 -> 0 | P6: ='Reserve Nr2'!Q47 -> 0 | Q6: ='Reserve Nr2'!R47 -> 45 | R6: ='Reserve Nr2'!S47 -> 0 | S6: ='Reserve Nr2'!T47 -> 45 | T6: ='Reserve Nr2'!U47 -> 45 | U6: ='Reserve Nr2'!V47 -> 45 | V6: ='Reserve Nr2'!W47 -> 45 | W6: ='Reserve Nr2'!X47 -> 45 | X6: ='Reserve Nr2'!Y47 -> 45 | Y6: ='Reserve Nr2'!Z47 -> 45 | Z6: ='Reserve Nr2'!AA47 -> 45 | AA6: ='Reserve Nr2'!AB47 -> 45 | AB6: ='Reserve Nr2'!AC47 -> 45 | AC6: ='Reserve Nr2'!AD47 -> 45 | AD6: ='Reserve Nr2'!AE47 -> 45 | AE6: ='Reserve Nr2'!AF47 -> 45 | AF6: ='Reserve Nr2'!AG47 -> 45 | AG6: ='Reserve Nr2'!AH47 -> 45 | AH6: ='Reserve Nr2'!AI47 -> 45 | AI6: ='Reserve Nr2'!AJ47 -> 45 | AJ6: ='Reserve Nr2'!AK47 -> 45 | AK6: ='Reserve Nr2'!AL47 -> 0 | AL6: ='Reserve Nr2'!AM47 -> 0 | AM6: ='Reserve Nr2'!AN47 -> 45 | AN6: ='Reserve Nr2'!AO47 -> 45 | AO6: ='Reserve Nr2'!AP47 -> 45 | AP6: ='Reserve Nr2'!AQ47 -> 45 | AQ6: ='Reserve Nr2'!AR47 -> 45 | AR6: ='Reserve Nr2'!AS47 -> 45 | AS6: ='Reserve Nr2'!AT47 -> 45 | AT6: ='Reserve Nr2'!AU47 -> 0 | AU6: ='Reserve Nr2'!AV47 -> 45 | AV6: ='Reserve Nr2'!AW47 -> 45 | AW6: ='Reserve Nr2'!AX47 -> 45 | AX6: ='Reserve Nr2'!AY47 -> 45 | AY6: ='Reserve Nr2'!AZ47 -> 45 | AZ6: ='Reserve Nr2'!BA47 -> 45 | BA6: ='Reserve Nr2'!BB47 -> 45 | BB6: ='Reserve Nr2'!BC47 -> 45 | BC6: ='Reserve Nr2'!BD47 -> 45 | BD6: ='Reserve Nr2'!BE47 -> 45 | BE6: ='Reserve Nr2'!BF47 -> 45 | BF6: ='Reserve Nr2'!BG47 -> 45 | BG6: ='Reserve Nr2'!BH47 -> 45 | BH6: ='Reserve Nr2'!BI47 -> 45 | BI6: ='Reserve Nr2'!BJ47 -> 45 | BJ6: ='Reserve Nr2'!BK47 -> 45 | BK6: ='Reserve Nr2'!BL47 -> 45 | BL6: ='Reserve Nr2'!BM47 -> 45 | BM6: ='Reserve Nr2'!BN47 -> 0 | BN6: ='Reserve Nr2'!BO47 -> 45 | BO6: ='Reserve Nr2'!BP47 -> 45 | BP6: ='Reserve Nr2'!BQ47 -> 0 | BQ6: ='Reserve Nr2'!BR47 -> 45 | BR6: ='Reserve Nr2'!BS47 -> 45 | BS6: ='Reserve Nr2'!BT47 -> 45 | BT6: ='Reserve Nr2'!BU47 -> 45 | BU6: ='Reserve Nr2'!BV47 -> 45 | BV6: ='Reserve Nr2'!BW47 -> 45 | BW6: ='Reserve Nr2'!BX47 -> 0 | BX6: ='Reserve Nr2'!BY47 -> 45 | BY6: ='Reserve Nr2'!BZ47 -> 45 | BZ6: ='Reserve Nr2'!CA47 -> 45 | CA6: ='Reserve Nr2'!CB47 -> 45 | CB6: ='Reserve Nr2'!CC47 -> 45 | CC6: ='Reserve Nr2'!CD47 -> 45 | CD6: ='Reserve Nr2'!CE47 -> 45 | CE6: ='Reserve Nr2'!CF47 -> 45 | CF6: ='Reserve Nr2'!CG47 -> 0 | CG6: ='Reserve Nr2'!CH47 -> 0 | CH6: ='Reserve Nr2'!CI47 -> 45 | CI6: ='Reserve Nr2'!CJ47 -> 0 | CJ6: ='Reserve Nr2'!CK47 -> 45 | CK6: ='Reserve Nr2'!CL47 -> 38 | CL6: ='Reserve Nr2'!CM47 -> 45 | CM6: ='Reserve Nr2'!CN47 -> 31 | CN6: ='Reserve Nr2'!CO47 -> 45 | CO6: ='Reserve Nr2'!CP47 -> 45 | CP6: ='Reserve Nr2'!CQ47 -> 38 | CQ6: ='Reserve Nr2'!CR47 -> 42 | CR6: ='Reserve Nr2'!CS47 -> 45 | CS6: ='Reserve Nr2'!CT47 -> 45 | CT6: ='Reserve Nr2'!CU47 -> 39 | CU6: ='Reserve Nr2'!CV47 -> 33 | CV6: ='Reserve Nr2'!CW47 -> 33 | CW6: ='Reserve Nr2'!CX47 -> 45 | CX6: ='Reserve Nr2'!CY47 -> 30 | CY6: ='Reserve Nr2'!CZ47 -> 41 | CZ6: ='Reserve Nr2'!DA47 -> 40 | DA6: ='Reserve Nr2'!DB47 -> 45 | DB6: ='Reserve Nr2'!DC47 -> 35 | DC6: ='Reserve Nr2'!DD47 -> 31 | DD6: ='Reserve Nr2'!DE47 -> 39 | DE6: ='Reserve Nr2'!DF47 -> 41 | DF6: ='Reserve Nr2'!DG47 -> 0 | DG6: ='Reserve Nr2'!DH47 -> 0 | DH6: ='Reserve Nr2'!DI47 -> 0 | DI6: ='Reserve Nr2'!DJ47 -> 0 | DJ6: ='Reserve Nr2'!DK47 -> 0 | DK6: ='Reserve Nr2'!DL47 -> 0 | DL6: ='Reserve Nr2'!DM47 -> 0 | DM6: ='Reserve Nr2'!DN47 -> 0 | DN6: ='Reserve Nr2'!DO47 -> 0 | DO6: ='Reserve Nr2'!DP47 -> 0 | DP6: ='Reserve Nr2'!DQ47 -> 0 | DQ6: ='Reserve Nr2'!DR47 -> 0 | DR6: ='Reserve Nr2'!DS47 -> 0 | DS6: ='Reserve Nr2'!DT47 -> 0 | DT6: ='Reserve Nr2'!DU47 -> 0 | DU6: ='Reserve Nr2'!DV47 -> 0 | DV6: ='Reserve Nr2'!DW47 -> 0 | DW6: ='Reserve Nr2'!DX47 -> 0 | DX6: ='Reserve Nr2'!DY47 -> 0 | DY6: ='Reserve Nr2'!DZ47 -> 0 | DZ6: ='Reserve Nr2'!EA47 -> 0 | EA6: ='Reserve Nr2'!EB47 -> 0 | EB6: ='Reserve Nr2'!EC47 -> 0 | EC6: ='Reserve Nr2'!ED47 -> 0 | ED6: ='Reserve Nr2'!EE47 -> 0 | EE6: ='Reserve Nr2'!EF47 -> 0 | EF6: ='Reserve Nr2'!EG47 -> 0 | EG6: ='Reserve Nr2'!EH47 -> 0 | EH6: ='Reserve Nr2'!EI47 -> 0 | EI6: ='Reserve Nr2'!EJ47 -> 0 | EJ6: ='Reserve Nr2'!EK47 -> 0 | EK6: ='Reserve Nr2'!EL47 -> 0 | EL6: ='Reserve Nr2'!EM47 -> 0 | EM6: ='Reserve Nr2'!EN47 -> 0 | EN6: ='Reserve Nr2'!EO47 -> 0 | EO6: ='Reserve Nr2'!EP47 -> 0 | EP6: ='Reserve Nr2'!EQ47 -> 0 | EQ6: ='Reserve Nr2'!ER47 -> 0 | ER6: ='Reserve Nr2'!ES47 -> 0 | ES6: ='Reserve Nr2'!ET47 -> 0 | ET6: ='Reserve Nr2'!EU47 -> 0 | EU6: ='Reserve Nr2'!EV47 -> 0 | EV6: ='Reserve Nr2'!EW47 -> 0 | EW6: ='Reserve Nr2'!EX47 -> 0 | EX6: ='Reserve Nr2'!EY47 -> 0 | EY6: ='Reserve Nr2'!EZ47 -> 0 | EZ6: ='Reserve Nr2'!FA47 -> 0 | FA6: ='Reserve Nr2'!FB47 -> 0 | FB6: ='Reserve Nr2'!FC47 -> 0 | FC6: ='Reserve Nr2'!FD47 -> 0 | FD6: ='Reserve Nr2'!FE47 -> 0 | FE6: ='Reserve Nr2'!FF47 -> 0 | FF6: ='Reserve Nr2'!FG47 -> 0 | FG6: ='Reserve Nr2'!FH47 -> 0 | FH6: ='Reserve Nr2'!FI47 -> 0 | FI6: ='Reserve Nr2'!FJ47 -> 0 | FJ6: ='Reserve Nr2'!FK47 -> 0
A7: Toto Reserve Nr | B7: =SUM(B5:B6) -> 45 | C7: =SUM(C5:C6) -> 45 | D7: 45 | E7: 90 | F7: 90 | G7: 90 | H7: 90 | I7: 90 | J7: 0 | K7: 0 | L7: 45 | M7: 0 | N7: 90 | O7: 45 | P7: 45 | Q7: 90 | R7: 45 | S7: 90 | T7: 90 | U7: 90 | V7: 90 | W7: 90 | X7: 90 | Y7: 90 | Z7: 90 | AA7: 90 | AB7: 90 | AC7: 90 | AD7: 90 | AE7: 90 | AF7: 90 | AG7: 90 | AH7: 90 | AI7: 90 | AJ7: 90 | AK7: 45 | AL7: 45 | AM7: 90 | AN7: 90 | AO7: 90 | AP7: 90 | AQ7: 90 | AR7: 90 | AS7: 90 | AT7: 45 | AU7: 90 | AV7: 90 | AW7: 90 | AX7: 90 | AY7: 90 | AZ7: 90 | BA7: 90 | BB7: 90 | BC7: 90 | BD7: 90 | BE7: 90 | BF7: 90 | BG7: 90 | BH7: 90 | BI7: 90 | BJ7: 90 | BK7: 90 | BL7: 90 | BM7: 0 | BN7: 90 | BO7: =SUM(BO5:BO6) -> 90 | BP7: 45 | BQ7: 90 | BR7: 90 | BS7: 90 | BT7: 90 | BU7: 90 | BV7: 90 | BW7: 45 | BX7: 90 | BY7: 90 | BZ7: 90 | CA7: 90 | CB7: 90 | CC7: 90 | CD7: 90 | CE7: 90 | CF7: 45 | CG7: 45 | CH7: 90 | CI7: 45 | CJ7: 90 | CK7: 83 | CL7: 90 | CM7: 76 | CN7: 90 | CO7: 90 | CP7: 83 | CQ7: 87 | CR7: 90 | CS7: 90 | CT7: 84 | CU7: 78 | CV7: 78 | CW7: 90 | CX7: 75 | CY7: 86 | CZ7: 85 | DA7: =SUM(DA5:DA6) -> 90 | DB7: 80 | DC7: 76 | DD7: 84 | DE7: 86 | DF7: 8 | DG7: 8 | DH7: 8 | DI7: 7 | DJ7: =SUM(DJ5:DJ6) -> 1 | DK7: =SUM(DK5:DK6) -> 0 | DL7: =SUM(DL5:DL6) -> 0 | DM7: 0 | DN7: 0 | DO7: 0 | DP7: 0 | DQ7: 0 | DR7: 0 | DS7: 0 | DT7: 0 | DU7: 0 | DV7: 0 | DW7: 0 | DX7: 0 | DY7: 0 | DZ7: 0 | EA7: 0 | EB7: 0 | EC7: 0 | ED7: 0 | EE7: 0 | EF7: 0 | EG7: 0 | EH7: 0 | EI7: 0 | EJ7: 0 | EK7: 0 | EL7: 0 | EM7: 0 | EN7: 0 | EO7: 0 | EP7: 0 | EQ7: 0 | ER7: 0 | ES7: 0 | ET7: 0 | EU7: 0 | EV7: 0 | EW7: 0 | EX7: 0 | EY7: 0 | EZ7: 0 | FA7: 0 | FB7: 0 | FC7: 0 | FD7: 0 | FE7: 0 | FF7: 0 | FG7: 0 | FH7: 0 | FI7: 0 | FJ7: 0
A8: Betaling Cadeau Bons | B8: =IF(B7=90,50)+IF(B7=45,25,0) -> 25 | C8: 25 | D8: 25 | E8: 50 | F8: 50 | G8: 50 | H8: 50 | I8: 50 | J8: 0 | K8: 0 | L8: 25 | M8: 0 | N8: 50 | O8: 25 | P8: 25 | Q8: 50 | R8: 25 | S8: 50 | T8: 50 | U8: 50 | V8: 50 | W8: 50 | X8: 50 | Y8: 50 | Z8: 50 | AA8: 50 | AB8: 50 | AC8: 50 | AD8: 50 | AE8: 50 | AF8: 50 | AG8: 90 | AH8: 90 | AI8: =IF(AI7=90,50)+IF(AI7=45,25,0) -> 50 | AJ8: 50 | AK8: 25 | AL8: 25 | AM8: 50 | AN8: 50 | AO8: 50 | AP8: 50 | AQ8: 50 | AR8: 50 | AS8: 50 | AT8: 25 | AU8: 50 | AV8: 50 | AW8: 50 | AX8: 50 | AY8: 50 | AZ8: 50 | BA8: 50 | BB8: 50 | BC8: 50 | BD8: 50 | BE8: 50 | BF8: 50 | BG8: 50 | BH8: 50 | BI8: 50 | BJ8: 50 | BK8: 50 | BL8: 50 | BM8: 0 | BN8: 50 | BO8: =IF(BO7=90,50)+IF(BO7=45,25,0) -> 50 | BP8: 25 | BQ8: 50 | BR8: 50 | BS8: 50 | BT8: 50 | BU8: 50 | BV8: 50 | BW8: 25 | BX8: 50 | BY8: 50 | BZ8: 50 | CA8: 50 | CB8: 50 | CC8: 50 | CD8: 50 | CE8: 50 | CF8: 25 | CG8: 25 | CH8: 50 | CI8: 25 | CJ8: 50 | CK8: =IF(CK7>70,50)+IF(CK7=45,25,0) -> 50 | CL8: =IF(CL7>70,50)+IF(CL7=45,25,0) -> 50 | CM8: 50 | CN8: 50 | CO8: 50 | CP8: 50 | CQ8: 50 | CR8: 50 | CS8: =IF(CS7>70,50)+IF(CS7=45,25,0) -> 50 | CT8: 50 | CU8: 50 | CV8: 50 | CW8: 50 | CX8: 50 | CY8: 50 | CZ8: 50 | DA8: 50 | DB8: 50 | DC8: 50 | DD8: 50 | DE8: 50 | DF8: 0 | DG8: 0 | DH8: 0 | DI8: 0 | DJ8: =IF(DJ7>70,50)+IF(DJ7=45,25,0) -> 0 | DK8: =IF(DK7>70,50)+IF(DK7=45,25,0) -> 0 | DL8: =IF(DL7>70,50)+IF(DL7=45,25,0) -> 0 | DM8: 0 | DN8: 0 | DO8: 0 | DP8: 0 | DQ8: 0 | DR8: 0 | DS8: 0 | DT8: 0 | DU8: 0 | DV8: 0 | DW8: 0 | DX8: 0 | DY8: 0 | DZ8: 0 | EA8: 0 | EB8: 0 | EC8: 0 | ED8: 0 | EE8: 0 | EF8: 0 | EG8: 0 | EH8: 0 | EI8: 0 | EJ8: 0 | EK8: 0 | EL8: 0 | EM8: 0 | EN8: 0 | EO8: 0 | EP8: 0 | EQ8: 0 | ER8: 0 | ES8: 0 | ET8: 0 | EU8: 0 | EV8: 0 | EW8: 0 | EX8: 0 | EY8: 0 | EZ8: 0 | FA8: 0 | FB8: 0 | FC8: 0 | FD8: 0 | FE8: 0 | FF8: 0 | FG8: 0 | FH8: 0 | FI8: 0 | FJ8: 0
A9: Winst Reserve | B9: =B7-B8 -> 20 | C9: =C7-C8 -> 20 | D9: 20 | E9: 40 | F9: 40 | G9: 40 | H9: 40 | I9: 40 | J9: 0 | K9: 0 | L9: 20 | M9: 0 | N9: 40 | O9: 20 | P9: 20 | Q9: 40 | R9: 20 | S9: 40 | T9: 40 | U9: 40 | V9: 40 | W9: 40 | X9: 40 | Y9: 40 | Z9: 40 | AA9: 40 | AB9: 40 | AC9: 40 | AD9: 40 | AE9: 40 | AF9: 40 | AG9: 0 | AH9: 0 | AI9: =AI7-AI8 -> 40 | AJ9: 40 | AK9: 20 | AL9: 20 | AM9: 40 | AN9: 40 | AO9: 40 | AP9: 40 | AQ9: 40 | AR9: 40 | AS9: 40 | AT9: 20 | AU9: 40 | AV9: 40 | AW9: 40 | AX9: 40 | AY9: 40 | AZ9: 40 | BA9: 40 | BB9: 40 | BC9: 40 | BD9: 40 | BE9: 40 | BF9: 40 | BG9: 40 | BH9: 40 | BI9: 40 | BJ9: 40 | BK9: 40 | BL9: 40 | BM9: =IF(BM5=45,BM7-BM8,"") ->  | BN9: =IF(BN5=45,BN7-BN8,"") -> 40 | BO9: 40 | BP9: 20 | BQ9: 40 | BR9: 40 | BS9: 40 | BT9: 40 | BU9: 40 | BV9: 40 | BW9: =IF(BW5=45,BW7-BW8-6,"") -> 14 | BX9: 34 | BY9: 34 | BZ9: 34 | CA9: 34 | CB9: 34 | CC9: =IF(CC5=45,CC7-CC8-5,"") -> 35 | CD9: =IF(CD5=45,CD7-CD8-5,"") -> 35 | CE9: =IF(CE5=45,CE7-CE8-4,"") -> 36 | CF9: =IF(CF5=45,CF7-CF8-4,"") -> 16 | CG9: =IF(CG5=45,CG7-CG8-4,"") -> 16 | CH9: =IF(CH5=45,CH7-CH8-3,"") -> 37 | CI9: =IF(CI5=45,CI7-CI8-3,"") -> 17 | CJ9: =IF(CJ5=45,CJ7-CJ8-5,"") -> 35 | CK9: =IF(CK5=45,CK7-CK8-5,"") -> 28 | CL9: =IF(CL5=45,CL7-CL8-5,"") -> 35 | CM9: =IF(CM5=45,CM7-CM8-5,"") -> 21 | CN9: =IF(CN5=45,CN7-CN8-4,"") -> 36 | CO9: 36 | CP9: =IF(CP5=45,CP7-CP8,"") -> 33 | CQ9: 33 | CR9: 36 | CS9: =IF(CS5=45,CS7-CS8-4,"") -> 36 | CT9: 30 | CU9: 24 | CV9: 24 | CW9: 36 | CX9: 21 | CY9: 32 | CZ9: 31 | DA9: 36 | DB9: 26 | DC9: =IF(DC5=45,DC7-DC8-14,"") -> 12 | DD9: =IF(DD5=45,DD7-DD8-14,"") -> 20 | DE9: 22 | DK9: =IF(DK5=45,DK7-DK8-14,"") ->  | DL9: =IF(DL5=45,DL7-DL8-14,"") -> 
A10: Naar De Bank | C10: 40 | E10: 40 | I10: 80 | M10: 40 | P10: 20 | R10: 40 | T10: 40 | W10: 140 | Z10: 80 | AA10: 160 | AJ10: 120 | BG10: 264 | BN10: 300 | BP10: 56 | BQ10: 100 | BU10: 40 | BV10: 100 | BW10: 175 | BZ10: 156 | CD10: 50 | CI10: 140 | CN10: 6383 | CO10: 306 | DA10: 10 | DJ10: =IF(DJ6=45,DJ8-DJ9-4,"") ->  | DK10: =IF(DK6=45,DK8-DK9-4,"") ->  | DL10: =IF(DL6=45,DL8-DL9-4,"") -> 
A11: Bank uitgaven | BC11: 10 | BF11: 180 | CA11: =IF(CA5=45,CA7-CA8,"") -> 40 | CB11: 40 | CC11: 40 | CD11: 40 | CE11: 40 | CF11: 20 | CP11: 7200 | CS11: 750 | DK11: =IF(DK7=45,DK9-DK10-4,"") -> 
BC13: 2347
A14: Uitbelaling <lotto winsten | CN14: 7250
BC15: Saldo bank | BF15: =SUM(10:10)-SUM(11:11) -> 520

Sheet Betalingen
D3: Nr | E3: =INDEX(Inschrijving,param_no_ligne) -> 38
D5: Naam & Voor naam | E5: =IF(param_no_ligne=0,"",INDEX(Naam,param_no_ligne)) -> Vandenabeele Luc
D6: Betaalt
E22: 5

Sheet Reserve Nr1
B1: Datum Nr | C1: 2016-05-21 | D1: =C1+7 -> 2016-05-28 | E1: =D1+7 -> 2016-06-04 | F1: 2016-06-11 | G1: 2016-06-18 | H1: 2016-06-25 | I1: 2016-07-02 | J1: 2016-07-09 | K1: 2016-07-16 | L1: 2016-07-23 | M1: 2016-07-30 | N1: 2016-08-06 | O1: 2016-08-13 | P1: 2016-08-20 | Q1: 2016-08-27 | R1: 2016-09-03 | S1: 2016-09-10 | T1: 2016-09-17 | U1: 2016-09-24 | V1: 2016-10-01 | W1: 2016-10-08 | X1: 2016-10-15 | Y1: 2016-10-22 | Z1: 2016-10-29 | AA1: 2016-11-05 | AB1: 2016-11-12 | AC1: 2016-11-19 | AD1: 2016-11-26 | AE1: 2016-12-03 | AF1: 2016-12-10 | AG1: 2016-12-17 | AH1: 2016-12-24 | AI1: 2016-12-31 | AJ1: 2017-01-07 | AK1: 2017-01-14 | AL1: 2017-01-21 | AM1: 2017-01-28 | AN1: 2017-02-04 | AO1: 2017-02-11 | AP1: 2017-02-18 | AQ1: 2017-02-25 | AR1: 2017-03-04 | AS1: 2017-03-11 | AT1: 2017-03-18 | AU1: 2017-03-25 | AV1: 2017-04-01 | AW1: 2017-04-08 | AX1: 2017-04-15 | AY1: 2017-04-22 | AZ1: 2017-04-29 | BA1: 2017-05-06 | BB1: 2017-05-13 | BC1: 2017-05-20 | BD1: 2017-05-27 | BE1: 2017-06-03 | BF1: 2017-06-10 | BG1: 2017-06-17 | BH1: 2017-06-24 | BI1: 2017-07-01 | BJ1: 2017-07-08 | BK1: 2017-07-15 | BL1: 2017-07-22 | BM1: 2017-07-29 | BN1: 2017-08-05 | BO1: 2017-08-12 | BP1: 2017-08-19 | BQ1: =BP1+7 -> 2017-08-26 | BR1: 2017-09-02 | BS1: 2017-09-09 | BT1: 2017-09-16 | BU1: 2017-09-23 | BV1: 2017-09-30 | BW1: 2017-10-07 | BX1: 2017-10-14 | BY1: 2017-10-21 | BZ1: 2017-10-28 | CA1: 2017-11-04 | CB1: 2017-11-11 | CC1: 2017-11-18 | CD1: 2017-11-25 | CE1: 2017-12-02 | CF1: 2017-12-09 | CG1: 2017-12-16 | CH1: 2017-12-23 | CI1: 2017-12-30 | CJ1: 2018-01-06 | CK1: 2018-01-13 | CL1: 2018-01-20 | CM1: =CL1+7 -> 2018-01-27 | CN1: 2018-02-03 | CO1: 2018-02-10 | CP1: 2018-02-17 | CQ1: 2018-02-24 | CR1: 2018-03-03 | CS1: 2018-03-10 | CT1: 2018-03-17 | CU1: 2018-03-24 | CV1: 2018-03-31 | CW1: 2018-04-07 | CX1: 2018-04-14 | CY1: =CX1+7 -> 2018-04-21 | CZ1: =CY1+7 -> 2018-04-28 | DA1: =CZ1+7 -> 2018-05-05 | DB1: =DA1+7 -> 2018-05-12 | DC1: =DB1+7 -> 2018-05-19 | DD1: =DC1+7 -> 2018-05-26 | DE1: =DD1+7 -> 2018-06-02 | DF1: =DE1+7 -> 2018-06-09 | DG1: =DF1+7 -> 2018-06-16 | DH1: =DG1+7 -> 2018-06-23 | DI1: =DH1+7 -> 2018-06-30 | DJ1: =DI1+7 -> 2018-07-07 | DK1: =DJ1+7 -> 2018-07-14 | DL1: =DK1+7 -> 2018-07-21 | DM1: =DL1+7 -> 2018-07-28 | DN1: =DM1+7 -> 2018-08-04 | DO1: =DN1+7 -> 2018-08-11 | DP1: =DO1+7 -> 2018-08-18 | DQ1: =DP1+7 -> 2018-08-25 | DR1: =DQ1+7 -> 2018-09-01 | DS1: =DR1+7 -> 2018-09-08 | DT1: =DS1+7 -> 2018-09-15 | DU1: =DT1+7 -> 2018-09-22 | DV1: =DU1+7 -> 2018-09-29 | DW1: =DV1+7 -> 2018-10-06 | DX1: =DW1+7 -> 2018-10-13 | DY1: =DX1+7 -> 2018-10-20 | DZ1: =DY1+7 -> 2018-10-27 | EA1: =DZ1+7 -> 2018-11-03 | EB1: =EA1+7 -> 2018-11-10 | EC1: =EB1+7 -> 2018-11-17 | ED1: =EC1+7 -> 2018-11-24 | EE1: =ED1+7 -> 2018-12-01 | EF1: =EE1+7 -> 2018-12-08 | EG1: =EF1+7 -> 2018-12-15 | EH1: =EG1+7 -> 2018-12-22 | EI1: =EH1+7 -> 2018-12-29 | EJ1: =EI1+7 -> 2019-01-05 | EK1: =EJ1+7 -> 2019-01-12 | EL1: =EK1+7 -> 2019-01-19 | EM1: =EL1+7 -> 2019-01-26 | EN1: =EM1+7 -> 2019-02-02 | EO1: =EN1+7 -> 2019-02-09 | EP1: =EO1+7 -> 2019-02-16 | EQ1: =EP1+7 -> 2019-02-23 | ER1: =EQ1+7 -> 2019-03-02 | ES1: =ER1+7 -> 2019-03-09 | ET1: =ES1+7 -> 2019-03-16 | EU1: =ET1+7 -> 2019-03-23 | EV1: =EU1+7 -> 2019-03-30 | EW1: =EV1+7 -> 2019-04-06 | EX1: =EW1+7 -> 2019-04-13 | EY1: =EX1+7 -> 2019-04-20 | EZ1: =EY1+7 -> 2019-04-27 | FA1: =EZ1+7 -> 2019-05-04 | FB1: =FA1+7 -> 2019-05-11 | FD1: Ga naar reserve N°2
A2: Frank | B2: 1 | C2: x | D2: x | E2: x | F2: x | G2: x | H2: x | I2: x | J2: x | M2: x | O2: x | P2: x | Q2: x | R2: x | S2: x | T2: x | U2: x | V2: x | W2: x | X2: x | Y2: x | Z2: x | AA2: x | AB2: x | AC2: x | AD2: x | AE2: x | AF2: x | AG2: x | AH2: x | AI2: x | AJ2: x | AK2: x | AL2: x | AM2: x | AN2: x | AO2: x | AP2: x | AQ2: x | AR2: x | AS2: x | AT2: x | AU2: x | AV2: x | AW2: x | AX2: x | AY2: x | AZ2: x | BA2: x | BB2: x | BC2: x | BD2: x | BE2: x | BF2: x | BG2: x | BH2: x | BI2: x | BJ2: x | BK2: x | BL2: x | BM2: x | BO2: x | BP2: x | BQ2: x | BR2: x | BS2: x | BT2: x | BU2: x | BV2: x | BW2: x | BX2: x | BY2: x | BZ2: x | CA2: x | CB2: x | CC2: x | CD2: x | CE2: x | CF2: x | CG2: x | CH2: x | CI2: x | CJ2: x | CK2: x | CL2: x | CM2: x | CN2: x | CO2: x | CP2: x | CQ2: x | CR2: x | CS2: x | CT2: x | CU2: x | CV2: x | CW2: x | CX2: x | CY2: x | CZ2: x | DA2: x | DB2: x | DC2: x | DD2: x | DE2: x | DF2: x
A3: Vera | B3: 2 | C3: x | D3: x | E3: x | F3: x | G3: x | H3: x | I3: x | J3: x | M3: x | O3: x | P3: x | Q3: x | R3: x | S3: x | T3: x | U3: x | V3: x | W3: x | X3: x | Y3: x | Z3: x | AA3: x | AB3: x | AC3: x | AD3: x | AE3: x | AF3: x | AG3: x | AH3: x | AI3: x | AJ3: x | AK3: x | AL3: x | AM3: x | AN3: x | AO3: x | AP3: x | AQ3: x | AR3: x | AS3: x | AT3: x | AU3: x | AV3: x | AW3: x | AX3: x | AY3: x | AZ3: x | BA3: x | BB3: x | BC3: x | BD3: x | BE3: x | BF3: x | BG3: x | BH3: x | BI3: x | BJ3: x | BK3: x | BL3: x | BM3: x | BO3: x | BP3: x | BQ3: x | BR3: x | BS3: x | BT3: x | BU3: x | BV3: x | BW3: x | BX3: x | BY3: x | BZ3: x | CA3: x | CB3: x | CC3: x | CD3: x | CE3: x | CF3: x | CG3: x | CH3: x | CI3: x | CJ3: x | CK3: x | CL3: x | CM3: x | CN3: x | CO3: x | CP3: x | CQ3: x | CR3: x | CS3: x | CT3: x | CU3: x | CV3: x | CW3: x | CX3: x | CY3: x | CZ3: x | DA3: x | DB3: x | DC3: x | DD3: x | DE3: x | DF3: x | DG3: x | DH3: x | DI3: x | DJ3: x
A4: Liban | B4: 3 | C4: x | D4: x | E4: x | F4: x | G4: x | H4: x | I4: x | J4: x | M4: x | O4: x | P4: x | Q4: x | R4: x | S4: x | T4: x | U4: x | V4: x | W4: x | X4: x | Y4: x | Z4: x | AA4: x | AB4: x | AC4: x | AD4: x | AE4: x | AF4: x | AG4: x | AH4: x | AI4: x | AJ4: x | AK4: x | AL4: x | AM4: x | AN4: x | AO4: x | AP4: x | AQ4: x | AR4: x | AS4: x | AT4: x | AU4: x | AV4: x | AW4: x | AX4: x | AY4: x | AZ4: x | BA4: x | BB4: x | BC4: x | BD4: x | BE4: x | BF4: x | BG4: x | BH4: x | BI4: x | BJ4: x | BK4: x | BL4: x | BM4: x | BO4: x | BP4: x | BQ4: x | BR4: x | BS4: x | BT4: x | BU4: x | BV4: x | BW4: x | BX4: x | BY4: x | BZ4: x | CA4: x | CB4: x | CC4: x | CD4: x | CE4: x | CF4: x | CG4: x | CH4: x | CI4: x | CJ4: x | CK4: x | CL4: x | CM4: x | CN4: x | CO4: x | CP4: x | CQ4: x | CR4: x | CS4: x | CT4: x | CU4: x | CV4: x | CW4: x | CX4: x | CY4: x | CZ4: x | DA4: x | DB4: x | DC4: x | DD4: x | DE4: x | DF4: x
A5: Fabienne | B5: 4 | C5: x | D5: x | E5: x | F5: x | G5: x | H5: x | I5: x | J5: x | M5: x | O5: x | P5: x | Q5: x | R5: x | S5: x | T5: x | U5: x | V5: x | W5: x | X5: x | Y5: x | Z5: x | AA5: x | AB5: x | AC5: x | AD5: x | AE5: x | AF5: x | AG5: x | AH5: x | AI5: x | AJ5: x | AK5: x | AL5: x | AM5: x | AN5: x | AO5: x | AP5: x | AQ5: x | AR5: x | AS5: x | AT5: x | AU5: x | AV5: x | AW5: x | AX5: x | AY5: x | AZ5: x | BA5: x | BB5: x | BC5: x | BD5: x | BE5: x | BF5: x | BG5: x | BH5: x | BI5: x | BJ5: x | BK5: x | BL5: x | BM5: x | BO5: x | BP5: x | BQ5: x | BR5: x | BS5: x | BT5: x | BU5: x | BV5: x | BW5: x | BX5: x | BY5: x | BZ5: x | CA5: x | CB5: x | CC5: x | CD5: x | CE5: x | CF5: x | CG5: x | CH5: x | CI5: x | CJ5: x | CK5: x | CL5: x | CM5: x | CN5: x | CO5: x | CP5: x | CQ5: x | CR5: x | CS5: x | CT5: x | CU5: x | CV5: x | CW5: x | CX5: x | CY5: x | CZ5: x | DA5: x | DB5: x | DC5: x | DD5: x | DE5: x | DF5: x
A6: Liban | B6: 5 | C6: x | D6: x | E6: x | F6: x | G6: x | H6: x | I6: x | J6: x | M6: x | O6: x | P6: x | Q6: x | R6: x | S6: x | T6: x | U6: x | V6: x | W6: x | X6: x | Y6: x | Z6: x | AA6: x | AB6: x | AC6: x | AD6: x | AE6: x | AF6: x | AG6: x | AH6: x | AI6: x | AJ6: x | AK6: x | AL6: x | AM6: x | AN6: x | AO6: x | AP6: x | AQ6: x | AR6: x | AS6: x | AT6: x | AU6: x | AV6: x | AW6: x | AX6: x | AY6: x | AZ6: x | BA6: x | BB6: x | BC6: x | BD6: x | BE6: x | BF6: x | BG6: x | BH6: x | BI6: x | BJ6: x | BK6: x | BL6: x | BM6: x | BO6: x | BP6: x | BQ6: x | BR6: x | BS6: x | BT6: x | BU6: x | BV6: x | BW6: x | BX6: x | BY6: x | BZ6: x | CA6: x | CB6: x | CC6: x | CD6: x | CE6: x | CF6: x | CG6: x | CH6: x | CI6: x | CJ6: x | CK6: x | CL6: x | CM6: x | CN6: x | CO6: x | CP6: x | CQ6: x | CR6: x | CS6: x | CT6: x | CU6: x | CV6: x | CW6: x | CX6: x | CY6: x | CZ6: x | DA6: x | DB6: x | DC6: x | DD6: x | DE6: x | DF6: x
A7: Nat | B7: 6 | C7: x | D7: x | E7: x | F7: x | G7: x | H7: x | I7: x | J7: x | M7: x | O7: x | P7: x | Q7: x | R7: x | S7: x | T7: x | U7: x | V7: x | W7: x | X7: x | Y7: x | Z7: x | AA7: x | AB7: x | AC7: x | AD7: x | AE7: x | AF7: x | AG7: x | AH7: x | AI7: x | AJ7: x | AK7: x | AL7: x | AM7: x | AN7: x | AO7: x | AP7: x | AQ7: x | AR7: x | AS7: x | AT7: x | AU7: x | AV7: x | AW7: x | AX7: x | AY7: x | AZ7: x | BA7: x | BB7: x | BC7: x | BD7: x | BE7: x | BF7: x | BG7: x | BH7: x | BI7: x | BJ7: x | BK7: x | BL7: x | BM7: x | BO7: x | BP7: x | BQ7: x | BR7: x | BS7: x | BT7: x | BU7: x | BV7: x | BW7: x | BX7: x | BY7: x | BZ7: x | CA7: x | CB7: x | CC7: x | CD7: x | CE7: x | CF7: x | CG7: x | CH7: x | CI7: x | CJ7: x | CK7: x | CL7: x | CM7: x | CN7: x | CO7: x | CP7: x | CQ7: x | CR7: x | CS7: x | CT7: x | CU7: x | CV7: x | CW7: x | CX7: x | CY7: x | CZ7: x | DA7: x | DB7: x | DC7: x | DD7: x | DE7: x | DF7: x
A8: Lalojo | B8: 7 | C8: x | D8: x | E8: x | F8: x | G8: x | H8: x | I8: x | J8: x | M8: x | O8: x | P8: x | Q8: x | R8: x | S8: x | T8: x | U8: x | V8: x | W8: x | X8: x | Y8: x | Z8: x | AA8: x | AB8: x | AC8: x | AD8: x | AE8: x | AF8: x | AG8: x | AH8: x | AI8: x | AJ8: x | AK8: x | AL8: x | AM8: x | AN8: x | AO8: x | AP8: x | AQ8: x | AR8: x | AS8: x | AT8: x | AU8: x | AV8: x | AW8: x | AX8: x | AY8: x | AZ8: x | BA8: x | BB8: x | BC8: x | BD8: x | BE8: x | BF8: x | BG8: x | BH8: x | BI8: x | BJ8: x | BK8: x | BL8: x | BM8: x | BO8: x | BP8: x | BQ8: x | BR8: x | BS8: x | BT8: x | BU8: x | BV8: x | BW8: x | BX8: x | BY8: x | BZ8: x | CA8: x | CB8: x | CC8: x | CD8: x | CE8: x | CF8: x | CG8: x | CH8: x | CI8: x | CJ8: x | CK8: x | CL8: x | CM8: x | CN8: x | CO8: x | CP8: x | CQ8: x | CR8: x | CS8: x | CT8: x | CU8: x | CV8: x | CW8: x | CX8: x | CY8: x | CZ8: x | DA8: x | DB8: x | DC8: x | DD8: x | DE8: x | DF8: x
A9: Lalojo | B9: 8 | C9: x | D9: x | E9: x | F9: x | G9: x | H9: x | I9: x | J9: x | M9: x | O9: x | P9: x | Q9: x | R9: x | S9: x | T9: x | U9: x | V9: x | W9: x | X9: x | Y9: x | Z9: x | AA9: x | AB9: x | AC9: x | AD9: x | AE9: x | AF9: x | AG9: x | AH9: x | AI9: x | AJ9: x | AK9: x | AL9: x | AM9: x | AN9: x | AO9: x | AP9: x | AQ9: x | AR9: x | AS9: x | AT9: x | AU9: x | AV9: x | AW9: x | AX9: x | AY9: x | AZ9: x | BA9: x | BB9: x | BC9: x | BD9: x | BE9: x | BF9: x | BG9: x | BH9: x | BI9: x | BJ9: x | BK9: x | BL9: x | BM9: x | BO9: x | BP9: x | BQ9: x | BR9: x | BS9: x | BT9: x | BU9: x | BV9: x | BW9: x | BX9: x | BY9: x | BZ9: x | CA9: x | CB9: x | CC9: x | CD9: x | CE9: x | CF9: x | CG9: x | CH9: x | CI9: x | CJ9: x | CK9: x | CL9: x | CM9: x | CN9: x | CO9: x | CP9: x | CQ9: x | CR9: x | CS9: x | CT9: x | CU9: x | CV9: x | CW9: x | CX9: x | CY9: x | CZ9: x | DA9: x | DB9: x | DC9: x | DD9: x | DE9: x | DF9: x
A10: Vera | B10: 9 | C10: x | D10: x | E10: x | F10: x | G10: x | H10: x | I10: x | J10: x | M10: x | O10: x | P10: x | Q10: x | R10: x | S10: x | T10: x | U10: x | V10: x | W10: x | X10: x | Y10: x | Z10: x | AA10: x | AB10: x | AC10: x | AD10: x | AE10: x | AF10: x | AG10: x | AH10: x | AI10: x | AJ10: x | AK10: x | AL10: x | AM10: x | AN10: x | AO10: x | AP10: x | AQ10: x | AR10: x | AS10: x | AT10: x | AU10: x | AV10: x | AW10: x | AX10: x | AY10: x | AZ10: x | BA10: x | BB10: x | BC10: x | BD10: x | BE10: x | BF10: x | BG10: x | BH10: x | BI10: x | BJ10: x | BK10: x | BL10: x | BM10: x | BO10: x | BP10: x | BQ10: x | BR10: x | BS10: x | BT10: x | BU10: x | BV10: x | BW10: x | BX10: x | BY10: x | BZ10: x | CA10: x | CB10: x | CC10: x | CD10: x | CE10: x | CF10: x | CG10: x | CH10: x | CI10: x | CJ10: x | CK10: x | CL10: x | CM10: x | CN10: x | CO10: x | CP10: x | CQ10: x | CR10: x | CS10: x | CT10: x | CU10: x | CV10: x | CW10: x | CX10: x | CY10: x | CZ10: x | DA10: x | DB10: x | DC10: x | DD10: x | DE10: x | DF10: x | DG10: x | DH10: x | DI10: x | DJ10: x
A11: A | B11: 10 | C11: x | D11: x | E11: x | F11: x | G11: x | H11: x | I11: x | J11: x | M11: x | O11: x | P11: x | Q11: x | R11: x | S11: x | T11: x | U11: x | V11: x | W11: x | X11: x | Y11: x | Z11: x | AA11: x | AB11: x | AC11: x | AD11: x | AE11: x | AF11: x | AG11: x | AH11: x | AI11: x | AJ11: x | AK11: x | AL11: x | AM11: x | AN11: x | AO11: x | AP11: x | AQ11: x | AR11: x | AS11: x | AT11: x | AU11: x | AV11: x | AW11: x | AX11: x | AY11: x | AZ11: x | BA11: x | BB11: x | BC11: x | BD11: x | BE11: x | BF11: x | BG11: x | BH11: x | BI11: x | BJ11: x | BK11: x | BL11: x | BM11: x | BO11: x | BP11: x | BQ11: x | BR11: x | BS11: x | BT11: x | BU11: x | BV11: x | BW11: x | BX11: x | BY11: x | BZ11: x | CA11: x | CB11: x | CC11: x | CD11: x | CE11: x | CF11: x | CG11: x | CH11: x | CI11: x | CJ11: x | CK11: x | CL11: x | CM11: x | CN11: x | CO11: x | CP11: x | CQ11: x | CR11: x | CS11: x | CT11: x | CU11: x | CV11: x | CW11: x | CX11: x | CY11: x | CZ11: x | DA11: x | DB11: x | DC11: x | DD11: x | DE11: x | DF11: x
A12: Dany | B12: 11 | C12: x | D12: x | E12: x | F12: x | G12: x | H12: x | I12: x | J12: x | M12: x | O12: x | P12: x | Q12: x | R12: x | S12: x | T12: x | U12: x | V12: x | W12: x | X12: x | Y12: x | Z12: x | AA12: x | AB12: x | AC12: x | AD12: x | AE12: x | AF12: x | AG12: x | AH12: x | AI12: x | AJ12: x | AK12: x | AL12: x | AM12: x | AN12: x | AO12: x | AP12: x | AQ12: x | AR12: x | AS12: x | AT12: x | AU12: x | AV12: x | AW12: x | AX12: x | AY12: x | AZ12: x | BA12: x | BB12: x | BC12: x | BD12: x | BE12: x | BF12: x | BG12: x | BH12: x | BI12: x | BJ12: x | BK12: x | BL12: x | BM12: x | BO12: x | BP12: x | BQ12: x | BR12: x | BS12: x | BT12: x | BU12: x | BV12: x | BW12: x | BX12: x | BY12: x | BZ12: x | CA12: x | CB12: x | CC12: x | CD12: x | CE12: x | CF12: x | CG12: x | CH12: x | CI12: x | CJ12: x | CK12: x | CL12: x | CM12: x | CN12: x | CO12: x | CP12: x | CQ12: x | CR12: x | CS12: x | CT12: x | CU12: x | CV12: x | CW12: x | CX12: x | CY12: x | CZ12: x | DA12: x | DB12: x | DC12: x | DD12: x | DE12: x | DF12: x
A13: Vanessa | B13: 12 | C13: x | D13: x | E13: x | F13: x | G13: x | H13: x | I13: x | J13: x | M13: x | O13: x | P13: x | Q13: x | R13: x | S13: x | T13: x | U13: x | V13: x | W13: x | X13: x | Y13: x | Z13: x | AA13: x | AB13: x | AC13: x | AD13: x | AE13: x | AF13: x | AG13: x | AH13: x | AI13: x | AJ13: x | AK13: x | AL13: x | AM13: x | AN13: x | AO13: x | AP13: x | AQ13: x | AR13: x | AS13: x | AT13: x | AU13: x | AV13: x | AW13: x | AX13: x | AY13: x | AZ13: x | BA13: x | BB13: x | BC13: x | BD13: x | BE13: x | BF13: x | BG13: x | BH13: x | BI13: x | BJ13: x | BK13: x | BL13: x | BM13: x | BO13: x | BP13: x | BQ13: x | BR13: x | BS13: x | BT13: x | BU13: x | BV13: x | BW13: x | BX13: x | BY13: x | BZ13: x | CA13: x | CB13: x | CC13: x | CD13: x | CE13: x | CF13: x | CG13: x | CH13: x | CI13: x | CJ13: x | CK13: x | CL13: x | CM13: x | CN13: x | CO13: x | CP13: x | CQ13: x | CR13: x | CS13: x | CT13: x | CU13: x | CV13: x | CW13: x | CX13: x | CY13: x | CZ13: x | DA13: x | DB13: x | DC13: x | DD13: x | DE13: x | DF13: x | FF13: adelin nog 4 te goed
A14: A | B14: 13 | C14: x | D14: x | E14: x | F14: x | G14: x | H14: x | I14: x | J14: x | M14: x | O14: x | P14: x | Q14: x | R14: x | S14: x | T14: x | U14: x | V14: x | W14: x | X14: x | Y14: x | Z14: x | AA14: x | AB14: x | AC14: x | AD14: x | AE14: x | AF14: x | AG14: x | AH14: x | AI14: x | AJ14: x | AK14: x | AL14: x | AM14: x | AN14: x | AO14: x | AP14: x | AQ14: x | AR14: x | AS14: x | AT14: x | AU14: x | AV14: x | AW14: x | AX14: x | AY14: x | AZ14: x | BA14: x | BB14: x | BC14: x | BD14: x | BE14: x | BF14: x | BG14: x | BH14: x | BI14: x | BJ14: x | BK14: x | BL14: x | BM14: x | BO14: x | BP14: x | BQ14: x | BR14: x | BS14: x | BT14: x | BU14: x | BV14: x | BW14: x | BX14: x | BY14: x | BZ14: x | CA14: x | CB14: x | CC14: x | CD14: x | CE14: x | CF14: x | CG14: x | CH14: x | CI14: x | CJ14: x | CK14: x | CL14: x | CM14: x | CN14: x | CO14: x | CP14: x | CQ14: x | CR14: x | CS14: x | CT14: x | CU14: x | CV14: x | CW14: x | CX14: x | CY14: x | CZ14: x | DA14: x | DB14: x | DC14: x | DD14: x | DE14: x | DF14: x
A15: Frank | B15: 14 | C15: x | D15: x | E15: x | F15: x | G15: x | H15: x | I15: x | J15: x | M15: x | O15: x | P15: x | Q15: x | R15: x | S15: x | T15: x | U15: x | V15: x | W15: x | X15: x | Y15: x | Z15: x | AA15: x | AB15: x | AC15: x | AD15: x | AE15: x | AF15: x | AG15: x | AH15: x | AI15: x | AJ15: x | AK15: x | AL15: x | AM15: x | AN15: x | AO15: x | AP15: x | AQ15: x | AR15: x | AS15: x | AT15: x | AU15: x | AV15: x | AW15: x | AX15: x | AY15: x | AZ15: x | BA15: x | BB15: x | BC15: x | BD15: x | BE15: x | BF15: x | BG15: x | BH15: x | BI15: x | BJ15: x | BK15: x | BL15: x | BM15: x | BO15: x | BP15: x | BQ15: x | BR15: x | BS15: x | BT15: x | BU15: x | BV15: x | BW15: x | BX15: x | BY15: x | BZ15: x | CA15: x | CB15: x | CC15: x | CD15: x | CE15: x | CF15: x | CG15: x | CH15: x | CI15: x | CJ15: x | CK15: x | CL15: x | CM15: x | CN15: x | CO15: x | CP15: x | CQ15: x | CR15: x | CS15: x | CT15: x | CU15: x | CV15: x | CW15: x | CX15: x | CY15: x | CZ15: x | DA15: x | DB15: x | DC15: x | DD15: x | DE15: x | DF15: x
A16: Kristof | B16: 15 | C16: x | D16: x | E16: x | F16: x | G16: x | H16: x | I16: x | J16: x | M16: x | O16: x | P16: x | Q16: x | R16: x | S16: x | T16: x | U16: x | V16: x | W16: x | X16: x | Y16: x | Z16: x | AA16: x | AB16: x | AC16: x | AD16: x | AE16: x | AF16: x | AG16: x | AH16: x | AI16: x | AJ16: x | AK16: x | AL16: x | AM16: x | AN16: x | AO16: x | AP16: x | AQ16: x | AR16: x | AS16: x | AT16: x | AU16: x | AV16: x | AW16: x | AX16: x | AY16: x | AZ16: x | BA16: x | BB16: x | BC16: x | BD16: x | BE16: x | BF16: x | BG16: x | BH16: x | BI16: x | BJ16: x | BK16: x | BL16: x | BM16: x | BO16: x | BP16: x | BQ16: x | BR16: x | BS16: x | BT16: x | BU16: x | BV16: x | BW16: x | BX16: x | BY16: x | BZ16: x | CA16: x | CB16: x | CC16: x | CD16: x | CE16: x | CF16: x | CG16: x | CH16: x | CI16: x | CJ16: x | CK16: x | CL16: x | CM16: x | CN16: x | CO16: x | CP16: x | CQ16: x | CR16: x | CS16: x | CT16: x | CU16: x | CV16: x | CW16: x | CX16: x | CY16: x | CZ16: x | DA16: x | DB16: x | DC16: x | DD16: x | DE16: x | DF16: x
A17: A | B17: 16 | C17: x | D17: x | E17: x | F17: x | G17: x | H17: x | I17: x | J17: x | M17: x | O17: x | P17: x | Q17: x | R17: x | S17: x | T17: x | U17: x | V17: x | W17: x | X17: x | Y17: x | Z17: x | AA17: x | AB17: x | AC17: x | AD17: x | AE17: x | AF17: x | AG17: x | AH17: x | AI17: x | AJ17: x | AK17: x | AL17: x | AM17: x | AN17: x | AO17: x | AP17: x | AQ17: x | AR17: x | AS17: x | AT17: x | AU17: x | AV17: x | AW17: x | AX17: x | AY17: x | AZ17: x | BA17: x | BB17: x | BC17: x | BD17: x | BE17: x | BF17: x | BG17: x | BH17: x | BI17: x | BJ17: x | BK17: x | BL17: x | BM17: x | BO17: x | BP17: x | BQ17: x | BR17: x | BS17: x | BT17: x | BU17: x | BV17: x | BW17: x | BX17: x | BY17: x | BZ17: x | CA17: x | CB17: x | CC17: x | CD17: x | CE17: x | CF17: x | CG17: x | CH17: x | CI17: x | CJ17: x | CK17: x | CL17: x | CM17: x | CN17: x | CO17: x | CP17: x | CQ17: x | CR17: x | CS17: x | CT17: x | CU17: x | CV17: x | CW17: x | CX17: x | CY17: x | CZ17: x | DA17: x | DB17: x | DC17: x | DD17: x | DE17: x | DF17: x
A18: A | B18: 17 | C18: x | D18: x | E18: x | F18: x | G18: x | H18: x | I18: x | J18: x | M18: x | O18: x | P18: x | Q18: x | R18: x | S18: x | T18: x | U18: x | V18: x | W18: x | X18: x | Y18: x | Z18: x | AA18: x | AB18: x | AC18: x | AD18: x | AE18: x | AF18: x | AG18: x | AH18: x | AI18: x | AJ18: x | AK18: x | AL18: x | AM18: x | AN18: x | AO18: x | AP18: x | AQ18: x | AR18: x | AS18: x | AT18: x | AU18: x | AV18: x | AW18: x | AX18: x | AY18: x | AZ18: x | BA18: x | BB18: x | BC18: x | BD18: x | BE18: x | BF18: x | BG18: x | BH18: x | BI18: x | BJ18: x | BK18: x | BL18: x | BM18: x | BO18: x | BP18: x | BQ18: x | BR18: x | BS18: x | BT18: x | BU18: x | BV18: x | BW18: x | BX18: x | BY18: x | BZ18: x | CA18: x | CB18: x | CC18: x | CD18: x | CE18: x | CF18: x | CG18: x | CH18: x | CI18: x | CJ18: x | CK18: x | CL18: x | CM18: x | CN18: x | CO18: x | CP18: x | CQ18: x | CR18: x | CS18: x | CT18: x | CU18: x | CV18: x | CW18: x | CX18: x | CY18: x | CZ18: x | DA18: x | DB18: x | DC18: x | DD18: x | DE18: x | DF18: x
A19: Vera | B19: 18 | C19: x | D19: x | E19: x | F19: x | G19: x | H19: x | I19: x | J19: x | M19: x | O19: x | P19: x | Q19: x | R19: x | S19: x | T19: x | U19: x | V19: x | W19: x | X19: x | Y19: x | Z19: x | AA19: x | AB19: x | AC19: x | AD19: x | AE19: x | AF19: x | AG19: x | AH19: x | AI19: x | AJ19: x | AK19: x | AL19: x | AM19: x | AN19: x | AO19: x | AP19: x | AQ19: x | AR19: x | AS19: x | AT19: x | AU19: x | AV19: x | AW19: x | AX19: x | AY19: x | AZ19: x | BA19: x | BB19: x | BC19: x | BD19: x | BE19: x | BF19: x | BG19: x | BH19: x | BI19: x | BJ19: x | BK19: x | BL19: x | BM19: x | BO19: x | BP19: x | BQ19: x | BR19: x | BS19: x | BT19: x | BU19: x | BV19: x | BW19: x | BX19: x | BY19: x | BZ19: x | CA19: x | CB19: x | CC19: x | CD19: x | CE19: x | CF19: x | CG19: x | CH19: x | CI19: x | CJ19: x | CK19: x | CL19: x | CM19: x | CN19: x | CO19: x | CP19: x | CQ19: x | CR19: x | CS19: x | CT19: x | CU19: x | CV19: x | CW19: x | CX19: x | CY19: x | CZ19: x | DA19: x | DB19: x | DC19: x | DD19: x | DE19: x | DF19: x | DG19: x | DH19: x | DI19: x | DJ19: x
A20: A | B20: 19 | C20: x | D20: x | E20: x | F20: x | G20: x | H20: x | I20: x | J20: x | M20: x | O20: x | P20: x | Q20: x | R20: x | S20: x | T20: x | U20: x | V20: x | W20: x | X20: x | Y20: x | Z20: x | AA20: x | AB20: x | AC20: x | AD20: x | AE20: x | AF20: x | AG20: x | AH20: x | AI20: x | AJ20: x | AK20: x | AL20: x | AM20: x | AN20: x | AO20: x | AP20: x | AQ20: x | AR20: x | AS20: x | AT20: x | AU20: x | AV20: x | AW20: x | AX20: x | AY20: x | AZ20: x | BA20: x | BB20: x | BC20: x | BD20: x | BE20: x | BF20: x | BG20: x | BH20: x | BI20: x | BJ20: x | BK20: x | BL20: x | BM20: x | BO20: x | BP20: x | BQ20: x | BR20: x | BS20: x | BT20: x | BU20: x | BV20: x | BW20: x | BX20: x | BY20: x | BZ20: x | CA20: x | CB20: x | CC20: x | CD20: x | CE20: x | CF20: x | CG20: x | CH20: x | CI20: x | CJ20: x | CK20: x | CL20: x | CM20: x | CN20: x | CO20: x | CP20: x | CQ20: x | CR20: x | CS20: x | CT20: x | CU20: x | CV20: x | CW20: x | CX20: x | CY20: x | CZ20: x | DA20: x | DB20: x | DC20: x | DD20: x | DE20: x | DF20: x
A21: Darline | B21: 20 | C21: x | D21: x | E21: x | F21: x | G21: x | H21: x | I21: x | J21: x | M21: x | O21: x | P21: x | Q21: x | R21: x | S21: x | T21: x | U21: x | V21: x | W21: x | X21: x | Y21: x | Z21: x | AA21: x | AB21: x | AC21: x | AD21: x | AE21: x | AF21: x | AG21: x | AH21: x | AI21: x | AJ21: x | AK21: x | AL21: x | AM21: x | AN21: x | AO21: x | AP21: x | AQ21: x | AR21: x | AS21: x | AT21: x | AU21: x | AV21: x | AW21: x | AX21: x | AY21: x | AZ21: x | BA21: x | BB21: x | BC21: x | BD21: x | BE21: x | BF21: x | BG21: x | BH21: x | BI21: x | BJ21: x | BK21: x | BL21: x | BM21: x | BO21: x | BP21: x | BQ21: x | BR21: x | BS21: x | BT21: x | BU21: x | BV21: x | BW21: x | BX21: x | BY21: x | BZ21: x | CA21: x | CB21: x | CC21: x | CD21: x | CE21: x | CF21: x | CG21: x | CH21: x | CI21: x | CJ21: x | CK21: x | CL21: x | CM21: x | CN21: x | CO21: x | CP21: x | CQ21: x | CR21: x | CS21: x | CT21: x | CU21: x | CV21: x | CW21: x | CX21: x | CY21: x | CZ21: x | DA21: x | DB21: x | DC21: x | DD21: x | DE21: x | DF21: x
A22: Vera | B22: 21 | C22: x | D22: x | E22: x | F22: x | G22: x | H22: x | I22: x | J22: x | M22: x | O22: x | P22: x | Q22: x | R22: x | S22: x | T22: x | U22: x | V22: x | W22: x | X22: x | Y22: x | Z22: x | AA22: x | AB22: x | AC22: x | AD22: x | AE22: x | AF22: x | AG22: x | AH22: x | AI22: x | AJ22: x | AK22: x | AL22: x | AM22: x | AN22: x | AO22: x | AP22: x | AQ22: x | AR22: x | AS22: x | AT22: x | AU22: x | AV22: x | AW22: x | AX22: x | AY22: x | AZ22: x | BA22: x | BB22: x | BC22: x | BD22: x | BE22: x | BF22: x | BG22: x | BH22: x | BI22: x | BJ22: x | BK22: x | BL22: x | BM22: x | BO22: x | BP22: x | BQ22: x | BR22: x | BS22: x | BT22: x | BU22: x | BV22: x | BW22: x | BX22: x | BY22: x | BZ22: x | CA22: x | CB22: x | CC22: x | CD22: x | CE22: x | CF22: x | CG22: x | CH22: x | CI22: x | CJ22: x | CK22: x | CL22: x | CM22: x | CN22: x | CO22: x | CP22: x | CQ22: x | CR22: x | CS22: x | CT22: x | CU22: x | CV22: x | CW22: x | CX22: x | CY22: x | CZ22: x | DA22: x | DB22: x | DC22: x | DD22: x | DE22: x | DF22: x | DG22: x | DH22: x | DI22: x | DJ22: x
A23: Thibo | B23: 22 | C23: x | D23: x | E23: x | F23: x | G23: x | H23: x | I23: x | J23: x | M23: x | O23: x | P23: x | Q23: x | R23: x | S23: x | T23: x | U23: x | V23: x | W23: x | X23: x | Y23: x | Z23: x | AA23: x | AB23: x | AC23: x | AD23: x | AE23: x | AF23: x | AG23: x | AH23: x | AI23: x | AJ23: x | AK23: x | AL23: x | AM23: x | AN23: x | AO23: x | AP23: x | AQ23: x | AR23: x | AS23: x | AT23: x | AU23: x | AV23: x | AW23: x | AX23: x | AY23: x | AZ23: x | BA23: x | BB23: x | BC23: x | BD23: x | BE23: x | BF23: x | BG23: x | BH23: x | BI23: x | BJ23: x | BK23: x | BL23: x | BM23: x | BO23: x | BP23: x | BQ23: x | BR23: x | BS23: x | BT23: x | BU23: x | BV23: x | BW23: x | BX23: x | BY23: x | BZ23: x | CA23: x | CB23: x | CC23: x | CD23: x | CE23: x | CF23: x | CG23: x | CH23: x | CI23: x | CJ23: x | CK23: x | CL23: x | CM23: x | CN23: x | CO23: x | CP23: x | CQ23: x | CR23: x | CS23: x | CT23: x | CU23: x | CV23: x | CW23: x | CX23: x | CY23: x | CZ23: x | DA23: x | DB23: x | DC23: x | DD23: x | DE23: x | DF23: x
A24: vera | B24: 23 | C24: x | D24: x | E24: x | F24: x | G24: x | H24: x | I24: x | J24: x | M24: x | O24: x | P24: x | Q24: x | R24: x | S24: x | T24: x | U24: x | V24: x | W24: x | X24: x | Y24: x | Z24: x | AA24: x | AB24: x | AC24: x | AD24: x | AE24: x | AF24: x | AG24: x | AH24: x | AI24: x | AJ24: x | AK24: x | AL24: x | AM24: x | AN24: x | AO24: x | AP24: x | AQ24: x | AR24: x | AS24: x | AT24: x | AU24: x | AV24: x | AW24: x | AX24: x | AY24: x | AZ24: x | BA24: x | BB24: x | BC24: x | BD24: x | BE24: x | BF24: x | BG24: x | BH24: x | BI24: x | BJ24: x | BK24: x | BL24: x | BM24: x | BO24: x | BP24: x | BQ24: x | BR24: x | BS24: x | BT24: x | BU24: x | BV24: x | BW24: x | BX24: x | BY24: x | BZ24: x | CA24: x | CB24: x | CC24: x | CD24: x | CE24: x | CF24: x | CG24: x | CH24: x | CI24: x | CJ24: x | CK24: x | CL24: x | CM24: x | CN24: x | CO24: x | CP24: x | CQ24: x | CR24: x | CS24: x | CT24: x | CU24: x | CV24: x | CW24: x | CX24: x | CY24: x | CZ24: x | DA24: x | DB24: x | DC24: x | DD24: x | DE24: x | DF24: x | DG24: x | DH24: x | DI24: x | DJ24: x
A25: A | B25: 24 | C25: x | D25: x | E25: x | F25: x | G25: x | H25: x | I25: x | J25: x | M25: x | O25: x | P25: x | Q25: x | R25: x | S25: x | T25: x | U25: x | V25: x | W25: x | X25: x | Y25: x | Z25: x | AA25: x | AB25: x | AC25: x | AD25: x | AE25: x | AF25: x | AG25: x | AH25: x | AI25: x | AJ25: x | AK25: x | AL25: x | AM25: x | AN25: x | AO25: x | AP25: x | AQ25: x | AR25: x | AS25: x | AT25: x | AU25: x | AV25: x | AW25: x | AX25: x | AY25: x | AZ25: x | BA25: x | BB25: x | BC25: x | BD25: x | BE25: x | BF25: x | BG25: x | BH25: x | BI25: x | BJ25: x | BK25: x | BL25: x | BM25: x | BO25: x | BP25: x | BQ25: x | BR25: x | BS25: x | BT25: x | BU25: x | BV25: x | BW25: x | BX25: x | BY25: x | BZ25: x | CA25: x | CB25: x | CC25: x | CD25: x | CE25: x | CF25: x | CG25: x | CH25: x | CI25: x | CJ25: x | CK25: x | CL25: x | CM25: x | CN25: x | CO25: x | CP25: x | CQ25: x | CR25: x | CS25: x | CT25: x | CU25: x | CV25: x | CW25: x | CX25: x | CY25: x | CZ25: x | DA25: x | DB25: x | DC25: x | DD25: x | DE25: x | DF25: x
A26: Nat | B26: 25 | C26: x | D26: x | E26: x | F26: x | G26: x | H26: x | I26: x | J26: x | M26: x | O26: x | P26: x | Q26: x | R26: x | S26: x | T26: x | U26: x | V26: x | W26: x | X26: x | Y26: x | Z26: x | AA26: x | AB26: x | AC26: x | AD26: x | AE26: x | AF26: x | AG26: x | AH26: x | AI26: x | AJ26: x | AK26: x | AL26: x | AM26: x | AN26: x | AO26: x | AP26: x | AQ26: x | AR26: x | AS26: x | AT26: x | AU26: x | AV26: x | AW26: x | AX26: x | AY26: x | AZ26: x | BA26: x | BB26: x | BC26: x | BD26: x | BE26: x | BF26: x | BG26: x | BH26: x | BI26: x | BJ26: x | BK26: x | BL26: x | BM26: x | BO26: x | BP26: x | BQ26: x | BR26: x | BS26: x | BT26: x | BU26: x | BV26: x | BW26: x | BX26: x | BY26: x | BZ26: x | CA26: x | CB26: x | CC26: x | CD26: x | CE26: x | CF26: x | CG26: x | CH26: x | CI26: x | CJ26: x | CK26: x | CL26: x | CM26: x | CN26: x | CO26: x | CP26: x | CQ26: x | CR26: x | CS26: x | CT26: x | CU26: x | CV26: x | CW26: x | CX26: x | CY26: x | CZ26: x | DA26: x | DB26: x | DC26: x | DD26: x | DE26: x | DF26: x
A27: Triene | B27: 26 | C27: x | D27: x | E27: x | F27: x | G27: x | H27: x | I27: x | J27: x | M27: x | O27: x | P27: x | Q27: x | R27: x | S27: x | T27: x | U27: x | V27: x | W27: x | X27: x | Y27: x | Z27: x | AA27: x | AB27: x | AC27: x | AD27: x | AE27: x | AF27: x | AG27: x | AH27: x | AI27: x | AJ27: x | AK27: x | AL27: x | AM27: x | AN27: x | AO27: x | AP27: x | AQ27: x | AR27: x | AS27: x | AT27: x | AU27: x | AV27: x | AW27: x | AX27: x | AY27: x | AZ27: x | BA27: x | BB27: x | BC27: x | BD27: x | BE27: x | BF27: x | BG27: x | BH27: x | BI27: x | BJ27: x | BK27: x | BL27: x | BM27: x | BO27: x | BP27: x | BQ27: x | BR27: x | BS27: x | BT27: x | BU27: x | BV27: x | BW27: x | BX27: x | BY27: x | BZ27: x | CA27: x | CB27: x | CC27: x | CD27: x | CE27: x | CF27: x | CG27: x | CH27: x | CI27: x | CJ27: x | CK27: x | CL27: x | CM27: x | CN27: x | CO27: x | CP27: x | CQ27: x | CR27: x | CS27: x | CT27: x | CU27: x | CV27: x | CW27: x | CX27: x | CY27: x | CZ27: x | DA27: x | DB27: x | DC27: x | DD27: x | DE27: x | DF27: x | DG27: x | DH27: x | DI27: x
A28: Kristof | B28: 27 | C28: x | D28: x | E28: x | F28: x | G28: x | H28: x | I28: x | J28: x | M28: x | O28: x | P28: x | Q28: x | R28: x | S28: x | T28: x | U28: x | V28: x | W28: x | X28: x | Y28: x | Z28: x | AA28: x | AB28: x | AC28: x | AD28: x | AE28: x | AF28: x | AG28: x | AH28: x | AI28: x | AJ28: x | AK28: x | AL28: x | AM28: x | AN28: x | AO28: x | AP28: x | AQ28: x | AR28: x | AS28: x | AT28: x | AU28: x | AV28: x | AW28: x | AX28: x | AY28: x | AZ28: x | BA28: x | BB28: x | BC28: x | BD28: x | BE28: x | BF28: x | BG28: x | BH28: x | BI28: x | BJ28: x | BK28: x | BL28: x | BM28: x | BO28: x | BP28: x | BQ28: x | BR28: x | BS28: x | BT28: x | BU28: x | BV28: x | BW28: x | BX28: x | BY28: x | BZ28: x | CA28: x | CB28: x | CC28: x | CD28: x | CE28: x | CF28: x | CG28: x | CH28: x | CI28: x | CJ28: x | CK28: x | CL28: x | CM28: x | CN28: x | CO28: x | CP28: x | CQ28: x | CR28: x | CS28: x | CT28: x | CU28: x | CV28: x | CW28: x | CX28: x | CY28: x | CZ28: x | DA28: x | DB28: x | DC28: x | DD28: x | DE28: x | DF28: x
A29: Vera | B29: 28 | C29: x | D29: x | E29: x | F29: x | G29: x | H29: x | I29: x | J29: x | M29: x | O29: x | P29: x | Q29: x | R29: x | S29: x | T29: x | U29: x | V29: x | W29: x | X29: x | Y29: x | Z29: x | AA29: x | AB29: x | AC29: x | AD29: x | AE29: x | AF29: x | AG29: x | AH29: x | AI29: x | AJ29: x | AK29: x | AL29: x | AM29: x | AN29: x | AO29: x | AP29: x | AQ29: x | AR29: x | AS29: x | AT29: x | AU29: x | AV29: x | AW29: x | AX29: x | AY29: x | AZ29: x | BA29: x | BB29: x | BC29: x | BD29: x | BE29: x | BF29: x | BG29: x | BH29: x | BI29: x | BJ29: x | BK29: x | BL29: x | BM29: x | BO29: x | BP29: x | BQ29: x | BR29: x | BS29: x | BT29: x | BU29: x | BV29: x | BW29: x | BX29: x | BY29: x | BZ29: x | CA29: x | CB29: x | CC29: x | CD29: x | CE29: x | CF29: x | CG29: x | CH29: x | CI29: x | CJ29: x | CK29: x | CL29: x | CM29: x | CN29: x | CO29: x | CP29: x | CQ29: x | CR29: x | CS29: x | CT29: x | CU29: x | CV29: x | CW29: x | CX29: x | CY29: x | CZ29: x | DA29: x | DB29: x | DC29: x | DD29: x | DE29: x | DF29: x | DG29: x | DH29: x | DI29: x | DJ29: x
A30: A | B30: 29 | C30: x | D30: x | E30: x | F30: x | G30: x | H30: x | I30: x | J30: x | M30: x | O30: x | P30: x | Q30: x | R30: x | S30: x | T30: x | U30: x | V30: x | W30: x | X30: x | Y30: x | Z30: x | AA30: x | AB30: x | AC30: x | AD30: x | AE30: x | AF30: x | AG30: x | AH30: x | AI30: x | AJ30: x | AK30: x | AL30: x | AM30: x | AN30: x | AO30: x | AP30: x | AQ30: x | AR30: x | AS30: x | AT30: x | AU30: x | AV30: x | AW30: x | AX30: x | AY30: x | AZ30: x | BA30: x | BB30: x | BC30: x | BD30: x | BE30: x | BF30: x | BG30: x | BH30: x | BI30: x | BJ30: x | BK30: x | BL30: x | BM30: x | BO30: x | BP30: x | BQ30: x | BR30: x | BS30: x | BT30: x | BU30: x | BV30: x | BW30: x | BX30: x | BY30: x | BZ30: x | CA30: x | CB30: x | CC30: x | CD30: x | CE30: x | CF30: x | CG30: x | CH30: x | CI30: x | CJ30: x | CK30: x | CL30: x | CM30: x | CN30: x | CO30: x | CP30: x | CQ30: x | CR30: x | CS30: x | CT30: x | CU30: x | CV30: x | CW30: x | CX30: x | CY30: x | CZ30: x | DA30: x | DB30: x | DC30: x | DD30: x | DE30: x | DF30: x
A31: A | B31: 30 | C31: x | D31: x | E31: x | F31: x | G31: x | H31: x | I31: x | J31: x | M31: x | O31: x | P31: x | Q31: x | R31: x | S31: x | T31: x | U31: x | V31: x | W31: x | X31: x | Y31: x | Z31: x | AA31: x | AB31: x | AC31: x | AD31: x | AE31: x | AF31: x | AG31: x | AH31: x | AI31: x | AJ31: x | AK31: x | AL31: x | AM31: x | AN31: x | AO31: x | AP31: x | AQ31: x | AR31: x | AS31: x | AT31: x | AU31: x | AV31: x | AW31: x | AX31: x | AY31: x | AZ31: x | BA31: x | BB31: x | BC31: x | BD31: x | BE31: x | BF31: x | BG31: x | BH31: x | BI31: x | BJ31: x | BK31: x | BL31: x | BM31: x | BO31: x | BP31: x | BQ31: x | BR31: x | BS31: x | BT31: x | BU31: x | BV31: x | BW31: x | BX31: x | BY31: x | BZ31: x | CA31: x | CB31: x | CC31: x | CD31: x | CE31: x | CF31: x | CG31: x | CH31: x | CI31: x | CJ31: x | CK31: x | CL31: x | CM31: x | CN31: x | CO31: x | CP31: x | CQ31: x | CR31: x | CS31: x | CT31: x | CU31: x | CV31: x | CW31: x | CX31: x | CY31: x | CZ31: x | DA31: x | DB31: x | DC31: x | DD31: x | DE31: x | DF31: x
A32: A | B32: 31 | C32: x | D32: x | E32: x | F32: x | G32: x | H32: x | I32: x | J32: x | M32: x | O32: x | P32: x | Q32: x | R32: x | S32: x | T32: x | U32: x | V32: x | W32: x | X32: x | Y32: x | Z32: x | AA32: x | AB32: x | AC32: x | AD32: x | AE32: x | AF32: x | AG32: x | AH32: x | AI32: x | AJ32: x | AK32: x | AL32: x | AM32: x | AN32: x | AO32: x | AP32: x | AQ32: x | AR32: x | AS32: x | AT32: x | AU32: x | AV32: x | AW32: x | AX32: x | AY32: x | AZ32: x | BA32: x | BB32: x | BC32: x | BD32: x | BE32: x | BF32: x | BG32: x | BH32: x | BI32: x | BJ32: x | BK32: x | BL32: x | BM32: x | BO32: x | BP32: x | BQ32: x | BR32: x | BS32: x | BT32: x | BU32: x | BV32: x | BW32: x | BX32: x | BY32: x | BZ32: x | CA32: x | CB32: x | CC32: x | CD32: x | CE32: x | CF32: x | CG32: x | CH32: x | CI32: x | CJ32: x | CK32: x | CL32: x | CM32: x | CN32: x | CO32: x | CP32: x | CQ32: x | CR32: x | CS32: x | CT32: x | CU32: x | CV32: x | CW32: x | CX32: x | CY32: x | CZ32: x | DA32: x | DB32: x | DC32: x | DD32: x | DE32: x | DF32: x
A33: A | B33: 32 | C33: x | D33: x | E33: x | F33: x | G33: x | H33: x | I33: x | J33: x | M33: x | O33: x | P33: x | Q33: x | R33: x | S33: x | T33: x | U33: x | V33: x | W33: x | X33: x | Y33: x | Z33: x | AA33: x | AB33: x | AC33: x | AD33: x | AE33: x | AF33: x | AG33: x | AH33: x | AI33: x | AJ33: x | AK33: x | AL33: x | AM33: x | AN33: x | AO33: x | AP33: x | AQ33: x | AR33: x | AS33: x | AT33: x | AU33: x | AV33: x | AW33: x | AX33: x | AY33: x | AZ33: x | BA33: x | BB33: x | BC33: x | BD33: x | BE33: x | BF33: x | BG33: x | BH33: x | BI33: x | BJ33: x | BK33: x | BL33: x | BM33: x | BO33: x | BP33: x | BQ33: x | BR33: x | BS33: x | BT33: x | BU33: x | BV33: x | BW33: x | BX33: x | BY33: x | BZ33: x | CA33: x | CB33: x | CC33: x | CD33: x | CE33: x | CF33: x | CG33: x | CH33: x | CI33: x | CJ33: x | CK33: x | CL33: x | CM33: x | CN33: x | CO33: x | CP33: x | CQ33: x | CR33: x | CS33: x | CT33: x | CU33: x | CV33: x | CW33: x | CX33: x | CY33: x | CZ33: x | DA33: x | DB33: x | DC33: x | DD33: x | DE33: x | DF33: x
A34: Erna | B34: 33 | C34: x | D34: x | E34: x | F34: x | G34: x | H34: x | I34: x | J34: x | M34: x | O34: x | P34: x | Q34: x | R34: x | S34: x | T34: x | U34: x | V34: x | W34: x | X34: x | Y34: x | Z34: x | AA34: x | AB34: x | AC34: x | AD34: x | AE34: x | AF34: x | AG34: x | AH34: x | AI34: x | AJ34: x | AK34: x | AL34: x | AM34: x | AN34: x | AO34: x | AP34: x | AQ34: x | AR34: x | AS34: x | AT34: x | AU34: x | AV34: x | AW34: x | AX34: x | AY34: x | AZ34: x | BA34: x | BB34: x | BC34: x | BD34: x | BE34: x | BF34: x | BG34: x | BH34: x | BI34: x | BJ34: x | BK34: x | BL34: x | BM34: x | BO34: x | BP34: x | BQ34: x | BR34: x | BS34: x | BT34: x | BU34: x | BV34: x | BW34: x | BX34: x | BY34: x | BZ34: x | CA34: x | CB34: x | CC34: x | CD34: x | CE34: x | CF34: x | CG34: x | CH34: x | CI34: x | CJ34: x | CK34: x | CL34: x | CM34: x | CN34: x | CO34: x | CP34: x | CQ34: x | CR34: x | CS34: x | CT34: x | CU34: x | CV34: x | CW34: x | CX34: x | CY34: x | CZ34: x | DA34: x | DB34: x | DC34: x | DD34: x | DE34: x | DF34: x
A35: Dany | B35: 34 | C35: x | D35: x | E35: x | F35: x | G35: x | H35: x | I35: x | J35: x | M35: x | O35: x | P35: x | Q35: x | R35: x | S35: x | T35: x | U35: x | V35: x | W35: x | X35: x | Y35: x | Z35: x | AA35: x | AB35: x | AC35: x | AD35: x | AE35: x | AF35: x | AG35: x | AH35: x | AI35: x | AJ35: x | AK35: x | AL35: x | AM35: x | AN35: x | AO35: x | AP35: x | AQ35: x | AR35: x | AS35: x | AT35: x | AU35: x | AV35: x | AW35: x | AX35: x | AY35: x | AZ35: x | BA35: x | BB35: x | BC35: x | BD35: x | BE35: x | BF35: x | BG35: x | BH35: x | BI35: x | BJ35: x | BK35: x | BL35: x | BM35: x | BO35: x | BP35: x | BQ35: x | BR35: x | BS35: x | BT35: x | BU35: x | BV35: x | BW35: x | BX35: x | BY35: x | BZ35: x | CA35: x | CB35: x | CC35: x | CD35: x | CE35: x | CF35: x | CG35: x | CH35: x | CI35: x | CJ35: x | CK35: x | CL35: x | CM35: x | CN35: x | CO35: x | CP35: x | CQ35: x | CR35: x | CS35: x | CT35: x | CU35: x | CV35: x | CW35: x | CX35: x | CY35: x | CZ35: x | DA35: x | DB35: x | DC35: x | DD35: x | DE35: x | DF35: x
A36: Kevin | B36: 35 | C36: x | D36: x | E36: x | F36: x | G36: x | H36: x | I36: x | J36: x | M36: x | O36: x | P36: x | Q36: x | R36: x | S36: x | T36: x | U36: x | V36: x | W36: x | X36: x | Y36: x | Z36: x | AA36: x | AB36: x | AC36: x | AD36: x | AE36: x | AF36: x | AG36: x | AH36: x | AI36: x | AJ36: x | AK36: x | AL36: x | AM36: x | AN36: x | AO36: x | AP36: x | AQ36: x | AR36: x | AS36: x | AT36: x | AU36: x | AV36: x | AW36: x | AX36: x | AY36: x | AZ36: x | BA36: x | BB36: x | BC36: x | BD36: x | BE36: x | BF36: x | BG36: x | BH36: x | BI36: x | BJ36: x | BK36: x | BL36: x | BM36: x | BO36: x | BP36: x | BQ36: x | BR36: x | BS36: x | BT36: x | BU36: x | BV36: x | BW36: x | BX36: x | BY36: x | BZ36: x | CA36: x | CB36: x | CC36: x | CD36: x | CE36: x | CF36: x | CG36: x | CH36: x | CI36: x | CJ36: x | CK36: x | CL36: x | CM36: x | CN36: x | CO36: x | CP36: x | CQ36: x | CR36: x | CS36: x | CT36: x | CU36: x | CV36: x | CW36: x | CX36: x | CY36: x | CZ36: x | DA36: x | DB36: x | DC36: x | DD36: x | DE36: x | DF36: x
A37: Erna | B37: 36 | C37: x | D37: x | E37: x | F37: x | G37: x | H37: x | I37: x | J37: x | M37: x | O37: x | P37: x | Q37: x | R37: x | S37: x | T37: x | U37: x | V37: x | W37: x | X37: x | Y37: x | Z37: x | AA37: x | AB37: x | AC37: x | AD37: x | AE37: x | AF37: x | AG37: x | AH37: x | AI37: x | AJ37: x | AK37: x | AL37: x | AM37: x | AN37: x | AO37: x | AP37: x | AQ37: x | AR37: x | AS37: x | AT37: x | AU37: x | AV37: x | AW37: x | AX37: x | AY37: x | AZ37: x | BA37: x | BB37: x | BC37: x | BD37: x | BE37: x | BF37: x | BG37: x | BH37: x | BI37: x | BJ37: x | BK37: x | BL37: x | BM37: x | BO37: x | BP37: x | BQ37: x | BR37: x | BS37: x | BT37: x | BU37: x | BV37: x | BW37: x | BX37: x | BY37: x | BZ37: x | CA37: x | CB37: x | CC37: x | CD37: x | CE37: x | CF37: x | CG37: x | CH37: x | CI37: x | CJ37: x | CK37: x | CL37: x | CM37: x | CN37: x | CO37: x | CP37: x | CQ37: x | CR37: x | CS37: x | CT37: x | CU37: x | CV37: x | CW37: x | CX37: x | CY37: x | CZ37: x | DA37: x | DB37: x | DC37: x | DD37: x | DE37: x | DF37: x
A38: Rudy V | B38: 37 | C38: x | D38: x | E38: x | F38: x | G38: x | H38: x | I38: x | J38: x | M38: x | O38: x | P38: x | Q38: x | R38: x | S38: x | T38: x | U38: x | V38: x | W38: x | X38: x | Y38: x | Z38: x | AA38: x | AB38: x | AC38: x | AD38: x | AE38: x | AF38: x | AG38: x | AH38: x | AI38: x | AJ38: x | AK38: x | AL38: x | AM38: x | AN38: x | AO38: x | AP38: x | AQ38: x | AR38: x | AS38: x | AT38: x | AU38: x | AV38: x | AW38: x | AX38: x | AY38: x | AZ38: x | BA38: x | BB38: x | BC38: x | BD38: x | BE38: x | BF38: x | BG38: x | BH38: x | BI38: x | BJ38: x | BK38: x | BL38: x | BM38: x | BO38: x | BP38: x | BQ38: x | BR38: x | BS38: x | BT38: x | BU38: x | BV38: x | BW38: x | BX38: x | BY38: x | BZ38: x | CA38: x | CB38: x | CC38: x | CD38: x | CE38: x | CF38: x | CG38: x | CH38: x | CI38: x | CJ38: x | CK38: x | CL38: x | CM38: x | CN38: x | CO38: x | CP38: x | CQ38: x | CR38: x | CS38: x | CT38: x | CU38: x | CV38: x | CW38: x | CX38: x | CY38: x | CZ38: x | DA38: x | DB38: x | DC38: x | DD38: x | DE38: x | DF38: x
A39: Fabienne | B39: 38 | C39: x | D39: x | E39: x | F39: x | G39: x | H39: x | I39: x | J39: x | M39: x | O39: x | P39: x | Q39: x | R39: x | S39: x | T39: x | U39: x | V39: x | W39: x | X39: x | Y39: x | Z39: x | AA39: x | AB39: x | AC39: x | AD39: x | AE39: x | AF39: x | AG39: x | AH39: x | AI39: x | AJ39: x | AK39: x | AL39: x | AM39: x | AN39: x | AO39: x | AP39: x | AQ39: x | AR39: x | AS39: x | AT39: x | AU39: x | AV39: x | AW39: x | AX39: x | AY39: x | AZ39: x | BA39: x | BB39: x | BC39: x | BD39: x | BE39: x | BF39: x | BG39: x | BH39: x | BI39: x | BJ39: x | BK39: x | BL39: x | BM39: x | BO39: x | BP39: x | BQ39: x | BR39: x | BS39: x | BT39: x | BU39: x | BV39: x | BW39: x | BX39: x | BY39: x | BZ39: x | CA39: x | CB39: x | CC39: x | CD39: x | CE39: x | CF39: x | CG39: x | CH39: x | CI39: x | CJ39: x | CK39: x | CL39: x | CM39: x | CN39: x | CO39: x | CP39: x | CQ39: x | CR39: x | CS39: x | CT39: x | CU39: x | CV39: x | CW39: x | CX39: x | CY39: x | CZ39: x | DA39: x | DB39: x | DC39: x | DD39: x | DE39: x | DF39: x
A40: Fabienne | B40: 39 | C40: x | D40: x | E40: x | F40: x | G40: x | H40: x | I40: x | J40: x | M40: x | O40: x | P40: x | Q40: x | R40: x | S40: x | T40: x | U40: x | V40: x | W40: x | X40: x | Y40: x | Z40: x | AA40: x | AB40: x | AC40: x | AD40: x | AE40: x | AF40: x | AG40: x | AH40: x | AI40: x | AJ40: x | AK40: x | AL40: x | AM40: x | AN40: x | AO40: x | AP40: x | AQ40: x | AR40: x | AS40: x | AT40: x | AU40: x | AV40: x | AW40: x | AX40: x | AY40: x | AZ40: x | BA40: x | BB40: x | BC40: x | BD40: x | BE40: x | BF40: x | BG40: x | BH40: x | BI40: x | BJ40: x | BK40: x | BL40: x | BM40: x | BO40: x | BP40: x | BQ40: x | BR40: x | BS40: x | BT40: x | BU40: x | BV40: x | BW40: x | BX40: x | BY40: x | BZ40: x | CA40: x | CB40: x | CC40: x | CD40: x | CE40: x | CF40: x | CG40: x | CH40: x | CI40: x | CJ40: x | CK40: x | CL40: x | CM40: x | CN40: x | CO40: x | CP40: x | CQ40: x | CR40: x | CS40: x | CT40: x | CU40: x | CV40: x | CW40: x | CX40: x | CY40: x | CZ40: x | DA40: x | DB40: x | DC40: x | DD40: x | DE40: x | DF40: x
A41: A | B41: 40 | C41: x | D41: x | E41: x | F41: x | G41: x | H41: x | I41: x | J41: x | M41: x | O41: x | P41: x | Q41: x | R41: x | S41: x | T41: x | U41: x | V41: x | W41: x | X41: x | Y41: x | Z41: x | AA41: x | AB41: x | AC41: x | AD41: x | AE41: x | AF41: x | AG41: x | AH41: x | AI41: x | AJ41: x | AK41: x | AL41: x | AM41: x | AN41: x | AO41: x | AP41: x | AQ41: x | AR41: x | AS41: x | AT41: x | AU41: x | AV41: x | AW41: x | AX41: x | AY41: x | AZ41: x | BA41: x | BB41: x | BC41: x | BD41: x | BE41: x | BF41: x | BG41: x | BH41: x | BI41: x | BJ41: x | BK41: x | BL41: x | BM41: x | BO41: x | BP41: x | BQ41: x | BR41: x | BS41: x | BT41: x | BU41: x | BV41: x | BW41: x | BX41: x | BY41: x | BZ41: x | CA41: x | CB41: x | CC41: x | CD41: x | CE41: x | CF41: x | CG41: x | CH41: x | CI41: x | CJ41: x | CK41: x | CL41: x | CM41: x | CN41: x | CO41: x | CP41: x | CQ41: x | CR41: x | CS41: x | CT41: x | CU41: x | CV41: x | CW41: x | CX41: x | CY41: x | CZ41: x | DA41: x | DB41: x | DC41: x | DD41: x | DE41: x | DF41: x
A42: A | B42: 41 | C42: x | D42: x | E42: x | F42: x | G42: x | H42: x | I42: x | J42: x | M42: x | O42: x | P42: x | Q42: x | R42: x | S42: x | T42: x | U42: x | V42: x | W42: x | X42: x | Y42: x | Z42: x | AA42: x | AB42: x | AC42: x | AD42: x | AE42: x | AF42: x | AG42: x | AH42: x | AI42: x | AJ42: x | AK42: x | AL42: x | AM42: x | AN42: x | AO42: x | AP42: x | AQ42: x | AR42: x | AS42: x | AT42: x | AU42: x | AV42: x | AW42: x | AX42: x | AY42: x | AZ42: x | BA42: x | BB42: x | BC42: x | BD42: x | BE42: x | BF42: x | BG42: x | BH42: x | BI42: x | BJ42: x | BK42: x | BL42: x | BM42: x | BO42: x | BP42: x | BQ42: x | BR42: x | BS42: x | BT42: x | BU42: x | BV42: x | BW42: x | BX42: x | BY42: x | BZ42: x | CA42: x | CB42: x | CC42: x | CD42: x | CE42: x | CF42: x | CG42: x | CH42: x | CI42: x | CJ42: x | CK42: x | CL42: x | CM42: x | CN42: x | CO42: x | CP42: x | CQ42: x | CR42: x | CS42: x | CT42: x | CU42: x | CV42: x | CW42: x | CX42: x | CY42: x | CZ42: x | DA42: x | DB42: x | DC42: x | DD42: x | DE42: x | DF42: x
A43: A | B43: 42 | C43: x | D43: x | E43: x | F43: x | G43: x | H43: x | I43: x | J43: x | M43: x | O43: x | P43: x | Q43: x | R43: x | S43: x | T43: x | U43: x | V43: x | W43: x | X43: x | Y43: x | Z43: x | AA43: x | AB43: x | AC43: x | AD43: x | AE43: x | AF43: x | AG43: x | AH43: x | AI43: x | AJ43: x | AK43: x | AL43: x | AM43: x | AN43: x | AO43: x | AP43: x | AQ43: x | AR43: x | AS43: x | AT43: x | AU43: x | AV43: x | AW43: x | AX43: x | AY43: x | AZ43: x | BA43: x | BB43: x | BC43: x | BD43: x | BE43: x | BF43: x | BG43: x | BH43: x | BI43: x | BJ43: x | BK43: x | BL43: x | BM43: x | BO43: x | BP43: x | BQ43: x | BR43: x | BS43: x | BT43: x | BU43: x | BV43: x | BW43: x | BX43: x | BY43: x | BZ43: x | CA43: x | CB43: x | CC43: x | CD43: x | CE43: x | CF43: x | CG43: x | CH43: x | CI43: x | CJ43: x | CK43: x | CL43: x | CM43: x | CN43: x | CO43: x | CP43: x | CQ43: x | CR43: x | CS43: x | CT43: x | CU43: x | CV43: x | CW43: x | CX43: x | CY43: x | CZ43: x | DA43: x | DB43: x | DC43: x | DD43: x | DE43: x | DF43: x
A44: Nat | B44: 43 | C44: x | D44: x | E44: x | F44: x | G44: x | H44: x | I44: x | J44: x | M44: x | O44: x | P44: x | Q44: x | R44: x | S44: x | T44: x | U44: x | V44: x | W44: x | X44: x | Y44: x | Z44: x | AA44: x | AB44: x | AC44: x | AD44: x | AE44: x | AF44: x | AG44: x | AH44: x | AI44: x | AJ44: x | AK44: x | AL44: x | AM44: x | AN44: x | AO44: x | AP44: x | AQ44: x | AR44: x | AS44: x | AT44: x | AU44: x | AV44: x | AW44: x | AX44: x | AY44: x | AZ44: x | BA44: x | BB44: x | BC44: x | BD44: x | BE44: x | BF44: x | BG44: x | BH44: x | BI44: x | BJ44: x | BK44: x | BL44: x | BM44: x | BO44: x | BP44: x | BQ44: x | BR44: x | BS44: x | BT44: x | BU44: x | BV44: x | BW44: x | BX44: x | BY44: x | BZ44: x | CA44: x | CB44: x | CC44: x | CD44: x | CE44: x | CF44: x | CG44: x | CH44: x | CI44: x | CJ44: x | CK44: x | CL44: x | CM44: x | CN44: x | CO44: x | CP44: x | CQ44: x | CR44: x | CS44: x | CT44: x | CU44: x | CV44: x | CW44: x | CX44: x | CY44: x | CZ44: x | DA44: x | DB44: x | DC44: x | DD44: x | DE44: x | DF44: x
A45: Adelin | B45: 44 | C45: x | D45: x | E45: x | F45: x | G45: x | H45: x | I45: x | J45: x | M45: x | O45: x | P45: x | Q45: x | R45: x | S45: x | T45: x | U45: x | V45: x | W45: x | X45: x | Y45: x | Z45: x | AA45: x | AB45: x | AC45: x | AD45: x | AE45: x | AF45: x | AG45: x | AH45: x | AI45: x | AJ45: x | AK45: x | AL45: x | AM45: x | AN45: x | AO45: x | AP45: x | AQ45: x | AR45: x | AS45: x | AT45: x | AU45: x | AV45: x | AW45: x | AX45: x | AY45: x | AZ45: x | BA45: x | BB45: x | BC45: x | BD45: x | BE45: x | BF45: x | BG45: x | BH45: x | BI45: x | BJ45: x | BK45: x | BL45: x | BM45: x | BO45: x | BP45: x | BQ45: x | BR45: x | BS45: x | BT45: x | BU45: x | BV45: x | BW45: x | BX45: x | BY45: x | BZ45: x | CA45: x | CB45: x | CC45: x | CD45: x | CE45: x | CF45: x | CG45: x | CH45: x | CI45: x | CJ45: x | CK45: x | CL45: x | CM45: x | CN45: x | CO45: x | CP45: x | CQ45: x | CR45: x | CS45: x | CT45: x | CU45: x | CV45: x | CW45: x | CX45: x | CY45: x | CZ45: x | DA45: x | DB45: x | DC45: x | DD45: x | DE45: x | DF45: x | DG45: x | DH45: x | DI45: x | DJ45: x | DK45: x
A46: Bernadette | B46: 45 | C46: x | D46: x | E46: x | F46: x | G46: x | H46: x | I46: x | J46: x | M46: x | O46: x | P46: x | Q46: x | R46: x | S46: x | T46: x | U46: x | V46: x | W46: x | X46: x | Y46: x | Z46: x | AA46: x | AB46: x | AC46: x | AD46: x | AE46: x | AF46: x | AG46: x | AH46: x | AI46: x | AJ46: x | AK46: x | AL46: x | AM46: x | AN46: x | AO46: x | AP46: x | AQ46: x | AR46: x | AS46: x | AT46: x | AU46: x | AV46: x | AW46: x | AX46: x | AY46: x | AZ46: x | BA46: x | BB46: x | BC46: x | BD46: x | BE46: x | BF46: x | BG46: x | BH46: x | BI46: x | BJ46: x | BK46: x | BL46: x | BM46: x | BO46: x | BP46: x | BQ46: x | BR46: x | BS46: x | BT46: x | BU46: x | BV46: x | BW46: x | BX46: x | BY46: x | BZ46: x | CA46: x | CB46: x | CC46: x | CD46: x | CE46: x | CF46: x | CG46: x | CH46: x | CI46: x | CJ46: x | CK46: x | CL46: x | CM46: x | CN46: x | CO46: x | CP46: x | CQ46: x | CR46: x | CS46: x | CT46: x | CU46: x | CV46: x | CW46: x | CX46: x | CY46: x | CZ46: x | DA46: x | DB46: x | DC46: x | DD46: x | DE46: x | DF46: x
C47: =COUNTIF(C2:C46,"x") -> 45 | D47: =COUNTIF(D2:D46,"x") -> 45 | E47: 45 | F47: 45 | G47: 45 | H47: 45 | I47: 45 | J47: 45 | K47: 0 | L47: 0 | M47: 45 | N47: 0 | O47: 45 | P47: 45 | Q47: 45 | R47: 45 | S47: 45 | T47: 45 | U47: 45 | V47: 45 | W47: 45 | X47: 45 | Y47: 45 | Z47: 45 | AA47: 45 | AB47: 45 | AC47: 45 | AD47: 45 | AE47: 45 | AF47: 45 | AG47: 45 | AH47: 45 | AI47: 45 | AJ47: 45 | AK47: 45 | AL47: 45 | AM47: 45 | AN47: 45 | AO47: 45 | AP47: 45 | AQ47: 45 | AR47: 45 | AS47: 45 | AT47: 45 | AU47: 45 | AV47: 45 | AW47: 45 | AX47: 45 | AY47: 45 | AZ47: 45 | BA47: 45 | BB47: 45 | BC47: 45 | BD47: 45 | BE47: 45 | BF47: 45 | BG47: 45 | BH47: 45 | BI47: 45 | BJ47: 45 | BK47: 45 | BL47: 45 | BM47: 45 | BN47: 0 | BO47: 45 | BP47: =COUNTIF(BP2:BP46,"x") -> 45 | BQ47: 45 | BR47: 45 | BS47: 45 | BT47: 45 | BU47: 45 | BV47: 45 | BW47: 45 | BX47: 45 | BY47: 45 | BZ47: 45 | CA47: 45 | CB47: 45 | CC47: 45 | CD47: 45 | CE47: 45 | CF47: 45 | CG47: 45 | CH47: 45 | CI47: 45 | CJ47: 45 | CK47: 45 | CL47: 45 | CM47: 45 | CN47: 45 | CO47: 45 | CP47: 45 | CQ47: 45 | CR47: 45 | CS47: 45 | CT47: 45 | CU47: 45 | CV47: 45 | CW47: 45 | CX47: 45 | CY47: =COUNTIF(CY2:CY46,"x") -> 45 | CZ47: 45 | DA47: 45 | DB47: 45 | DC47: 45 | DD47: 45 | DE47: 45 | DF47: 45 | DG47: 8 | DH47: 8 | DI47: 8 | DJ47: 7 | DK47: 1 | DL47: 0
B49: =SUMIF(47:47,"<45") -> 32

Sheet Reserve Nr2
B1: Datum Nr | C1: 2016-05-21 | D1: =C1+7 -> 2016-05-28 | E1: =D1+7 -> 2016-06-04 | F1: 2016-06-11 | G1: 2016-06-18 | H1: 2016-06-25 | I1: 2016-07-02 | J1: 2016-07-09 | K1: 2016-07-16 | L1: 2016-07-23 | M1: 2016-07-30 | N1: 2016-08-06 | O1: 2016-08-13 | P1: 2016-08-20 | Q1: 2016-08-27 | R1: 2016-09-03 | S1: 2016-09-10 | T1: 2016-09-17 | U1: 2016-09-24 | V1: 2016-10-01 | W1: 2016-10-08 | X1: 2016-10-15 | Y1: 2016-10-22 | Z1: 2016-10-29 | AA1: 2016-11-05 | AB1: 2016-11-12 | AC1: 2016-11-19 | AD1: 2016-11-26 | AE1: 2016-12-03 | AF1: 2016-12-10 | AG1: 2016-12-17 | AH1: 2016-12-24 | AI1: 2016-12-31 | AJ1: 2017-01-07 | AK1: 2017-01-14 | AL1: 2017-01-21 | AM1: 2017-01-28 | AN1: 2017-02-04 | AO1: 2017-02-11 | AP1: 2017-02-18 | AQ1: 2017-02-25 | AR1: 2017-03-04 | AS1: 2017-03-11 | AT1: 2017-03-18 | AU1: 2017-03-25 | AV1: 2017-04-01 | AW1: 2017-04-08 | AX1: 2017-04-15 | AY1: 2017-04-22 | AZ1: 2017-04-29 | BA1: 2017-05-06 | BB1: 2017-05-13 | BC1: 2017-05-20 | BD1: 2017-05-27 | BE1: 2017-06-03 | BF1: 2017-06-10 | BG1: 2017-06-17 | BH1: 2017-06-24 | BI1: 2017-07-01 | BJ1: 2017-07-08 | BK1: 2017-07-15 | BL1: 2017-07-22 | BM1: 2017-07-29 | BN1: 2017-08-05 | BO1: 2017-08-12 | BP1: 2017-08-19 | BQ1: 2017-08-26 | BR1: =BQ1+7 -> 2017-09-02 | BS1: 2017-09-09 | BT1: 2017-09-16 | BU1: 2017-09-23 | BV1: 2017-09-30 | BW1: 2017-10-07 | BX1: 2017-10-14 | BY1: 2017-10-21 | BZ1: 2017-10-28 | CA1: 2017-11-04 | CB1: 2017-11-11 | CC1: 2017-11-18 | CD1: 2017-11-25 | CE1: 2017-12-02 | CF1: 2017-12-09 | CG1: 2017-12-16 | CH1: 2017-12-23 | CI1: 2017-12-30 | CJ1: 2018-01-06 | CK1: 2018-01-13 | CL1: 2018-01-20 | CM1: 2018-01-27 | CN1: 2018-02-03 | CO1: 2018-02-10 | CP1: 2018-02-17 | CQ1: 2018-02-24 | CR1: 2018-03-03 | CS1: 2018-03-10 | CT1: 2018-03-17 | CU1: =CT1+7 -> 2018-03-24 | CV1: =CU1+7 -> 2018-03-31 | CW1: =CV1+7 -> 2018-04-07 | CX1: =CW1+7 -> 2018-04-14 | CY1: =CX1+7 -> 2018-04-21 | CZ1: 2018-04-28 | DA1: 2018-05-05 | DB1: 2018-05-12 | DC1: 2018-05-19 | DD1: 2018-05-26 | DE1: 2018-06-02 | DF1: 2018-06-09 | DG1: 2018-06-16 | DH1: 2018-06-23 | DI1: 2018-06-30 | DJ1: 2018-07-07 | DK1: 2018-07-14 | DL1: 2018-07-21 | DM1: 2018-07-28 | DN1: 2018-08-04 | DO1: 2018-08-11 | DP1: 2018-08-18 | DQ1: 2018-08-25 | DR1: 2018-09-01 | DS1: 2018-09-08 | DT1: 2018-09-15 | DU1: 2018-09-22 | DV1: 2018-09-29 | DW1: 2018-10-06 | DX1: 2018-10-13 | DY1: 2018-10-20 | DZ1: 2018-10-27 | EA1: 2018-11-03 | EB1: 2018-11-10 | EC1: 2018-11-17 | ED1: 2018-11-24 | EE1: 2018-12-01 | EF1: 2018-12-08 | EG1: 2018-12-15 | EH1: 2018-12-22 | EI1: 2018-12-29 | EJ1: 2019-01-05 | EK1: 2019-01-12 | EL1: 2019-01-19 | EM1: 2019-01-26 | EN1: 2019-02-02 | EO1: 2019-02-09 | EP1: 2019-02-16 | EQ1: 2019-02-23 | ER1: 2019-03-02 | ES1: 2019-03-09 | ET1: 2019-03-16 | EV1: Ga naar reserve N°1
A2: Fabienne | B2: 1 | F2: x | G2: x | H2: x | I2: x | J2: x | O2: x | R2: x | T2: x | U2: x | V2: x | W2: x | X2: x | Y2: x | Z2: x | AA2: x | AB2: x | AC2: x | AD2: x | AE2: x | AF2: x | AG2: x | AH2: x | AI2: x | AJ2: x | AK2: x | AN2: x | AO2: x | AP2: x | AQ2: x | AR2: x | AS2: x | AT2: x | AV2: x | AW2: x | AX2: x | AY2: x | AZ2: x | BA2: x | BB2: x | BC2: x | BD2: x | BE2: x | BF2: x | BG2: x | BH2: x | BI2: x | BJ2: x | BK2: x | BL2: x | BM2: x | BO2: x | BP2: x | BR2: x | BS2: x | BT2: x | BU2: x | BV2: x | BW2: x | BY2: x | BZ2: x | CA2: x | CB2: x | CC2: x | CD2: x | CE2: x | CF2: x | CI2: x | CK2: x | CL2: x | CM2: x | CN2: x | CO2: x | CP2: x | CQ2: x | CR2: x | CS2: x | CT2: x | CU2: x | CV2: x | CW2: x | CX2: x | CY2: x | CZ2: x | DA2: x | DB2: x | DC2: x | DD2: x | DE2: x | DF2: x
A3: lalojo | B3: 2 | F3: x | G3: x | H3: x | I3: x | J3: x | O3: x | R3: x | T3: x | U3: x | V3: x | W3: x | X3: x | Y3: x | Z3: x | AA3: x | AB3: x | AC3: x | AD3: x | AE3: x | AF3: x | AG3: x | AH3: x | AI3: x | AJ3: x | AK3: x | AN3: x | AO3: x | AP3: x | AQ3: x | AR3: x | AS3: x | AT3: x | AV3: x | AW3: x | AX3: x | AY3: x | AZ3: x | BA3: x | BB3: x | BC3: x | BD3: x | BE3: x | BF3: x | BG3: x | BH3: x | BI3: x | BJ3: x | BK3: x | BL3: x | BM3: x | BO3: x | BP3: x | BR3: x | BS3: x | BT3: x | BU3: x | BV3: x | BW3: x | BY3: x | BZ3: x | CA3: x | CB3: x | CC3: x | CD3: x | CE3: x | CF3: x | CI3: x | CK3: x | CL3: x | CM3: x | CN3: x | CO3: x | CP3: x | CQ3: x | CR3: x | CS3: x | CT3: x | CU3: x | CV3: x | CW3: x | CX3: x | CY3: x | CZ3: x | DA3: x | DB3: x | DC3: x | DD3: x | DE3: x | DF3: x
B4: 3 | F4: x | G4: x | H4: x | I4: x | J4: x | O4: x | R4: x | T4: x | U4: x | V4: x | W4: x | X4: x | Y4: x | Z4: x | AA4: x | AB4: x | AC4: x | AD4: x | AE4: x | AF4: x | AG4: x | AH4: x | AI4: x | AJ4: x | AK4: x | AN4: x | AO4: x | AP4: x | AQ4: x | AR4: x | AS4: x | AT4: x | AV4: x | AW4: x | AX4: x | AY4: x | AZ4: x | BA4: x | BB4: x | BC4: x | BD4: x | BE4: x | BF4: x | BG4: x | BH4: x | BI4: x | BJ4: x | BK4: x | BL4: x | BM4: x | BO4: x | BP4: x | BR4: x | BS4: x | BT4: x | BU4: x | BV4: x | BW4: x | BY4: x | BZ4: x | CA4: x | CB4: x | CC4: x | CD4: x | CE4: x | CF4: x | CI4: x | CK4: x | CL4: x | CM4: x | CN4: x | CO4: x | CP4: x | CQ4: x | CR4: x | CS4: x | CT4: x | CU4: x | CV4: x | CW4: x | CX4: x | CY4: x | CZ4: x | DA4: x | DB4: x | DC4: x | DD4: x | DE4: x | DF4: x
B5: 4 | F5: x | G5: x | H5: x | I5: x | J5: x | O5: x | R5: x | T5: x | U5: x | V5: x | W5: x | X5: x | Y5: x | Z5: x | AA5: x | AB5: x | AC5: x | AD5: x | AE5: x | AF5: x | AG5: x | AH5: x | AI5: x | AJ5: x | AK5: x | AN5: x | AO5: x | AP5: x | AQ5: x | AR5: x | AS5: x | AT5: x | AV5: x | AW5: x | AX5: x | AY5: x | AZ5: x | BA5: x | BB5: x | BC5: x | BD5: x | BE5: x | BF5: x | BG5: x | BH5: x | BI5: x | BJ5: x | BK5: x | BL5: x | BM5: x | BO5: x | BP5: x | BR5: x | BS5: x | BT5: x | BU5: x | BV5: x | BW5: x | BY5: x | BZ5: x | CA5: x | CB5: x | CC5: x | CD5: x | CE5: x | CF5: x | CI5: x | CK5: x | CL5: x | CM5: x | CN5: x | CO5: x | CP5: x | CQ5: x | CR5: x | CS5: x | CT5: x | CU5: x | CV5: x | CW5: x | CX5: x | CY5: x | CZ5: x | DA5: x | DB5: x | DC5: x | DD5: x | DE5: x | DF5: x
B6: 5 | F6: x | G6: x | H6: x | I6: x | J6: x | O6: x | R6: x | T6: x | U6: x | V6: x | W6: x | X6: x | Y6: x | Z6: x | AA6: x | AB6: x | AC6: x | AD6: x | AE6: x | AF6: x | AG6: x | AH6: x | AI6: x | AJ6: x | AK6: x | AN6: x | AO6: x | AP6: x | AQ6: x | AR6: x | AS6: x | AT6: x | AV6: x | AW6: x | AX6: x | AY6: x | AZ6: x | BA6: x | BB6: x | BC6: x | BD6: x | BE6: x | BF6: x | BG6: x | BH6: x | BI6: x | BJ6: x | BK6: x | BL6: x | BM6: x | BO6: x | BP6: x | BR6: x | BS6: x | BT6: x | BU6: x | BV6: x | BW6: x | BY6: x | BZ6: x | CA6: x | CB6: x | CC6: x | CD6: x | CE6: x | CF6: x | CI6: x | CK6: x | CL6: x | CM6: x | CN6: x | CO6: x | CP6: x | CQ6: x | CR6: x | CS6: x | CT6: x | CU6: x | CV6: x | CW6: x | CX6: x | CY6: x | CZ6: x | DA6: x | DB6: x | DC6: x | DD6: x | DE6: x | DF6: x
B7: 6 | F7: x | G7: x | H7: x | I7: x | J7: x | O7: x | R7: x | T7: x | U7: x | V7: x | W7: x | X7: x | Y7: x | Z7: x | AA7: x | AB7: x | AC7: x | AD7: x | AE7: x | AF7: x | AG7: x | AH7: x | AI7: x | AJ7: x | AK7: x | AN7: x | AO7: x | AP7: x | AQ7: x | AR7: x | AS7: x | AT7: x | AV7: x | AW7: x | AX7: x | AY7: x | AZ7: x | BA7: x | BB7: x | BC7: x | BD7: x | BE7: x | BF7: x | BG7: x | BH7: x | BI7: x | BJ7: x | BK7: x | BL7: x | BM7: x | BO7: x | BP7: x | BR7: x | BS7: x | BT7: x | BU7: x | BV7: x | BW7: x | BY7: x | BZ7: x | CA7: x | CB7: x | CC7: x | CD7: x | CE7: x | CF7: x | CI7: x | CK7: x | CL7: x | CM7: x | CN7: x | CO7: x | CP7: x | CQ7: x | CR7: x | CS7: x | CT7: x | CU7: x | CV7: x | CW7: x | CX7: x | CY7: x | CZ7: x | DA7: x | DB7: x | DC7: x | DD7: x | DE7: x | DF7: x
B8: 7 | F8: x | G8: x | H8: x | I8: x | J8: x | O8: x | R8: x | T8: x | U8: x | V8: x | W8: x | X8: x | Y8: x | Z8: x | AA8: x | AB8: x | AC8: x | AD8: x | AE8: x | AF8: x | AG8: x | AH8: x | AI8: x | AJ8: x | AK8: x | AN8: x | AO8: x | AP8: x | AQ8: x | AR8: x | AS8: x | AT8: x | AV8: x | AW8: x | AX8: x | AY8: x | AZ8: x | BA8: x | BB8: x | BC8: x | BD8: x | BE8: x | BF8: x | BG8: x | BH8: x | BI8: x | BJ8: x | BK8: x | BL8: x | BM8: x | BO8: x | BP8: x | BR8: x | BS8: x | BT8: x | BU8: x | BV8: x | BW8: x | BY8: x | BZ8: x | CA8: x | CB8: x | CC8: x | CD8: x | CE8: x | CF8: x | CI8: x | CK8: x | CL8: x | CM8: x | CN8: x | CO8: x | CP8: x | CQ8: x | CR8: x | CS8: x | CT8: x | CU8: x | CV8: x | CW8: x | CX8: x | CY8: x | CZ8: x | DA8: x | DB8: x | DC8: x | DD8: x | DE8: x | DF8: x
B9: 8 | F9: x | G9: x | H9: x | I9: x | J9: x | O9: x | R9: x | T9: x | U9: x | V9: x | W9: x | X9: x | Y9: x | Z9: x | AA9: x | AB9: x | AC9: x | AD9: x | AE9: x | AF9: x | AG9: x | AH9: x | AI9: x | AJ9: x | AK9: x | AN9: x | AO9: x | AP9: x | AQ9: x | AR9: x | AS9: x | AT9: x | AV9: x | AW9: x | AX9: x | AY9: x | AZ9: x | BA9: x | BB9: x | BC9: x | BD9: x | BE9: x | BF9: x | BG9: x | BH9: x | BI9: x | BJ9: x | BK9: x | BL9: x | BM9: x | BO9: x | BP9: x | BR9: x | BS9: x | BT9: x | BU9: x | BV9: x | BW9: x | BY9: x | BZ9: x | CA9: x | CB9: x | CC9: x | CD9: x | CE9: x | CF9: x | CI9: x | CK9: x | CL9: x | CM9: x | CN9: x | CO9: x | CP9: x | CQ9: x | CR9: x | CS9: x | CT9: x | CU9: x | CV9: x | CW9: x | CX9: x | CY9: x | CZ9: x | DA9: x | DB9: x | DC9: x | DD9: x | DE9: x | DF9: x
B10: 9 | F10: x | G10: x | H10: x | I10: x | J10: x | O10: x | R10: x | T10: x | U10: x | V10: x | W10: x | X10: x | Y10: x | Z10: x | AA10: x | AB10: x | AC10: x | AD10: x | AE10: x | AF10: x | AG10: x | AH10: x | AI10: x | AJ10: x | AK10: x | AN10: x | AO10: x | AP10: x | AQ10: x | AR10: x | AS10: x | AT10: x | AV10: x | AW10: x | AX10: x | AY10: x | AZ10: x | BA10: x | BB10: x | BC10: x | BD10: x | BE10: x | BF10: x | BG10: x | BH10: x | BI10: x | BJ10: x | BK10: x | BL10: x | BM10: x | BO10: x | BP10: x | BR10: x | BS10: x | BT10: x | BU10: x | BV10: x | BW10: x | BY10: x | BZ10: x | CA10: x | CB10: x | CC10: x | CD10: x | CE10: x | CF10: x | CI10: x | CK10: x | CL10: x | CM10: x | CN10: x | CO10: x | CP10: x | CQ10: x | CR10: x | CS10: x | CT10: x | CU10: x | CV10: x | CW10: x | CX10: x | CY10: x | CZ10: x | DA10: x | DB10: x | DC10: x | DD10: x | DE10: x | DF10: x
B11: 10 | F11: x | G11: x | H11: x | I11: x | J11: x | O11: x | R11: x | T11: x | U11: x | V11: x | W11: x | X11: x | Y11: x | Z11: x | AA11: x | AB11: x | AC11: x | AD11: x | AE11: x | AF11: x | AG11: x | AH11: x | AI11: x | AJ11: x | AK11: x | AN11: x | AO11: x | AP11: x | AQ11: x | AR11: x | AS11: x | AT11: x | AV11: x | AW11: x | AX11: x | AY11: x | AZ11: x | BA11: x | BB11: x | BC11: x | BD11: x | BE11: x | BF11: x | BG11: x | BH11: x | BI11: x | BJ11: x | BK11: x | BL11: x | BM11: x | BO11: x | BP11: x | BR11: x | BS11: x | BT11: x | BU11: x | BV11: x | BW11: x | BY11: x | BZ11: x | CA11: x | CB11: x | CC11: x | CD11: x | CE11: x | CF11: x | CI11: x | CK11: x | CL11: x | CM11: x | CN11: x | CO11: x | CP11: x | CQ11: x | CR11: x | CS11: x | CT11: x | CU11: x | CV11: x | CW11: x | CX11: x | CY11: x | CZ11: x | DA11: x | DB11: x | DC11: x | DD11: x | DE11: x | DF11: x
B12: 11 | F12: x | G12: x | H12: x | I12: x | J12: x | O12: x | R12: x | T12: x | U12: x | V12: x | W12: x | X12: x | Y12: x | Z12: x | AA12: x | AB12: x | AC12: x | AD12: x | AE12: x | AF12: x | AG12: x | AH12: x | AI12: x | AJ12: x | AK12: x | AN12: x | AO12: x | AP12: x | AQ12: x | AR12: x | AS12: x | AT12: x | AV12: x | AW12: x | AX12: x | AY12: x | AZ12: x | BA12: x | BB12: x | BC12: x | BD12: x | BE12: x | BF12: x | BG12: x | BH12: x | BI12: x | BJ12: x | BK12: x | BL12: x | BM12: x | BO12: x | BP12: x | BR12: x | BS12: x | BT12: x | BU12: x | BV12: x | BW12: x | BY12: x | BZ12: x | CA12: x | CB12: x | CC12: x | CD12: x | CE12: x | CF12: x | CI12: x | CK12: x | CL12: x | CM12: x | CN12: x | CO12: x | CP12: x | CQ12: x | CR12: x | CS12: x | CT12: x | CU12: x | CV12: x | CW12: x | CX12: x | CY12: x | CZ12: x | DA12: x | DB12: x | DC12: x | DD12: x | DE12: x | DF12: x
B13: 12 | F13: x | G13: x | H13: x | I13: x | J13: x | O13: x | R13: x | T13: x | U13: x | V13: x | W13: x | X13: x | Y13: x | Z13: x | AA13: x | AB13: x | AC13: x | AD13: x | AE13: x | AF13: x | AG13: x | AH13: x | AI13: x | AJ13: x | AK13: x | AN13: x | AO13: x | AP13: x | AQ13: x | AR13: x | AS13: x | AT13: x | AV13: x | AW13: x | AX13: x | AY13: x | AZ13: x | BA13: x | BB13: x | BC13: x | BD13: x | BE13: x | BF13: x | BG13: x | BH13: x | BI13: x | BJ13: x | BK13: x | BL13: x | BM13: x | BO13: x | BP13: x | BR13: x | BS13: x | BT13: x | BU13: x | BV13: x | BW13: x | BY13: x | BZ13: x | CA13: x | CB13: x | CC13: x | CD13: x | CE13: x | CF13: x | CI13: x | CK13: x | CL13: x | CM13: x | CN13: x | CO13: x | CP13: x | CQ13: x | CR13: x | CS13: x | CT13: x | CU13: x | CV13: x | CW13: x | CX13: x | CY13: x | CZ13: x | DA13: x | DB13: x | DC13: x | DD13: x | DE13: x | DF13: x
B14: 13 | F14: x | G14: x | H14: x | I14: x | J14: x | O14: x | R14: x | T14: x | U14: x | V14: x | W14: x | X14: x | Y14: x | Z14: x | AA14: x | AB14: x | AC14: x | AD14: x | AE14: x | AF14: x | AG14: x | AH14: x | AI14: x | AJ14: x | AK14: x | AN14: x | AO14: x | AP14: x | AQ14: x | AR14: x | AS14: x | AT14: x | AV14: x | AW14: x | AX14: x | AY14: x | AZ14: x | BA14: x | BB14: x | BC14: x | BD14: x | BE14: x | BF14: x | BG14: x | BH14: x | BI14: x | BJ14: x | BK14: x | BL14: x | BM14: x | BO14: x | BP14: x | BR14: x | BS14: x | BT14: x | BU14: x | BV14: x | BW14: x | BY14: x | BZ14: x | CA14: x | CB14: x | CC14: x | CD14: x | CE14: x | CF14: x | CI14: x | CK14: x | CL14: x | CM14: x | CN14: x | CO14: x | CP14: x | CQ14: x | CR14: x | CS14: x | CT14: x | CU14: x | CV14: x | CW14: x | CX14: x | CY14: x | CZ14: x | DA14: x | DB14: x | DC14: x | DD14: x | DE14: x | DF14: x
B15: 14 | F15: x | G15: x | H15: x | I15: x | J15: x | O15: x | R15: x | T15: x | U15: x | V15: x | W15: x | X15: x | Y15: x | Z15: x | AA15: x | AB15: x | AC15: x | AD15: x | AE15: x | AF15: x | AG15: x | AH15: x | AI15: x | AJ15: x | AK15: x | AN15: x | AO15: x | AP15: x | AQ15: x | AR15: x | AS15: x | AT15: x | AV15: x | AW15: x | AX15: x | AY15: x | AZ15: x | BA15: x | BB15: x | BC15: x | BD15: x | BE15: x | BF15: x | BG15: x | BH15: x | BI15: x | BJ15: x | BK15: x | BL15: x | BM15: x | BO15: x | BP15: x | BR15: x | BS15: x | BT15: x | BU15: x | BV15: x | BW15: x | BY15: x | BZ15: x | CA15: x | CB15: x | CC15: x | CD15: x | CE15: x | CF15: x | CI15: x | CK15: x | CL15: x | CM15: x | CN15: x | CO15: x | CP15: x | CQ15: x | CR15: x | CS15: x | CT15: x | CU15: x | CV15: x | CW15: x | CX15: x | CY15: x | CZ15: x | DA15: x | DB15: x | DC15: x | DD15: x | DE15: x | DF15: x
B16: 15 | F16: x | G16: x | H16: x | I16: x | J16: x | O16: x | R16: x | T16: x | U16: x | V16: x | W16: x | X16: x | Y16: x | Z16: x | AA16: x | AB16: x | AC16: x | AD16: x | AE16: x | AF16: x | AG16: x | AH16: x | AI16: x | AJ16: x | AK16: x | AN16: x | AO16: x | AP16: x | AQ16: x | AR16: x | AS16: x | AT16: x | AV16: x | AW16: x | AX16: x | AY16: x | AZ16: x | BA16: x | BB16: x | BC16: x | BD16: x | BE16: x | BF16: x | BG16: x | BH16: x | BI16: x | BJ16: x | BK16: x | BL16: x | BM16: x | BO16: x | BP16: x | BR16: x | BS16: x | BT16: x | BU16: x | BV16: x | BW16: x | BY16: x | BZ16: x | CA16: x | CB16: x | CC16: x | CD16: x | CE16: x | CF16: x | CI16: x | CK16: x | CL16: x | CM16: x | CN16: x | CO16: x | CP16: x | CQ16: x | CR16: x | CS16: x | CT16: x | CU16: x | CV16: x | CW16: x | CX16: x | CY16: x | CZ16: x | DA16: x | DB16: x | DC16: x | DD16: x | DE16: x | DF16: x
B17: 16 | F17: x | G17: x | H17: x | I17: x | J17: x | O17: x | R17: x | T17: x | U17: x | V17: x | W17: x | X17: x | Y17: x | Z17: x | AA17: x | AB17: x | AC17: x | AD17: x | AE17: x | AF17: x | AG17: x | AH17: x | AI17: x | AJ17: x | AK17: x | AN17: x | AO17: x | AP17: x | AQ17: x | AR17: x | AS17: x | AT17: x | AV17: x | AW17: x | AX17: x | AY17: x | AZ17: x | BA17: x | BB17: x | BC17: x | BD17: x | BE17: x | BF17: x | BG17: x | BH17: x | BI17: x | BJ17: x | BK17: x | BL17: x | BM17: x | BO17: x | BP17: x | BR17: x | BS17: x | BT17: x | BU17: x | BV17: x | BW17: x | BY17: x | BZ17: x | CA17: x | CB17: x | CC17: x | CD17: x | CE17: x | CF17: x | CI17: x | CK17: x | CL17: x | CM17: x | CN17: x | CO17: x | CP17: x | CQ17: x | CR17: x | CS17: x | CT17: x | CU17: x | CV17: x | CW17: x | CX17: x | CY17: x | CZ17: x | DA17: x | DB17: x | DC17: x | DD17: x | DE17: x | DF17: x
B18: 17 | F18: x | G18: x | H18: x | I18: x | J18: x | O18: x | R18: x | T18: x | U18: x | V18: x | W18: x | X18: x | Y18: x | Z18: x | AA18: x | AB18: x | AC18: x | AD18: x | AE18: x | AF18: x | AG18: x | AH18: x | AI18: x | AJ18: x | AK18: x | AN18: x | AO18: x | AP18: x | AQ18: x | AR18: x | AS18: x | AT18: x | AV18: x | AW18: x | AX18: x | AY18: x | AZ18: x | BA18: x | BB18: x | BC18: x | BD18: x | BE18: x | BF18: x | BG18: x | BH18: x | BI18: x | BJ18: x | BK18: x | BL18: x | BM18: x | BO18: x | BP18: x | BR18: x | BS18: x | BT18: x | BU18: x | BV18: x | BW18: x | BY18: x | BZ18: x | CA18: x | CB18: x | CC18: x | CD18: x | CE18: x | CF18: x | CI18: x | CK18: x | CL18: x | CM18: x | CN18: x | CO18: x | CP18: x | CQ18: x | CR18: x | CS18: x | CT18: x | CU18: x | CV18: x | CW18: x | CX18: x | CY18: x | CZ18: x | DA18: x | DB18: x | DC18: x | DD18: x | DE18: x | DF18: x
A19: Anja | B19: 18 | F19: x | G19: x | H19: x | I19: x | J19: x | O19: x | R19: x | T19: x | U19: x | V19: x | W19: x | X19: x | Y19: x | Z19: x | AA19: x | AB19: x | AC19: x | AD19: x | AE19: x | AF19: x | AG19: x | AH19: x | AI19: x | AJ19: x | AK19: x | AN19: x | AO19: x | AP19: x | AQ19: x | AR19: x | AS19: x | AT19: x | AV19: x | AW19: x | AX19: x | AY19: x | AZ19: x | BA19: x | BB19: x | BC19: x | BD19: x | BE19: x | BF19: x | BG19: x | BH19: x | BI19: x | BJ19: x | BK19: x | BL19: x | BM19: x | BO19: x | BP19: x | BR19: x | BS19: x | BT19: x | BU19: x | BV19: x | BW19: x | BY19: x | BZ19: x | CA19: x | CB19: x | CC19: x | CD19: x | CE19: x | CF19: x | CI19: x | CK19: x | CL19: x | CM19: x | CN19: x | CO19: x | CP19: x | CQ19: x | CR19: x | CS19: x | CT19: x | CU19: x | CV19: x | CW19: x | CX19: x | CY19: x | CZ19: x | DA19: x | DB19: x | DC19: x | DD19: x | DE19: x | DF19: x
B20: 19 | F20: x | G20: x | H20: x | I20: x | J20: x | O20: x | R20: x | T20: x | U20: x | V20: x | W20: x | X20: x | Y20: x | Z20: x | AA20: x | AB20: x | AC20: x | AD20: x | AE20: x | AF20: x | AG20: x | AH20: x | AI20: x | AJ20: x | AK20: x | AN20: x | AO20: x | AP20: x | AQ20: x | AR20: x | AS20: x | AT20: x | AV20: x | AW20: x | AX20: x | AY20: x | AZ20: x | BA20: x | BB20: x | BC20: x | BD20: x | BE20: x | BF20: x | BG20: x | BH20: x | BI20: x | BJ20: x | BK20: x | BL20: x | BM20: x | BO20: x | BP20: x | BR20: x | BS20: x | BT20: x | BU20: x | BV20: x | BW20: x | BY20: x | BZ20: x | CA20: x | CB20: x | CC20: x | CD20: x | CE20: x | CF20: x | CI20: x | CK20: x | CL20: x | CM20: x | CN20: x | CO20: x | CP20: x | CQ20: x | CR20: x | CS20: x | CT20: x | CU20: x | CV20: x | CW20: x | CX20: x | CY20: x | CZ20: x | DA20: x | DB20: x | DC20: x | DD20: x | DE20: x | DF20: x
B21: 20 | F21: x | G21: x | H21: x | I21: x | J21: x | O21: x | R21: x | T21: x | U21: x | V21: x | W21: x | X21: x | Y21: x | Z21: x | AA21: x | AB21: x | AC21: x | AD21: x | AE21: x | AF21: x | AG21: x | AH21: x | AI21: x | AJ21: x | AK21: x | AN21: x | AO21: x | AP21: x | AQ21: x | AR21: x | AS21: x | AT21: x | AV21: x | AW21: x | AX21: x | AY21: x | AZ21: x | BA21: x | BB21: x | BC21: x | BD21: x | BE21: x | BF21: x | BG21: x | BH21: x | BI21: x | BJ21: x | BK21: x | BL21: x | BM21: x | BO21: x | BP21: x | BR21: x | BS21: x | BT21: x | BU21: x | BV21: x | BW21: x | BY21: x | BZ21: x | CA21: x | CB21: x | CC21: x | CD21: x | CE21: x | CF21: x | CI21: x | CK21: x | CL21: x | CM21: x | CN21: x | CO21: x | CP21: x | CQ21: x | CR21: x | CS21: x | CT21: x | CU21: x | CV21: x | CW21: x | CX21: x | CY21: x | CZ21: x | DA21: x | DB21: x | DC21: x | DD21: x | DE21: x | DF21: x
B22: 21 | F22: x | G22: x | H22: x | I22: x | J22: x | O22: x | R22: x | T22: x | U22: x | V22: x | W22: x | X22: x | Y22: x | Z22: x | AA22: x | AB22: x | AC22: x | AD22: x | AE22: x | AF22: x | AG22: x | AH22: x | AI22: x | AJ22: x | AK22: x | AN22: x | AO22: x | AP22: x | AQ22: x | AR22: x | AS22: x | AT22: x | AV22: x | AW22: x | AX22: x | AY22: x | AZ22: x | BA22: x | BB22: x | BC22: x | BD22: x | BE22: x | BF22: x | BG22: x | BH22: x | BI22: x | BJ22: x | BK22: x | BL22: x | BM22: x | BO22: x | BP22: x | BR22: x | BS22: x | BT22: x | BU22: x | BV22: x | BW22: x | BY22: x | BZ22: x | CA22: x | CB22: x | CC22: x | CD22: x | CE22: x | CF22: x | CI22: x | CK22: x | CL22: x | CM22: x | CN22: x | CO22: x | CP22: x | CQ22: x | CR22: x | CS22: x | CT22: x | CU22: x | CV22: x | CW22: x | CX22: x | CY22: x | CZ22: x | DA22: x | DB22: x | DC22: x | DD22: x | DE22: x | DF22: x
B23: 22 | F23: x | G23: x | H23: x | I23: x | J23: x | O23: x | R23: x | T23: x | U23: x | V23: x | W23: x | X23: x | Y23: x | Z23: x | AA23: x | AB23: x | AC23: x | AD23: x | AE23: x | AF23: x | AG23: x | AH23: x | AI23: x | AJ23: x | AK23: x | AN23: x | AO23: x | AP23: x | AQ23: x | AR23: x | AS23: x | AT23: x | AV23: x | AW23: x | AX23: x | AY23: x | AZ23: x | BA23: x | BB23: x | BC23: x | BD23: x | BE23: x | BF23: x | BG23: x | BH23: x | BI23: x | BJ23: x | BK23: x | BL23: x | BM23: x | BO23: x | BP23: x | BR23: x | BS23: x | BT23: x | BU23: x | BV23: x | BW23: x | BY23: x | BZ23: x | CA23: x | CB23: x | CC23: x | CD23: x | CE23: x | CF23: x | CI23: x | CK23: x | CL23: x | CM23: x | CN23: x | CO23: x | CP23: x | CQ23: x | CR23: x | CS23: x | CT23: x | CU23: x | CV23: x | CW23: x | CX23: x | CY23: x | CZ23: x | DA23: x | DB23: x | DC23: x | DD23: x | DE23: x | DF23: x
B24: 23 | F24: x | G24: x | H24: x | I24: x | J24: x | O24: x | R24: x | T24: x | U24: x | V24: x | W24: x | X24: x | Y24: x | Z24: x | AA24: x | AB24: x | AC24: x | AD24: x | AE24: x | AF24: x | AG24: x | AH24: x | AI24: x | AJ24: x | AK24: x | AN24: x | AO24: x | AP24: x | AQ24: x | AR24: x | AS24: x | AT24: x | AV24: x | AW24: x | AX24: x | AY24: x | AZ24: x | BA24: x | BB24: x | BC24: x | BD24: x | BE24: x | BF24: x | BG24: x | BH24: x | BI24: x | BJ24: x | BK24: x | BL24: x | BM24: x | BO24: x | BP24: x | BR24: x | BS24: x | BT24: x | BU24: x | BV24: x | BW24: x | BY24: x | BZ24: x | CA24: x | CB24: x | CC24: x | CD24: x | CE24: x | CF24: x | CI24: x | CK24: x | CL24: x | CM24: x | CN24: x | CO24: x | CP24: x | CQ24: x | CR24: x | CS24: x | CT24: x | CU24: x | CV24: x | CW24: x | CX24: x | CY24: x | CZ24: x | DA24: x | DB24: x | DC24: x | DD24: x | DE24: x | DF24: x
B25: 24 | F25: x | G25: x | H25: x | I25: x | J25: x | O25: x | R25: x | T25: x | U25: x | V25: x | W25: x | X25: x | Y25: x | Z25: x | AA25: x | AB25: x | AC25: x | AD25: x | AE25: x | AF25: x | AG25: x | AH25: x | AI25: x | AJ25: x | AK25: x | AN25: x | AO25: x | AP25: x | AQ25: x | AR25: x | AS25: x | AT25: x | AV25: x | AW25: x | AX25: x | AY25: x | AZ25: x | BA25: x | BB25: x | BC25: x | BD25: x | BE25: x | BF25: x | BG25: x | BH25: x | BI25: x | BJ25: x | BK25: x | BL25: x | BM25: x | BO25: x | BP25: x | BR25: x | BS25: x | BT25: x | BU25: x | BV25: x | BW25: x | BY25: x | BZ25: x | CA25: x | CB25: x | CC25: x | CD25: x | CE25: x | CF25: x | CI25: x | CK25: x | CL25: x | CM25: x | CN25: x | CO25: x | CP25: x | CQ25: x | CR25: x | CS25: x | CT25: x | CU25: x | CV25: x | CW25: x | CX25: x | CY25: x | CZ25: x | DA25: x | DB25: x | DC25: x | DD25: x | DE25: x | DF25: x
B26: 25 | F26: x | G26: x | H26: x | I26: x | J26: x | O26: x | R26: x | T26: x | U26: x | V26: x | W26: x | X26: x | Y26: x | Z26: x | AA26: x | AB26: x | AC26: x | AD26: x | AE26: x | AF26: x | AG26: x | AH26: x | AI26: x | AJ26: x | AK26: x | AN26: x | AO26: x | AP26: x | AQ26: x | AR26: x | AS26: x | AT26: x | AV26: x | AW26: x | AX26: x | AY26: x | AZ26: x | BA26: x | BB26: x | BC26: x | BD26: x | BE26: x | BF26: x | BG26: x | BH26: x | BI26: x | BJ26: x | BK26: x | BL26: x | BM26: x | BO26: x | BP26: x | BR26: x | BS26: x | BT26: x | BU26: x | BV26: x | BW26: x | BY26: x | BZ26: x | CA26: x | CB26: x | CC26: x | CD26: x | CE26: x | CF26: x | CI26: x | CK26: x | CL26: x | CM26: x | CN26: x | CO26: x | CP26: x | CQ26: x | CR26: x | CS26: x | CT26: x | CU26: x | CV26: x | CW26: x | CX26: x | CY26: x | CZ26: x | DA26: x | DB26: x | DC26: x | DD26: x | DE26: x | DF26: x
B27: 26 | F27: x | G27: x | H27: x | I27: x | J27: x | O27: x | R27: x | T27: x | U27: x | V27: x | W27: x | X27: x | Y27: x | Z27: x | AA27: x | AB27: x | AC27: x | AD27: x | AE27: x | AF27: x | AG27: x | AH27: x | AI27: x | AJ27: x | AK27: x | AN27: x | AO27: x | AP27: x | AQ27: x | AR27: x | AS27: x | AT27: x | AV27: x | AW27: x | AX27: x | AY27: x | AZ27: x | BA27: x | BB27: x | BC27: x | BD27: x | BE27: x | BF27: x | BG27: x | BH27: x | BI27: x | BJ27: x | BK27: x | BL27: x | BM27: x | BO27: x | BP27: x | BR27: x | BS27: x | BT27: x | BU27: x | BV27: x | BW27: x | BY27: x | BZ27: x | CA27: x | CB27: x | CC27: x | CD27: x | CE27: x | CF27: x | CI27: x | CK27: x | CL27: x | CM27: x | CN27: x | CO27: x | CP27: x | CQ27: x | CR27: x | CS27: x | CT27: x | CU27: x | CV27: x | CW27: x | CX27: x | CY27: x | CZ27: x | DA27: x | DB27: x | DC27: x | DD27: x | DE27: x | DF27: x
A28: Anja | B28: 27 | F28: x | G28: x | H28: x | I28: x | J28: x | O28: x | R28: x | T28: x | U28: x | V28: x | W28: x | X28: x | Y28: x | Z28: x | AA28: x | AB28: x | AC28: x | AD28: x | AE28: x | AF28: x | AG28: x | AH28: x | AI28: x | AJ28: x | AK28: x | AN28: x | AO28: x | AP28: x | AQ28: x | AR28: x | AS28: x | AT28: x | AV28: x | AW28: x | AX28: x | AY28: x | AZ28: x | BA28: x | BB28: x | BC28: x | BD28: x | BE28: x | BF28: x | BG28: x | BH28: x | BI28: x | BJ28: x | BK28: x | BL28: x | BM28: x | BO28: x | BP28: x | BR28: x | BS28: x | BT28: x | BU28: x | BV28: x | BW28: x | BY28: x | BZ28: x | CA28: x | CB28: x | CC28: x | CD28: x | CE28: x | CF28: x | CI28: x | CK28: x | CL28: x | CM28: x | CN28: x | CO28: x | CP28: x | CQ28: x | CR28: x | CS28: x | CT28: x | CU28: x | CV28: x | CW28: x | CX28: x | CY28: x | CZ28: x | DA28: x | DB28: x | DC28: x | DD28: x | DE28: x | DF28: x
A29: Lalojo | B29: 28 | F29: x | G29: x | H29: x | I29: x | J29: x | O29: x | R29: x | T29: x | U29: x | V29: x | W29: x | X29: x | Y29: x | Z29: x | AA29: x | AB29: x | AC29: x | AD29: x | AE29: x | AF29: x | AG29: x | AH29: x | AI29: x | AJ29: x | AK29: x | AN29: x | AO29: x | AP29: x | AQ29: x | AR29: x | AS29: x | AT29: x | AV29: x | AW29: x | AX29: x | AY29: x | AZ29: x | BA29: x | BB29: x | BC29: x | BD29: x | BE29: x | BF29: x | BG29: x | BH29: x | BI29: x | BJ29: x | BK29: x | BL29: x | BM29: x | BO29: x | BP29: x | BR29: x | BS29: x | BT29: x | BU29: x | BV29: x | BW29: x | BY29: x | BZ29: x | CA29: x | CB29: x | CC29: x | CD29: x | CE29: x | CF29: x | CI29: x | CK29: x | CL29: x | CM29: x | CN29: x | CO29: x | CP29: x | CQ29: x | CR29: x | CS29: x | CT29: x | CU29: x | CV29: x | CW29: x | CX29: x | CY29: x | CZ29: x | DA29: x | DB29: x | DC29: x | DD29: x | DE29: x | DF29: x
B30: 29 | F30: x | G30: x | H30: x | I30: x | J30: x | O30: x | R30: x | T30: x | U30: x | V30: x | W30: x | X30: x | Y30: x | Z30: x | AA30: x | AB30: x | AC30: x | AD30: x | AE30: x | AF30: x | AG30: x | AH30: x | AI30: x | AJ30: x | AK30: x | AN30: x | AO30: x | AP30: x | AQ30: x | AR30: x | AS30: x | AT30: x | AV30: x | AW30: x | AX30: x | AY30: x | AZ30: x | BA30: x | BB30: x | BC30: x | BD30: x | BE30: x | BF30: x | BG30: x | BH30: x | BI30: x | BJ30: x | BK30: x | BL30: x | BM30: x | BO30: x | BP30: x | BR30: x | BS30: x | BT30: x | BU30: x | BV30: x | BW30: x | BY30: x | BZ30: x | CA30: x | CB30: x | CC30: x | CD30: x | CE30: x | CF30: x | CI30: x | CK30: x | CL30: x | CM30: x | CN30: x | CO30: x | CP30: x | CQ30: x | CR30: x | CS30: x | CT30: x | CU30: x | CV30: x | CW30: x | CX30: x | CY30: x | CZ30: x | DA30: x | DB30: x | DC30: x | DD30: x | DE30: x | DF30: x
B31: 30 | F31: x | G31: x | H31: x | I31: x | J31: x | O31: x | R31: x | T31: x | U31: x | V31: x | W31: x | X31: x | Y31: x | Z31: x | AA31: x | AB31: x | AC31: x | AD31: x | AE31: x | AF31: x | AG31: x | AH31: x | AI31: x | AJ31: x | AK31: x | AN31: x | AO31: x | AP31: x | AQ31: x | AR31: x | AS31: x | AT31: x | AV31: x | AW31: x | AX31: x | AY31: x | AZ31: x | BA31: x | BB31: x | BC31: x | BD31: x | BE31: x | BF31: x | BG31: x | BH31: x | BI31: x | BJ31: x | BK31: x | BL31: x | BM31: x | BO31: x | BP31: x | BR31: x | BS31: x | BT31: x | BU31: x | BV31: x | BW31: x | BY31: x | BZ31: x | CA31: x | CB31: x | CC31: x | CD31: x | CE31: x | CF31: x | CI31: x | CK31: x | CL31: x | CM31: x | CN31: x | CO31: x | CP31: x | CQ31: x | CR31: x | CS31: x | CT31: x | CU31: x | CV31: x | CW31: x | CX31: x | CY31: x | CZ31: x | DA31: x | DB31: x | DC31: x | DD31: x | DE31: x | DF31: x
B32: 31 | F32: x | G32: x | H32: x | I32: x | J32: x | O32: x | R32: x | T32: x | U32: x | V32: x | W32: x | X32: x | Y32: x | Z32: x | AA32: x | AB32: x | AC32: x | AD32: x | AE32: x | AF32: x | AG32: x | AH32: x | AI32: x | AJ32: x | AK32: x | AN32: x | AO32: x | AP32: x | AQ32: x | AR32: x | AS32: x | AT32: x | AV32: x | AW32: x | AX32: x | AY32: x | AZ32: x | BA32: x | BB32: x | BC32: x | BD32: x | BE32: x | BF32: x | BG32: x | BH32: x | BI32: x | BJ32: x | BK32: x | BL32: x | BM32: x | BO32: x | BP32: x | BR32: x | BS32: x | BT32: x | BU32: x | BV32: x | BW32: x | BY32: x | BZ32: x | CA32: x | CB32: x | CC32: x | CD32: x | CE32: x | CF32: x | CI32: x | CK32: x | CL32: x | CM32: x | CN32: x | CO32: x | CP32: x | CQ32: x | CR32: x | CS32: x | CT32: x | CU32: x | CV32: x | CW32: x | CX32: x | CZ32: x | DA32: x | DB32: x | DC32: x | DD32: x | DE32: x | DF32: x
B33: 32 | F33: x | G33: x | H33: x | I33: x | J33: x | O33: x | R33: x | T33: x | U33: x | V33: x | W33: x | X33: x | Y33: x | Z33: x | AA33: x | AB33: x | AC33: x | AD33: x | AE33: x | AF33: x | AG33: x | AH33: x | AI33: x | AJ33: x | AK33: x | AN33: x | AO33: x | AP33: x | AQ33: x | AR33: x | AS33: x | AT33: x | AV33: x | AW33: x | AX33: x | AY33: x | AZ33: x | BA33: x | BB33: x | BC33: x | BD33: x | BE33: x | BF33: x | BG33: x | BH33: x | BI33: x | BJ33: x | BK33: x | BL33: x | BM33: x | BO33: x | BP33: x | BR33: x | BS33: x | BT33: x | BU33: x | BV33: x | BW33: x | BY33: x | BZ33: x | CA33: x | CB33: x | CC33: x | CD33: x | CE33: x | CF33: x | CI33: x | CK33: x | CL33: x | CM33: x | CO33: x | CP33: x | CQ33: x | CR33: x | CS33: x | CT33: x | CU33: x | CV33: x | CW33: x | CX33: x | CZ33: x | DA33: x | DB33: x | DC33: x | DE33: x | DF33: x
B34: 33 | F34: x | G34: x | H34: x | I34: x | J34: x | O34: x | R34: x | T34: x | U34: x | V34: x | W34: x | X34: x | Y34: x | Z34: x | AA34: x | AB34: x | AC34: x | AD34: x | AE34: x | AF34: x | AG34: x | AH34: x | AI34: x | AJ34: x | AK34: x | AN34: x | AO34: x | AP34: x | AQ34: x | AR34: x | AS34: x | AT34: x | AV34: x | AW34: x | AX34: x | AY34: x | AZ34: x | BA34: x | BB34: x | BC34: x | BD34: x | BE34: x | BF34: x | BG34: x | BH34: x | BI34: x | BJ34: x | BK34: x | BL34: x | BM34: x | BO34: x | BP34: x | BR34: x | BS34: x | BT34: x | BU34: x | BV34: x | BW34: x | BY34: x | BZ34: x | CA34: x | CB34: x | CC34: x | CD34: x | CE34: x | CF34: x | CI34: x | CK34: x | CL34: x | CM34: x | CO34: x | CP34: x | CQ34: x | CR34: x | CS34: x | CT34: x | CU34: x | CV34: x | CW34: x | CX34: x | CZ34: x | DA34: x | DB34: x | DC34: x | DE34: x | DF34: x
B35: 34 | F35: x | G35: x | H35: x | I35: x | J35: x | O35: x | R35: x | T35: x | U35: x | V35: x | W35: x | X35: x | Y35: x | Z35: x | AA35: x | AB35: x | AC35: x | AD35: x | AE35: x | AF35: x | AG35: x | AH35: x | AI35: x | AJ35: x | AK35: x | AN35: x | AO35: x | AP35: x | AQ35: x | AR35: x | AS35: x | AT35: x | AV35: x | AW35: x | AX35: x | AY35: x | AZ35: x | BA35: x | BB35: x | BC35: x | BD35: x | BE35: x | BF35: x | BG35: x | BH35: x | BI35: x | BJ35: x | BK35: x | BL35: x | BM35: x | BO35: x | BP35: x | BR35: x | BS35: x | BT35: x | BU35: x | BV35: x | BW35: x | BY35: x | BZ35: x | CA35: x | CB35: x | CC35: x | CD35: x | CE35: x | CF35: x | CI35: x | CK35: x | CL35: x | CM35: x | CO35: x | CP35: x | CQ35: x | CR35: x | CS35: x | CT35: x | CU35: x | CX35: x | CZ35: x | DA35: x | DB35: x | DC35: x | DE35: x | DF35: x
B36: 35 | F36: x | G36: x | H36: x | I36: x | J36: x | O36: x | R36: x | T36: x | U36: x | V36: x | W36: x | X36: x | Y36: x | Z36: x | AA36: x | AB36: x | AC36: x | AD36: x | AE36: x | AF36: x | AG36: x | AH36: x | AI36: x | AJ36: x | AK36: x | AN36: x | AO36: x | AP36: x | AQ36: x | AR36: x | AS36: x | AT36: x | AV36: x | AW36: x | AX36: x | AY36: x | AZ36: x | BA36: x | BB36: x | BC36: x | BD36: x | BE36: x | BF36: x | BG36: x | BH36: x | BI36: x | BJ36: x | BK36: x | BL36: x | BM36: x | BO36: x | BP36: x | BR36: x | BS36: x | BT36: x | BU36: x | BV36: x | BW36: x | BY36: x | BZ36: x | CA36: x | CB36: x | CC36: x | CD36: x | CE36: x | CF36: x | CI36: x | CK36: x | CL36: x | CM36: x | CO36: x | CP36: x | CQ36: x | CR36: x | CS36: x | CT36: x | CU36: x | CX36: x | CZ36: x | DA36: x | DB36: x | DC36: x | DE36: x | DF36: x
B37: 36 | F37: x | G37: x | H37: x | I37: x | J37: x | O37: x | R37: x | T37: x | U37: x | V37: x | W37: x | X37: x | Y37: x | Z37: x | AA37: x | AB37: x | AC37: x | AD37: x | AE37: x | AF37: x | AG37: x | AH37: x | AI37: x | AJ37: x | AK37: x | AN37: x | AO37: x | AP37: x | AQ37: x | AR37: x | AS37: x | AT37: x | AV37: x | AW37: x | AX37: x | AY37: x | AZ37: x | BA37: x | BB37: x | BC37: x | BD37: x | BE37: x | BF37: x | BG37: x | BH37: x | BI37: x | BJ37: x | BK37: x | BL37: x | BM37: x | BO37: x | BP37: x | BR37: x | BS37: x | BT37: x | BU37: x | BV37: x | BW37: x | BY37: x | BZ37: x | CA37: x | CB37: x | CC37: x | CD37: x | CE37: x | CF37: x | CI37: x | CK37: x | CL37: x | CM37: x | CO37: x | CP37: x | CQ37: x | CR37: x | CS37: x | CT37: x | CU37: x | CX37: x | CZ37: x | DA37: x | DB37: x | DE37: x | DF37: x
B38: 37 | F38: x | G38: x | H38: x | I38: x | J38: x | O38: x | R38: x | T38: x | U38: x | V38: x | W38: x | X38: x | Y38: x | Z38: x | AA38: x | AB38: x | AC38: x | AD38: x | AE38: x | AF38: x | AG38: x | AH38: x | AI38: x | AJ38: x | AK38: x | AN38: x | AO38: x | AP38: x | AQ38: x | AR38: x | AS38: x | AT38: x | AV38: x | AW38: x | AX38: x | AY38: x | AZ38: x | BA38: x | BB38: x | BC38: x | BD38: x | BE38: x | BF38: x | BG38: x | BH38: x | BI38: x | BJ38: x | BK38: x | BL38: x | BM38: x | BO38: x | BP38: x | BR38: x | BS38: x | BT38: x | BU38: x | BV38: x | BW38: x | BY38: x | BZ38: x | CA38: x | CB38: x | CC38: x | CD38: x | CE38: x | CF38: x | CI38: x | CK38: x | CL38: x | CM38: x | CO38: x | CP38: x | CQ38: x | CR38: x | CS38: x | CT38: x | CU38: x | CX38: x | CZ38: x | DA38: x | DB38: x | DE38: x | DF38: x
B39: 38 | F39: x | G39: x | H39: x | I39: x | J39: x | O39: x | R39: x | T39: x | U39: x | V39: x | W39: x | X39: x | Y39: x | Z39: x | AA39: x | AB39: x | AC39: x | AD39: x | AE39: x | AF39: x | AG39: x | AH39: x | AI39: x | AJ39: x | AK39: x | AN39: x | AO39: x | AP39: x | AQ39: x | AR39: x | AS39: x | AT39: x | AV39: x | AW39: x | AX39: x | AY39: x | AZ39: x | BA39: x | BB39: x | BC39: x | BD39: x | BE39: x | BF39: x | BG39: x | BH39: x | BI39: x | BJ39: x | BK39: x | BL39: x | BM39: x | BO39: x | BP39: x | BR39: x | BS39: x | BT39: x | BU39: x | BV39: x | BW39: x | BY39: x | BZ39: x | CA39: x | CB39: x | CC39: x | CD39: x | CE39: x | CF39: x | CI39: x | CK39: x | CL39: x | CM39: x | CO39: x | CP39: x | CQ39: x | CR39: x | CS39: x | CT39: x | CU39: x | CX39: x | CZ39: x | DA39: x | DB39: x | DE39: x | DF39: x
B40: 39 | F40: x | G40: x | H40: x | I40: x | J40: x | O40: x | R40: x | T40: x | U40: x | V40: x | W40: x | X40: x | Y40: x | Z40: x | AA40: x | AB40: x | AC40: x | AD40: x | AE40: x | AF40: x | AG40: x | AH40: x | AI40: x | AJ40: x | AK40: x | AN40: x | AO40: x | AP40: x | AQ40: x | AR40: x | AS40: x | AT40: x | AV40: x | AW40: x | AX40: x | AY40: x | AZ40: x | BA40: x | BB40: x | BC40: x | BD40: x | BE40: x | BF40: x | BG40: x | BH40: x | BI40: x | BJ40: x | BK40: x | BL40: x | BM40: x | BO40: x | BP40: x | BR40: x | BS40: x | BT40: x | BU40: x | BV40: x | BW40: x | BY40: x | BZ40: x | CA40: x | CB40: x | CC40: x | CD40: x | CE40: x | CF40: x | CI40: x | CK40: x | CM40: x | CO40: x | CP40: x | CR40: x | CS40: x | CT40: x | CU40: x | CX40: x | CZ40: x | DA40: x | DB40: x | DE40: x | DF40: x
B41: 40 | F41: x | G41: x | H41: x | I41: x | J41: x | O41: x | R41: x | T41: x | U41: x | V41: x | W41: x | X41: x | Y41: x | Z41: x | AA41: x | AB41: x | AC41: x | AD41: x | AE41: x | AF41: x | AG41: x | AH41: x | AI41: x | AJ41: x | AK41: x | AN41: x | AO41: x | AP41: x | AQ41: x | AR41: x | AS41: x | AT41: x | AV41: x | AW41: x | AX41: x | AY41: x | AZ41: x | BA41: x | BB41: x | BC41: x | BD41: x | BE41: x | BF41: x | BG41: x | BH41: x | BI41: x | BJ41: x | BK41: x | BL41: x | BM41: x | BO41: x | BP41: x | BR41: x | BS41: x | BT41: x | BU41: x | BV41: x | BW41: x | BY41: x | BZ41: x | CA41: x | CB41: x | CC41: x | CD41: x | CE41: x | CF41: x | CI41: x | CK41: x | CM41: x | CO41: x | CP41: x | CR41: x | CS41: x | CT41: x | CX41: x | CZ41: x | DA41: x | DB41: x | DF41: x
B42: 41 | F42: x | G42: x | H42: x | I42: x | J42: x | O42: x | R42: x | T42: x | U42: x | V42: x | W42: x | X42: x | Y42: x | Z42: x | AA42: x | AB42: x | AC42: x | AD42: x | AE42: x | AF42: x | AG42: x | AH42: x | AI42: x | AJ42: x | AK42: x | AN42: x | AO42: x | AP42: x | AQ42: x | AR42: x | AS42: x | AT42: x | AV42: x | AW42: x | AX42: x | AY42: x | AZ42: x | BA42: x | BB42: x | BC42: x | BD42: x | BE42: x | BF42: x | BG42: x | BH42: x | BI42: x | BJ42: x | BK42: x | BL42: x | BM42: x | BO42: x | BP42: x | BR42: x | BS42: x | BT42: x | BU42: x | BV42: x | BW42: x | BY42: x | BZ42: x | CA42: x | CB42: x | CC42: x | CD42: x | CE42: x | CF42: x | CI42: x | CK42: x | CM42: x | CO42: x | CP42: x | CR42: x | CS42: x | CT42: x | CX42: x | CZ42: x | DB42: x | DF42: x
B43: 42 | F43: x | G43: x | H43: x | I43: x | J43: x | O43: x | R43: x | T43: x | U43: x | V43: x | W43: x | X43: x | Y43: x | Z43: x | AA43: x | AB43: x | AC43: x | AD43: x | AE43: x | AF43: x | AG43: x | AH43: x | AI43: x | AJ43: x | AK43: x | AN43: x | AO43: x | AP43: x | AQ43: x | AR43: x | AS43: x | AT43: x | AV43: x | AW43: x | AX43: x | AY43: x | AZ43: x | BA43: x | BB43: x | BC43: x | BD43: x | BE43: x | BF43: x | BG43: x | BH43: x | BI43: x | BJ43: x | BK43: x | BL43: x | BM43: x | BO43: x | BP43: x | BR43: x | BS43: x | BT43: x | BU43: x | BV43: x | BW43: x | BY43: x | BZ43: x | CA43: x | CB43: x | CC43: x | CD43: x | CE43: x | CF43: x | CI43: x | CK43: x | CM43: x | CO43: x | CP43: x | CR43: x | CS43: x | CT43: x | CX43: x | DB43: x
B44: 43 | F44: x | G44: x | H44: x | I44: x | J44: x | O44: x | R44: x | T44: x | U44: x | V44: x | W44: x | X44: x | Y44: x | Z44: x | AA44: x | AB44: x | AC44: x | AD44: x | AE44: x | AF44: x | AG44: x | AH44: x | AI44: x | AJ44: x | AK44: x | AN44: x | AO44: x | AP44: x | AQ44: x | AR44: x | AS44: x | AT44: x | AV44: x | AW44: x | AX44: x | AY44: x | AZ44: x | BA44: x | BB44: x | BC44: x | BD44: x | BE44: x | BF44: x | BG44: x | BH44: x | BI44: x | BJ44: x | BK44: x | BL44: x | BM44: x | BO44: x | BP44: x | BR44: x | BS44: x | BT44: x | BU44: x | BV44: x | BW44: x | BY44: x | BZ44: x | CA44: x | CB44: x | CC44: x | CD44: x | CE44: x | CF44: x | CI44: x | CK44: x | CM44: x | CO44: x | CP44: x | CS44: x | CT44: x | CX44: x | DB44: x
B45: 44 | F45: x | G45: x | H45: x | I45: x | J45: x | O45: x | R45: x | T45: x | U45: x | V45: x | W45: x | X45: x | Y45: x | Z45: x | AA45: x | AB45: x | AC45: x | AD45: x | AE45: x | AF45: x | AG45: x | AH45: x | AI45: x | AJ45: x | AK45: x | AN45: x | AO45: x | AP45: x | AQ45: x | AR45: x | AS45: x | AT45: x | AV45: x | AW45: x | AX45: x | AY45: x | AZ45: x | BA45: x | BB45: x | BC45: x | BD45: x | BE45: x | BF45: x | BG45: x | BH45: x | BI45: x | BJ45: x | BK45: x | BL45: x | BM45: x | BO45: x | BP45: x | BR45: x | BS45: x | BT45: x | BU45: x | BV45: x | BW45: x | BY45: x | BZ45: x | CA45: x | CB45: x | CC45: x | CD45: x | CE45: x | CF45: x | CI45: x | CK45: x | CM45: x | CO45: x | CP45: x | CS45: x | CT45: x | CX45: x | DB45: x
B46: 45 | F46: x | G46: x | H46: x | I46: x | J46: x | O46: x | R46: x | T46: x | U46: x | V46: x | W46: x | X46: x | Y46: x | Z46: x | AA46: x | AB46: x | AC46: x | AD46: x | AE46: x | AF46: x | AG46: x | AH46: x | AI46: x | AJ46: x | AK46: x | AN46: x | AO46: x | AP46: x | AQ46: x | AR46: x | AS46: x | AT46: x | AV46: x | AW46: x | AX46: x | AY46: x | AZ46: x | BA46: x | BB46: x | BC46: x | BD46: x | BE46: x | BF46: x | BG46: x | BH46: x | BI46: x | BJ46: x | BK46: x | BL46: x | BM46: x | BO46: x | BP46: x | BR46: x | BS46: x | BT46: x | BU46: x | BV46: x | BW46: x | BY46: x | BZ46: x | CA46: x | CB46: x | CC46: x | CD46: x | CE46: x | CF46: x | CI46: x | CK46: x | CM46: x | CO46: x | CP46: x | CS46: x | CT46: x | CX46: x | DB46: x
C47: =COUNTIF(C2:C46,"x") -> 0 | D47: =COUNTIF(D2:D46,"x") -> 0 | E47: 0 | F47: 45 | G47: 45 | H47: 45 | I47: 45 | J47: 45 | K47: 0 | L47: 0 | M47: 0 | N47: 0 | O47: 45 | P47: 0 | Q47: 0 | R47: 45 | S47: 0 | T47: 45 | U47: 45 | V47: 45 | W47: 45 | X47: 45 | Y47: 45 | Z47: 45 | AA47: 45 | AB47: 45 | AC47: 45 | AD47: 45 | AE47: 45 | AF47: 45 | AG47: 45 | AH47: 45 | AI47: 45 | AJ47: 45 | AK47: 45 | AL47: 0 | AM47: 0 | AN47: 45 | AO47: 45 | AP47: 45 | AQ47: 45 | AR47: 45 | AS47: 45 | AT47: 45 | AU47: 0 | AV47: 45 | AW47: 45 | AX47: 45 | AY47: 45 | AZ47: 45 | BA47: 45 | BB47: 45 | BC47: 45 | BD47: 45 | BE47: 45 | BF47: 45 | BG47: 45 | BH47: 45 | BI47: 45 | BJ47: 45 | BK47: 45 | BL47: 45 | BM47: =COUNTIF(BM2:BM46,"x") -> 45 | BN47: 0 | BO47: 45 | BP47: =COUNTIF(BP2:BP46,"x") -> 45 | BQ47: 0 | BR47: 45 | BS47: 45 | BT47: 45 | BU47: 45 | BV47: 45 | BW47: 45 | BX47: 0 | BY47: 45 | BZ47: 45 | CA47: 45 | CB47: 45 | CC47: 45 | CD47: 45 | CE47: 45 | CF47: 45 | CG47: 0 | CH47: 0 | CI47: 45 | CJ47: 0 | CK47: 45 | CL47: 38 | CM47: 45 | CN47: 31 | CO47: 45 | CP47: 45 | CQ47: 38 | CR47: 42 | CS47: 45 | CT47: 45 | CU47: =COUNTIF(CU2:CU46,"x") -> 39 | CV47: =COUNTIF(CV2:CV46,"x") -> 33 | CW47: =COUNTIF(CW2:CW46,"x") -> 33 | CX47: =COUNTIF(CX2:CX46,"x") -> 45 | CY47: =COUNTIF(CY2:CY46,"x") -> 30 | CZ47: 41 | DA47: 40 | DB47: 45 | DC47: 35 | DD47: 31 | DE47: 39 | DF47: 41 | DG47: 0 | DH47: 0 | DI47: 0 | DJ47: 0 | DK47: 0 | DL47: 0 | DM47: 0 | DN47: 0 | DO47: 0 | DP47: 0 | DQ47: 0 | DR47: 0 | DS47: 0 | DT47: 0 | DU47: 0 | DV47: 0 | DW47: 0 | DX47: 0 | DY47: 0 | DZ47: 0 | EA47: 0 | EB47: 0 | EC47: 0 | ED47: 0 | EE47: 0 | EF47: 0 | EG47: 0 | EH47: 0 | EI47: 0 | EJ47: 0 | EK47: 0 | EL47: 0 | EM47: 0 | EN47: 0 | EO47: 0 | EP47: 0 | EQ47: 0 | ER47: 0 | ES47: 0 | ET47: 0
B48: =SUMIF(47:47,"<45") -> 511
B49: =B48+'Reserve Nr1'!B49 -> 543

Sheet E-Mails
B1: Naam | C1: E-Mail
A2: 1 | B2: =Base!B2 -> Marie-Paul
A3: 2 | B3: =Base!B3 -> Sarah Baert
A4: 3 | B4: =Base!B7 -> Nathalie
A5: 4 | B5: =Base!B8 -> Dany
A6: 5 | B6: =Base!B9 -> Thibo
A7: 6 | B7: =Base!B10 -> Kevin
A8: 7 | B8: =Base!B11 -> Bernadette
A9: 8 | B9: =Base!B12 -> Paul
A10: 9 | B10: =Base!B13 -> Kristof De Groote
A11: 10 | B11: =Base!B14 -> Gilbert Devos
A12: 11 | B12: =Base!B15 -> Werner Brulez
A13: 12 | B13: =Base!B16 -> Werner Brulez
A14: 13 | B14: =Base!B17 -> Tierlynck Vio
A15: 14 | B15: =Base!B18 -> Minnaert Fabienne
A16: 15 | B16: =Base!B19 -> Marc Coorvits
A17: 16 | B17: =Base!B20 -> Maheur Adelin
A18: 17 | B18: =Base!B21 -> Rudy V
A19: 18 | B19: =Base!B22 -> D,B,A,
A20: 19 | B20: =Base!B23 -> Diego
A21: 20 | B21: =Base!B24 -> Kimberly
A22: 21 | B22: =Base!B25 -> Baele Marleen
A23: 22 | B23: =Base!#REF! -> 
A24: 23 | B24: =Base!B27 -> Albert Vanderbrugge
A25: 24 | B25: =Base!B28 -> Kleinkinderen erna
A26: 25 | B26: =Base!B29 -> Erna t'Genieterke
A27: 26 | B27: =Base!B30 -> Robin Verstraeten
A28: 27 | B28: =Base!B31 -> Loic Verstraeten
A29: 28 | B29: =Base!B32 -> Quint Verstraeten
A30: 29 | B30: =Base!B33 -> Olivia Verstraeten
A31: 30 | B31: =Base!B34 -> Jonas Verstraeten
A32: 31 | B32: =Base!B35 -> Frank t'Genieterke
A33: 32 | B33: =Base!B36 -> Schoondochters erna
A34: 33 | B34: =Base!B37 -> Nico Judo
A35: 34 | B35: =Base!B38 -> Decroecke Erna
A36: 35 | B36: =Base!#REF! -> 
A37: 36 | B37: =Base!#REF! -> 
A38: 37 | B38: =Base!#REF! -> 
A39: 38 | B39: =Base!#REF! -> 
A40: 39 | B40: =Base!B43 -> Jozef Matton
A41: 40 | B41: =Base!B44 -> Annelies vermeulen
A42: 41 | B42: =Base!B45 -> Dirk depaepe
A43: 42 | B43: =Base!#REF! -> 
A44: 43 | B44: =Base!#REF! -> 
A45: 44 | B45: =Base!#REF! -> 
A46: 45 | B46: =Base!B49 -> Margueriete Lalojaux
A47: 46 | B47: =Base!B50 -> Michel Notre-Dame
A48: 47 | B48: =Base!B51 -> Triene
A49: 48 | B49: =Base!B52 -> Joke
A50: 49 | B50: =Base!B26 -> Franske
A51: 50 | B51: =Base!B54 -> Matteo
A52: 51 | B52: =Base!B55 -> Onzen Jhonny
A53: 52 | B53: =Base!B56 -> 0
A54: 53 | B54: =Base!B57 -> 0
A55: 54 | B55: =Base!B58 -> 0
A56: 55 | B56: =Base!B59 -> 0
A57: 56 | B57: =Base!B60 -> 0
A58: 57 | B58: =Base!B61 -> 0
A59: 58 | B59: =Base!B39 -> Vandenabeele Luc
A60: 59 | B60: =Base!B40 -> Lieca
A61: 60 | B61: =Base!B41 -> Charlotje
A62: 61 | B62: =Base!B42 -> Johan
A63: 62 | B63: =Base!B48 -> Margueriete 2
A64: 63 | B64: =Base!B46 -> Dolfke
A65: 64 | B65: =Base!B47 -> Dirk Christ
A66: 65 | B66: =Base!B69 -> 0
A67: 66 | B67: =Base!B70 -> 0
A68: 67 | B68: =Base!B71 -> 0

Sheet Param
A3: No de la ligne de l'enregistrement courant | B3: 38
A5: Nombre d'enregistrements dans la BD | B5: =COUNTA(Base!A:A)-1 -> 54
